{"text_format":"1","workbook":"xlsx","n_sheets":31,"sheets":["Random Sample","Sample Sizes","Class1","Class4","310AC","320AC","330AC","340AC","350AC","350WEB1","360AC","370AC","410AC","420AC","430AC","440AC","450AC","501AC","510AC","520AC","530AC","540AC","610AC","620AC","SDS Scores","710 & 720","630AC","2015 SDS","2015 CGAs","Calc Avg CGA","CRS Documents"],"not_rendered":{"charts":0,"images":0,"macros":1,"external_links":0,"defined_names":41,"comments":21,"pivot_tables":0},"unopened":[],"bounds":{"document_bytes":16777216,"sheet_cells":100000,"rows_first":2000,"rows_last":500,"rows_between":2000,"halvings":0,"cell_chars":16384,"cell_head_chars":4096},"cells_cut":0,"cells_raw":0,"read":"whole","date_system":"1900"}

{"sheet":"Random Sample","index":0,"n_rows":34,"n_cols":7,"rows_kept":34,"cut":false,"hidden":false,"merged":[[0,3,2,8]]}
[null,null,null,"Enter the population size in B2. The sample size is automatically generated.                                              Hit \"Generate Sample\" to get a list of random samples.                                                                 If the population is 51 or more, hit \"Generate Sample\" to get a random sample list for 30 samples."]
["Population Size",191]
["Sample Size",{"$f":"IF('Sample Sizes'!F7<31,'Sample Sizes'!F7,30)","v":30}]
[]
[1,8,null,null,"ECs 90% ","Regulations 80% ","All others' 50% "]
[{"$f":"A5+1","v":2},9,null,null,"Passing Threshold","Passing Threshold","Passing Threshold"]
[3,22,null,null,{"$f":"PRODUCT(B3,0.9)","v":27},{"$f":"PRODUCT(B3,0.8)","v":24},{"$f":"PRODUCT(B3,0.5)","v":15}]
[4,28]
[5,32]
[6,33]
[7,34]
[8,35]
[9,39]
[10,45]
[11,50]
[12,69]
[13,70]
[14,82]
[15,88]
[16,107]
[17,109]
[18,110]
[19,113]
[20,117]
[21,129]
[22,130]
[23,136]
[24,137]
[25,145]
[26,146]
[27,148]
[28,171]
[29,182]
[30,190]

{"sheet":"Sample Sizes","index":1,"n_rows":33,"n_cols":11,"rows_kept":33,"cut":false,"hidden":true,"merged":[]}
["CRS Sampling Committee"]
["Sampling requirements for different community sizes and for different accuracy levels"]
[]
["Table Inputs",null,null,"Custom Population"]
["Number of sides",2,null,"Population size",null,{"$f":"'Random Sample'!B2","v":191}]
["Confidence level",0.9,null,"Accuracy",null,0.9]
["Assumed p",0.5,null,"Sample Size",null,{"$f":"TRUNC($F5*NORMINV(1-(1-$B$6)/$B$5,0,1)^2/((1/($B$7*(1-$B$7))*($F5-1)*(F$6-1)^2+NORMINV(1-(1-$B$6)/$B$5,0,1)^2))+1)","v":51}]
[]
["Accuracy",0.9,{"$f":"B9+0.01","v":0.91},0.92,0.93,0.94000000000000006,0.95000000000000007,0.96000000000000008,0.97000000000000008,0.98000000000000009,0.9900000000000001]
["Population Size"]
[10,{"$f":"TRUNC($A11*NORMINV(1-(1-$B$6)/$B$5,0,1)^2/((1/($B$7*(1-$B$7))*($A11-1)*(B$9-1)^2+NORMINV(1-(1-$B$6)/$B$5,0,1)^2))+1)","v":9},{"$f":"TRUNC($A11*NORMINV(1-(1-$B$6)/$B$5,0,1)^2/((1/($B$7*(1-$B$7))*($A11-1)*(C$9-1)^2+NORMINV(1-(1-$B$6)/$B$5,0,1)^2))+1)","v":10},10,10,10,10,10,10,10,10]
[{"$f":"A11+10","v":20},16,17,17,18,19,19,20,20,20,20]
[{"$f":"A12+10","v":30},21,23,24,25,26,28,29,29,30,30]
[40,26,28,30,32,34,35,37,39,40,40]
[50,29,32,35,37,40,43,45,47,49,50]
[60,33,36,39,43,46,50,53,56,58,60]
[70,35,39,43,47,52,56,61,65,68,70]
[80,37,42,46,51,57,62,68,73,77,80]
[90,39,44,49,55,62,68,75,81,86,89]
[100,41,46,52,59,66,74,82,89,95,99]
[{"$f":"A20+100","v":200},51,60,70,82,98,116,136,159,179,195]
[{"$f":"A21+100","v":300},56,66,79,95,116,143,176,215,255,288]
[400,58,70,84,103,129,162,206,262,324,378]
[500,60,72,88,109,137,176,230,301,387,466]
[600,61,74,90,113,144,187,249,334,444,552]
[700,62,75,92,116,149,196,264,363,496,635]
[800,63,{"$f":"TRUNC($A27*NORMINV(1-(1-$B$6)/$B$5,0,1)^2/((1/($B$7*(1-$B$7))*($A27-1)*(C$9-1)^2+NORMINV(1-(1-$B$6)/$B$5,0,1)^2))+1)","v":76},94,118,153,203,277,388,544,716]
[900,{"$f":"TRUNC($A28*NORMINV(1-(1-$B$6)/$B$5,0,1)^2/((1/($B$7*(1-$B$7))*($A28-1)*(B$9-1)^2+NORMINV(1-(1-$B$6)/$B$5,0,1)^2))+1)","v":63},77,95,120,156,209,288,410,588,795]
[1000,64,78,96,122,159,214,298,430,629,872]
[{"$f":"A29+1000","v":2000},66,81,101,130,172,239,350,547,917,1544]
[{"$f":"A30+1000","v":3000},67,82,103,133,177,249,371,602,1082,2079]
[{"$f":"A31+1000","v":4000},67,82,103,134,180,254,383,633,1189,2514]
[{"$f":"A32+1000","v":5000},67,83,104,135,182,257,390,654,1264,2876]

{"sheet":"Class1","index":2,"n_rows":41,"n_cols":6,"rows_kept":41,"cut":false,"hidden":false,"merged":[[13,2,13,3],[1,9,1,10],[2,9,2,10],[4,1,4,3],[5,1,5,3],[6,1,6,3],[7,1,7,3],[8,1,8,5],[9,2,9,3],[10,2,10,3],[11,1,11,5],[12,2,12,3],[31,2,31,3],[25,2,25,3],[14,2,14,3],[15,1,15,5],[16,2,16,3],[17,2,17,3],[18,2,18,3],[19,1,19,5],[20,2,20,3],[21,2,21,3],[22,2,22,3],[23,2,23,3],[24,2,24,3],[26,2,26,3],[27,2,27,3],[28,2,28,3],[29,2,29,3],[30,2,30,3],[38,2,38,3],[39,2,39,3],[40,1,40,5],[32,2,32,3],[33,2,33,3],[34,2,34,3],[35,2,35,3],[36,2,36,3],[37,1,37,5],[27,4,27,5],[28,4,28,5],[29,4,29,5],[30,4,30,5],[31,4,31,5],[32,4,32,5],[33,4,33,5],[34,4,34,5],[35,4,35,5],[36,4,36,5]]}
[null,null,"Community:",""]
[]
["211.d. Class 1 Prerequisites"]
[]
[null,"Prerequisite**",null,null,"Credit","Met"]
[null,"Enough points to warrant the Class (4,500+)"]
[null,"BCEGS of 4/4 or better"]
[null,"Pass Community Assistance Visit within previous 12 months"]
[null,"Activity 370 Promotion of Flood Insurance"]
[null,null,"≥ 50% of the buildings in the SFHA covered by a flood insurance policy OR"]
[null,null,"≥ 50% of the maximum credit under Activity 370. (≥ 55 pts.)"]
[null,"\"No Adverse Impact\" - All Communities"]
[null,null,"≥ 150 pts. in all other 430 elements, including 432.a. Open Space Incentives & 422.f. Development Limitations."]
[null,null,"Credit for protectiong critical facilties, as defined in section 432.f."]
[null,null,"Credit in Activity 410 and 430 for all special flood-related hazards identified in community's flood management plan."]
[null,"\"No Adverse Impact\" - Riverine Communities"]
[null,null,"≥ 80 pts. in for new studies (NS) in section 412.a (prior to impact adj.)"]
[null,null,"rWMP = 0.75 or greater (or show that WMP covers watersheds that comprise at least 75% of its growth)"]
[null,null,"Use future conditions hydrology flood mapping as credited in section 412.d."]
[null,"\"No Adverse Impact\" - Coastal Communities"]
[null,null,"Credit for regulating coastal A Zones under CAZ in section 432.k."]
[null,null,"Use future conditions hydrology flood mapping as credited in section 412.d."]
[null,null,"Credit in Coastal Erosion Hazards in section 432CE.a."]
[null,null,"≥ 25% of repetitive losses have been mitigated."]
[null,null,"Must have a multi-hazard mitigation plan approved by FEMA."]
[null,null,"≥ 150 pts. in for new studies (NS) in section 412.a (prior to impact adj.)"]
[null,null,"At least 150 pts. (after impact adjustment) from one or a combination of the following elements:",null,{"$f":"SUM(E28:F37)","v":0}]
[null,null,"420 – Natural functions open space (NFOS)"]
[null,null,"420 – Natural shoreline protection (NSP)"]
[null,null,"430 – Prohibition of fill (DL1)"]
[null,null,"440 – Additional map data  (AMD) natural functions layer"]
[null,null,"450 – Managing the volume of stormwater runoff (SMR – DS)"]
[null,null,"450 – Low impact development (LID)"]
[null,null,"450 – Watershed management plan (WMP), Credit point items 3, 5, 6 and 7 "]
[null,null,"450 – Erosion and Sediment Control (ESC)"]
[null,null,"450 – Water Quality (WQ)"]
[null,null,"510 – Natural floodplain functions plan (NFP)"]
[null,"Life Safety Measures"]
[null,null,"620 – obtain some credit under elements in this Activity"]
[null,null,"630 – obtain some credit under elements in this Activity"]
[null,"** The community may propose alternative approaches to these prerequisites that are more appropriate for local conditions."]

{"sheet":"Class4","index":3,"n_rows":55,"n_cols":6,"rows_kept":55,"cut":false,"hidden":false,"merged":[[7,1,7,5],[1,9,1,10],[2,9,2,10],[4,1,4,3],[5,1,5,3],[6,1,6,3],[19,2,19,3],[8,2,8,3],[9,2,9,3],[10,2,10,3],[11,2,11,3],[12,2,12,3],[13,2,13,3],[14,2,14,3],[15,2,15,3],[16,2,16,3],[17,2,17,3],[18,2,18,3],[31,2,31,3],[20,2,20,3],[21,2,21,3],[22,2,22,3],[23,2,23,3],[24,2,24,3],[25,2,25,3],[48,2,48,3],[49,2,49,3],[38,1,38,5],[39,2,39,3],[40,2,40,3],[41,2,41,3],[42,2,42,3],[43,2,43,3],[43,4,43,5],[44,4,44,5],[45,4,45,5],[46,4,46,5],[47,4,47,5],[48,4,48,5],[49,4,49,5],[26,2,26,3],[27,1,27,5],[28,2,28,3],[29,2,29,3],[30,2,30,3],[44,2,44,3],[45,2,45,3],[46,2,46,3],[47,2,47,3],[32,1,32,5],[33,2,33,3],[34,2,34,3],[35,2,35,3],[36,2,36,3],[37,2,37,3],[50,1,50,5],[51,2,51,3],[52,2,52,3],[53,2,53,3],[54,1,54,5],[10,4,10,5],[11,4,11,5],[12,4,12,5],[13,4,13,5],[14,4,14,5],[15,4,15,5],[16,4,16,5],[17,4,17,5],[18,4,18,5],[19,4,19,5],[20,4,20,5],[21,4,21,5],[22,4,22,5],[23,4,23,5],[24,4,24,5],[25,4,25,5],[26,4,26,5],[40,4,40,5],[41,4,41,5],[42,4,42,5]]}
[null,null,"Community:",""]
[]
["211.c. Class 4 Prerequisites"]
[]
[null,"Prerequisite**",null,null,"Credit","Met"]
[null,"Enough points to warrant the Class (3,000+)"]
[null,"BCEGS of 4/4 or better"]
[null,"Activity 430 Higher Regulatory Standards"]
[null,null,"Freeboard = 100 pts. or better (prior to imp. adj.)"]
[null,null,"≥ 700 pts. in all other 430 elements, including 422.e. Open Space Incentives & 422.f. Low Density Zoning (prior to imp. adj.) ",null,{"$f":"SUM(E11:F27)","v":0}]
[null,null,"430—Development limitations (DL),"]
[null,null,"430—Freeboard (FRB),"]
[null,null,"430—Cumulative substantial improvements (CSI),"]
[null,null,"430—Lower substantial improvements (LSI),"]
[null,null,"430—Protection of critical facilities (PCF),"]
[null,null,"430—Enclosure limits (ENL),"]
[null,null,"430—Building codes (BC),"]
[null,null,"430—Local drainage protection (LDP),"]
[null,null,"430—Manufactured home parks (MHP),"]
[null,null,"430—Coastal A Zones (CAZ),"]
[null,null,"430—Special flood-related hazards regulations (SHR),"]
[null,null,"430—Other higher standards (OHS),"]
[null,null,"430—State-mandated regulatory standards (SMS),"]
[null,null,"430—Regulations administration (RA),"]
[null,null,"420—Open space preservation (OSP),"]
[null,null,"420—Open space incentives (OSI),"]
[null,null,"420—Low-density zoning (LZ)."]
[null,"Activity 450 Watershed Master Plan (WMP)"]
[null,null,"Adopt a Watershed Management Plan"]
[null,null,"90 pts. for meeting all WMP prerequisites"]
[null,null,"30 pts. for 452.b.2 (managing all storms up to and including 100-yr. event)"]
[null,null,"rWMP = 0.5 or greater (or show that WMP covers watersheds that comprise at least 50% of its growth)"]
[null,"Activity 510 Floodplain Management Plan (FMP)"]
[null,null,"Adopt a Floodplain Management Plan"]
[null,null,"≥ 50% of the maximum credit under Activity 510 after imp. adj. (≥ 191 pts.)"]
[null,null,"≥ 50% of available pts. in Planning Step 2 (≥ 60 pts.)"]
[null,null,"≥ 50% of available pts. in Planning Step 5 (≥ 26 pts.)"]
[null,null,"≥ 50% of available pts. in Planning Step 8 (≥ 30 pts.)"]
[null,"Natural Floodplain Functions"]
[null,null,"At least 100 pts. (after impact adjustment) from one or a combination of the following elements:",null,{"$f":"SUM(E41:F50)","v":0}]
[null,null,"420 – Natural functions open space (NFOS)"]
[null,null,"420 – Natural shoreline protection (NSP)"]
[null,null,"430 – Prohibition of fill (DL1)"]
[null,null,"440 – Additional map data  (AMD) natural functions layer"]
[null,null,"450 – Managing the volume of stormwater runoff (SMR – DS)"]
[null,null,"450 – Low impact development (LID)"]
[null,null,"450 – Watershed management plan (WMP), Credit point items 3, 5, 6 and 7 "]
[null,null,"450 – Erosion and Sediment Control (ESC)"]
[null,null,"450 – Water Quality (WQ)"]
[null,null,"510 – Natural floodplain functions plan (NFP)"]
[null,"Life Safety Measures"]
[null,null,"610 – obtain some credit under this Activity"]
[null,null,"620 – meet prerequisite 621.b(2) [map of all areas protected by levees and an inventory of buildings and critical facilities protected by all levees]"]
[null,null,"630 – meet prerequisite 631.b(1) [map of all areas flooded by the failure of a high hazard dam and inventory of buildings and critical facilities that would be flooded.]"]
[null,"** The community may propose alternative approaches to these prerequisites that are more appropriate for local conditions."]

{"sheet":"310AC","index":4,"n_rows":28,"n_cols":8,"rows_kept":28,"cut":false,"hidden":false,"merged":[[0,8,0,10],[3,0,3,10]]}
["310 ACTIVITY CHECKLIST",null,null,null,null,null,null,"Community:"]
[]
[]
["Activity 310 (Elevations Certificates) Max. 116 points"]
["Maintaining Elevation Certificates (EC) (38 points)"]
[null,"(1) a.","List of all permits issued for new buildings and substantial improvements in the SFHA."]
[null,"b.","Copies of certificates showing “finished construction” for all new buildings and substantial"]
[null,null,"improvements in the SFHA."]
[null,"c.","If credit for regulating outside the SFHA, the list of permits and copies of certificates should include "]
[null,null,"properties in those non-SFHA areas."]
[null,"d.","Certification letter if no new buildings or substantial improvements in the SFHA."]
[null,"(2) a.","Description of how the community maintains, stores, and provides copies of certificates to inquirers."]
[]
["Maintaining Elevation Certificates for post-FIRM buildings (ECPO) (48 points)"]
[null,"(1) a.","Copies of certificates showing “finished construction” for all new buildings and substantial improvements "]
[null,null,"constructed between the date of the community’s initial FIRM and the date of application to the CRS."]
[null,"b.","Community has access to all the credited certificates and provides them to inquirers."]
[null,"c.","Documentation showing how bPO was determined."]
[null,"d.","If no post-FIRM buildings in the SFHA, certification letter stating that no buildings were built or "]
[null,null,"substantially improved during that time period."]
[]
["Maintaining Elevation Certificates for pre-FIRM buildings (ECPR) (30 points)"]
[null,"(1) a.","Copies of certificates showing “finished construction” for all new buildings and substantial improvements "]
[null,null,"constructed between the date of the community’s initial FIRM and the date of application to the CRS."]
[null,"b.","Community has access to all the credited certificates and provides them to inquirers."]
[null,"c.","Documentation showing how bPR was determined."]
[null,"d.","If no pre-FIRM buildings in the SFHA, certification letter stating that no buildings were built or "]
[null,null,"substantially improved during that time period."]

{"sheet":"320AC","index":5,"n_rows":30,"n_cols":10,"rows_kept":30,"cut":false,"hidden":false,"merged":[[0,8,0,10],[9,2,9,10],[10,2,10,10],[3,0,3,10],[5,2,5,10],[6,2,6,10],[7,2,7,10],[8,2,8,10]]}
["320 ACTIVITY CHECKLIST",null,null,null,null,null,null,"Community:",{"$f":"IF('310AC'!$I$1=0,\"\",'310AC'!$I$1)","v":""},{"$f":"IF(#REF!=0,\"\",#REF!)","v":{"$error":"#REF!"}}]
[]
[]
["Activity 320 (Map Information Service) Max. 90 points"]
["Activity 320 Credit Criteria and Documentation"]
[null,"(1)","Example of map or data source attached."]
[null,"(2)","Community receives credit for MI1 (prerequisite to receiving credit)."]
[null,"(3)","Information is volunteered when there is an inquiry."]
[null,"(4)","Service includes an opportunity for personal contact."]
[null,"(5)","Inquiry is responded to within a reasonable amount of time."]
[null,"(6)","Documentation that shows how the community publicizes the service each year."]
[null,"(7)","Explanation of how the community keeps the FIRM updated. This may be a verbal explanation at the"]
[null,null,"time of the verification visit."]
[null,"(8)","Community keeps copies of all FIRMs that have been in effect since 1999 or the date the community"]
[null,null,"applied for this credit."]
[null,"(9)","Record, copies of letters, or log of the service."]
[null,"(10)","If another agency or organization provides map information, documentation that the agency has "]
[null,null,"agreed to provide the service to all inquirers."]
[]
["Flood depth data (MI4) (20 points)"]
[null,"(1)","Example of map or data source attached."]
[]
["Special flood-related hazards (MI5) (20 points)"]
[null,"(1)","Example of map or data source attached."]
[]
["Historical flood information (MI6) (20 points)"]
[null,"(1)","Example of map or data source attached."]
[]
["Natural floodplain functions (MI7) (20 points)"]
[null,"(1)","Example of map or data source attached."]

{"sheet":"330AC","index":6,"n_rows":26,"n_cols":10,"rows_kept":26,"cut":false,"hidden":false,"merged":[[0,8,0,10],[3,0,3,10]]}
["330 ACTIVITY CHECKLIST",null,null,null,null,null,null,"Community:",{"$f":"IF('310AC'!$I$1=0,\"\",'310AC'!$I$1)","v":""},{"$f":"IF(#REF!=0,\"\",#REF!)","v":{"$error":"#REF!"}}]
[]
[]
["Activity 330 (Outreach Projects) Max. 350 points"]
["Outreach projects (OP) (200 points)"]
[null,"(1) a.","Copy of outreach projects that have been produced and disseminated every year, marked to show "]
[null,null,"where the credited topics appear. AND"]
[null,null,"At least one of the submittals cover the topic of flood insurance."]
[null,"b.","Documentation that the targeted outreach projects were disseminated to the target audience."]
[null,"c.","Completed 330 OP Worksheet. "]
[]
["Flood response preparations (FRP) (50 points)"]
[null,"(1) a.","Copy of the masters for the handouts, news releases, and other projects."]
[null,"b.","Written procedures that explain how the projects are to be copied and disseminated. "]
[null,"c.","Documentation that the FRP materials were reviewed and are still current and appropriate. "]
[null,"d.","Completed 330 FRP Worksheet."]
[]
["Program for Public Information (PPI) (80 points)"]
[null,"(1) a.","Copy of PPI document. AND"]
[null,"c.","Minutes of the meetings or other documentation of the committee members' participation."]
[null,"d.","Documentation that the PPI has been adopted by the community. "]
[null,"(2)","Documentation that the PPI document has been reviewed and updated annually."]
[null,"(3)","Technical reviewer's comments and score sheet on the PPI."]
[]
["Stakeholder delivery (STK) (50 points)"]
[null,"(1)   ","PPI identifies the stakeholder projects."]

{"sheet":"340AC","index":7,"n_rows":24,"n_cols":10,"rows_kept":24,"cut":false,"hidden":false,"merged":[[0,8,0,10],[3,0,3,10]]}
["340 ACTIVITY CHECKLIST",null,null,null,null,null,null,"Community:",{"$f":"IF('310AC'!$I$1=0,\"\",'310AC'!$I$1)","v":""},{"$f":"IF(#REF!=0,\"\",#REF!)","v":{"$error":"#REF!"}}]
[]
[]
["Activity 340 (Hazard Disclosure) Max. 80 points"]
["Disclosure of flood hazard (DFH) (50 points)"]
[null,"(1) a.","Copies of the hazard disclosure notice from five real estate agencies."]
[null,"b.","Notices clearly stating whether property is in the floodplain and, if so, that flood insurance is required."]
[null,"c.","If the notice states that a property is in the floodplain or in the SFHA, it also tells the inquirer about the "]
[null,null,"mandatory purchase requirement."]
[null,"d.","If the notice states that a property is in the floodplain or in the SFHA, it also tells the inquirer about the "]
[null,null,"mandatory purchase requirement."]
[null,"e.","If the property is in a designated Coastal Barrier Resource area, the notice advises that the NFIP flood "]
[null,null,"insurance is not available."]
[]
["Other disclosure requirements ODR (25 points)"]
[null,"(1)","Copy of the law or ordinance that requires one or more disclosure methods prior to the time of sale or "]
[null,null,"rental of a property. "]
[]
["Real estate agents’ brochure (REB) (12 points)"]
[null,"(1)","Copy of the brochure or other document that real estate agents make available. "]
[]
["Disclosure of other hazards (DOH) (8 points)"]
[null,"(1)","Documentation submitted for credit under Section 342.a (DFH), is marked to show how the other flood-"]
[null,null,"related hazards are disclosed. "]

{"sheet":"350AC","index":8,"n_rows":24,"n_cols":10,"rows_kept":24,"cut":false,"hidden":false,"merged":[[5,15,5,23],[8,15,8,23],[0,8,0,10],[3,0,3,10]]}
["350 ACTIVITY CHECKLIST",null,null,null,null,null,null,"Community:",{"$f":"IF('310AC'!$I$1=0,\"\",'310AC'!$I$1)","v":""},{"$f":"IF(#REF!=0,\"\",#REF!)","v":{"$error":"#REF!"}}]
[]
[]
["Activity 350 (Flood Protection Information) Max. 125 points"]
["Flood protection library (LIB) (10 points)"]
[null,"(1)","List of the publications that have been cataloged in the community’s library or library system."]
[]
["Locally pertinent documents (LPD) (10 points)"]
[null,"(1)","Copy of the law or ordinance that requires one or more disclosure methods prior to the time of sale or "]
[null,null,"rental of a property. "]
[]
["Flood protection website (WEB) (105 points)"]
["WEB Credit Criteria and Documentation"]
[null,"(1)","Flood information home page is readily found listed and linked on the community home page or using "]
[null,null,"the website's search feature."]
[null,"(2)","Flood information home page has directory of the flood protection information provided, along with links "]
[null,null,"to the appropriate pages."]
[null,"(3)","If a page discusses a creditable topic and the community provides a service related to that topic, the "]
[null,null,"website informs the readers about the service."]
[null,"(4)","Link to FloodSmart.gov or FEMA's flood insurance page (www.fema.gov/business/nfip)."]
[null,"(5)  a.","Statement that the community has checked the website, fixed any broken lings, and confirmed content "]
[null,null,"is still current and pertinent."]
[null,"b.","[Required only for the extra PPI credit] Annual report prepared by the PPI committee that evaluates the "]
[null,null,"service includes the status of the website projects."]

{"sheet":"350WEB1","index":9,"n_rows":28,"n_cols":7,"rows_kept":28,"cut":false,"hidden":true,"merged":[[7,0,9,0],[7,5,9,5],[7,6,9,6],[0,5,0,6],[1,5,1,6],[2,5,2,6],[5,0,5,6],[6,1,6,2],[6,3,6,4],[6,5,6,6],[10,0,12,0],[10,5,13,6],[12,1,13,1],[12,2,13,2],[14,0,15,0],[14,5,17,6],[16,0,17,0],[16,1,17,1],[16,2,17,2],[25,0,27,0],[25,1,27,2],[25,5,27,6],[18,0,20,0],[19,1,20,1],[19,2,20,2],[19,5,20,5],[19,6,20,6],[21,0,24,0],[21,5,24,6],[23,1,24,1],[23,2,24,2]]}
[null,null,null,null,"Community:",{"$f":"IF('310AC'!I1=0,\"\",'310AC'!I1)","v":""}]
["350 WEB1 SCORING GUIDE"]
[]
["Enter the point value for each subtopic below:"]
[]
["WEB1 Scoring Guide"]
["Topic","1 point for each of the following",null,"2 points for each of the following",null,"Full Credit"]
["1.  Know your flood hazard",null,"Names of bodies of water",null,"Hazard description (e.g., flash flooding)",null,"Link to a local (not FEMA) site that provides hazard information by address"]
[null,null,"Floodplain map ",null,"Information on past floods"]
[null,null,"Other information",null,"Detailed floodplain map (e.g., with parcels or buildings identified)"]
["2.  Insure your property for your flood hazard     ",null,"Homeowners insurance excludes flood",null,"Facts of coverage (structural, contents)"]
[null,null,"NFIP is available in the community",null,"Rating information"]
[null,null,"30 day waiting period",null,"Link to FloodSmart or FEMA.gov’s NFIP page"]
[null,null,null,null,"Names of local insurance agents"]
["3.  Protect people from the hazard",null,"Don’t drive in flooded areas",null,"Safety tips for bldgs. (shutting off gas, etc.) "]
[null,null,"Flood warning signals",null,"Evacuation routes and shelters "]
["(Note:  there must be different messages than those receiving WEB3 credits)",null,"Link to the emergency response plan",null,"Safety tips for evacuation"]
[null,null,null,null,"Map or information on areas predicted to flood"]
["4.  Protect your property from the hazard",null,"Discussion only of wind/hurricane damage",null,"Ways to permanently retrofit a building",null,"Detailed discussion of permanent retrofit measures"]
[null,null,"Importance of maintaining the drainage system",null,"Emergency floodproofing measures ",null,"Link to a locally pertinent property protection website or reference (e.g., FEMA’s “Six Ways to Protect Your Home”) "]
[null,null,null,null,"How to report dumping in the drainage system"]
["5.  Build responsibly",null,"All floodplain development needs a local permit",null,"Summary of the rules for new construction"]
[null,null,"Name, address or # of permit office",null,"Substantial improvement rules"]
[null,null,"How to report illegal floodplain development",null,"Substantial damage rules"]
[null,null,null,null,"Link to relevant building code sections or the floodplain management ordinance "]
["6.  Protect natural floodplain functions",null,null,null,"Description of the area’s natural functions "]
[null,null,null,null,"Regulations that protect natural functions "]
[null,null,null,null,"Map of natural areas "]

{"sheet":"360AC","index":10,"n_rows":26,"n_cols":10,"rows_kept":26,"cut":false,"hidden":false,"merged":[[0,8,0,10],[3,0,3,10]]}
["360 ACTIVITY CHECKLIST",null,null,null,null,null,null,"Community:",{"$f":"IF('310AC'!$I$1=0,\"\",'310AC'!$I$1)","v":""},{"$f":"IF(#REF!=0,\"\",#REF!)","v":{"$error":"#REF!"}}]
[]
[]
["Activity 360 (Flood Protection Assistance) Max. 110 points"]
["Property protection advice (PPA) (40 points)"]
[null,"(1) a.","If the person providing property protection advice is not a community employee, a letter stating that the "]
[null,null,"person and/or agency has agreed to do the work."]
[null,"b.","Description of the technical qualifications of all person who are providing the service."]
[null,"c.","Documentation that shows how the community publicizes the service each year."]
[null,"d.","Records of the service."]
[]
["Protection advice provided after a site visit (PPV)  (45 points)"]
[null,"(1) a.","Names and titles of the people making the site visits."]
[null,"b.","The PPA publicly documentation, notes that the community will visit the site if requested."]
[null,"c.","PPA service records include records of the site visits and the advice provided."]
[]
["Financial assistance advice (FAA)  (15 points)"]
[null,"(1) a.","If not a community employee, letter stating that the person and/or agency providing financial assistance "]
[null,null,"advice has agreed to do the work."]
[null,"b.","Documentation showing how the service is publicized."]
[null,"c.","Record or memo to the files that reviews the list of sources of assistance."]
[null,"d.","Copies of materials used to explain the programs (if any are used)."]
[null,"e.","Records of the service provided."]
[]
["Advisor training (TNG) (10 points)"]
[null,"(1)","Copy of the certificate of course attendance."]

{"sheet":"370AC","index":11,"n_rows":26,"n_cols":10,"rows_kept":26,"cut":false,"hidden":false,"merged":[[5,2,5,10],[6,2,6,10],[7,2,7,10],[8,2,8,10],[0,8,0,10],[3,0,3,10]]}
["370 ACTIVITY CHECKLIST",null,null,null,null,null,null,"Community:",{"$f":"IF('310AC'!$I$1=0,\"\",'310AC'!$I$1)","v":""},{"$f":"IF(#REF!=0,\"\",#REF!)","v":{"$error":"#REF!"}}]
[]
[]
["Activity 370 (Flood Insurance Promotion)  Max. 110 points"]
["Flood insurance coverage assessment (FIA) (15 points)"]
[null,"(1) a.","The flood insurance coverage assessment must follow the 7 step process."]
[null,"b.","Copy of the assessment document or the updated assessment. AND"]
[null,"c.","Documentation that the document was submitted to the community's governing body."]
[null,"(2)","Technical reviewer's comments and score sheet."]
[]
["Coverage improvement plan (CP) (15 points)"]
[null,"(1) a.","Copy of the coverage improvement plan document or the updated plan. AND"]
[null,"b.","Documentation that the document was submitted to the community's governing body."]
[null,"(2)","Technical reviewer's comments."]
[]
["Coverage improvement plan implementation (CPI) (60 points)"]
[null,"(1) a.","Copies of outreach projects that have been produced and disseminated."]
[null,null,"These projects are the same as the ones listed in the coverage improvement plan.  "]
[null,"b.","Projects that demonstrate that the community's elected leadership encourages people to purchase or "]
[null,null,"increase their flood insurance coverage are so marked."]
[]
["Technical assistance (TA) (20 points)"]
[null,"(1) a.","If not a community employee, letter stating that the person and/or agency providing flood insurance "]
[null,null,"advice has agreed to do the work."]
[null,"b.","Copy of how the service is publicized."]
[null,"c.","Records of the service provided."]

{"sheet":"410AC","index":12,"n_rows":43,"n_cols":10,"rows_kept":43,"cut":false,"hidden":false,"merged":[[0,8,0,10],[3,0,3,10]]}
["410 ACTIVITY CHECKLIST",null,null,null,null,null,null,"Community:",{"$f":"IF('310AC'!$I$1=0,\"\",'310AC'!$I$1)","v":""},{"$f":"IF(#REF!=0,\"\",#REF!)","v":{"$error":"#REF!"}}]
[]
[]
["Activity 410 (Floodplain Mapping) Max. 802 points"]
["Activity 410 Credit Documentation"]
[null,"(1)","Technical reviewer's score sheet and comments."]
[]
["New studies (NS) (290 points)"]
[null,"(1) a.","Copy of ordinance or law that adopts the flood study for regulatory purposes. AND/OR"]
[null,null,"Copy of ordinance that requires site-specific flood elevation or floodway studies."]
[null,"b.","Copy of each study and the study's floodplain map.  "]
[null,"c.","Development permit records showing how the new data are used."]
[null,"d.","Map showing area covered by each new study (NS) study."]
[null,"e.","[Lines 1, 3, and 4 on pg 410-11] Evidence that the study, if done for a length of stream or shoreline, "]
[null,null,"has been submitted to FEMA"]
[null,"f.","[Lines 2a and 2b on pg 410-11] Statement that technique used in the study or the ordinance language "]
[null,null,"meets FEMA mapping standards. "]
[null,"g.","Documentation showing how the area of the SFHA at the time of adoption of the study (aSFT) and the "]
[null,null,"areas of NS were calculated."]
[]
["Leverage (LEV) (multiplier)"]
[null,"(1)","Copy of community's determination of how LEV was determined.  "]
[]
["State review (SR) (60 points)"]
[null,"(1)","Documentation that the state reviewed and accepted the study or analysis techniques for which credit "]
[null,null,"is being requested. "]
[]
["Higher study standards (HSS) (160 points)"]
[null,"(1)","EITHER a copy of the text from the Flood Insurance Study (FIS), OR "]
[null,null,"Map showing the area covered by the HSS study."]
[]
["More restrictive floodway standard (FWS) (110 points)"]
[null,"(1)","Copy of the floodway data table and text from the current FIS or other study describing the floodway "]
[null,null,"standards.  "]
[]
["Mapping for special flood-related hazards (MAPSH)  (50 points)"]
[null,"(1) a.","A map of the special flood-related hazards."]
[null,"b.","A copy of the ordinance adopting the map for regulating the special flood-related hazard."]
[null,"c.","Engineer's statement that the community's special flood-related hazard area maps and related data "]
[null,null,"still reflect current conditions."]
[]
["Cooperating Technical Partner (CTP) (132 points)"]
[null,"(1)","A copy of the Cooperating Technical Partner agreement, if not on the FEMA website. "]

{"sheet":"420AC","index":13,"n_rows":55,"n_cols":10,"rows_kept":55,"cut":false,"hidden":false,"merged":[[28,2,28,10],[29,2,29,10],[30,2,30,10],[31,2,31,10],[0,8,0,10],[3,0,3,10]]}
["420 ACTIVITY CHECKLIST",null,null,null,null,null,null,"Community:",{"$f":"IF('310AC'!$I$1=0,\"\",'310AC'!$I$1)","v":""},{"$f":"IF(#REF!=0,\"\",#REF!)","v":{"$error":"#REF!"}}]
[]
[]
["Activity 420 (Open Space Preservation) Max. 2,020 points"]
["Open space preservation (OSP) (1,450 points)"]
[null,"(1)","Parcel must be “open space,” meaning no buildings, storage, filling, or other encroachment."]
[null,"(2)","Parcel must be “preserved” as open space. "]
[null,"(3) a.","Description of the parcels preserved as open space. (Map and a list noting which parcels also qualify"]
[null,null,"for DR, NFOS, or SHOS credit)."]
[null,"b.","For each OSP parcel because of ownership, documentation that the owner will keep the parcel open. "]
[null,"c.","For each OSP parcel because of regulatory requirement, ordinance language prohibiting structures"]
[null,null,"and fill."]
[null,"d.","For each OSP parcel outside the SFHA, documentation showing floodplain regulations are in effect in "]
[null,null,"the area. "]
[null,"e.","Impact adjustment map."]
[]
["Deed restrictions (DR) (50 points)"]
[null,"(1) a.","No new buildings may be allowed on the property."]
[null,"b.","The restriction runs with the land."]
[null,"c.","The restriction cannot be changed by a future owner; only by a court for just cause."]
[null,"(2) a.","List of parcels that have qualifying deed restrictions, and copies of the deeds requested. "]
[null,"b.","Impact adjustment map used for OSP credit, with “DR” marked on the qualifying areas."]
[]
["Natural functions open space (NFOS) (170 points)"]
[null,"(1)","Property must be managed to stay in the natural state."]
[null,"(2) a.","[NFOS1] Report or plan prepared by a qualified agency, OR"]
[null,"b.","Memo or letter signed by a professional in a natural science. "]
[null,"c.","Impact adjustment map used for OSP credit, with “NFOS#” marked on the qualifying areas."]
[null,"(3)","[For NFOS2]  Copy of the plan and resolution or other formal adoption action. "]
[null,"(4)","[For NFOS3] List of relevant species and references"]
[null,"(5)","[For NSOF4] Copy of the corridor plan, or section designating the relevant corridor."]
[null,"(6)","[For NFOS5]  Copy or  photograph of the educational material."]
[]
["Special flood-related hazards open space (SHOS) (50 points)"]
[null,"(1)","The community’s special flood-related hazards credits must meet the credit criteria described in the "]
[null,null,"separate publications on those hazards. "]
[null,"(2)","Map showing special hazard subject to the open space, or calculations of the area."]
["Open space incentives (OSI) (250 points)"]
[null,"(1) a.","For OSI 1-5, each regulatory requirement and for OSI 6-7, documentation supporting the credit."]
[null,"b.","Impact adjustment map used for OSP credit, with “OSI” marked on the qualifying areas. "]
[null,"c.","For areas outside the SFHA, documentation flood regulations are in effect in these areas. "]
[null,"d.","Site plans and final plats that document how the regulation has been applied. "]
[null,"e. ","Technical reviewer's score sheet."]
[]
["Low-density zoning (LZ) (600 points)"]
[null,"(1)","The lands to be credited for LZ must not qualify for OSP credit. "]
[null,"(2) a.","For each LZ value, the zoning ordinance language that explains the density requirement. "]
[null,"b.","The impact adjustment map used for OSP credit, with “LZ#” marked on the qualifying areas."]
[null,"c.","For areas outside the SFHA, documentation flood regulations are in effect in these areas. "]
[]
["Natural shoreline protection (NSP) (120 points)"]
[null,"(1) a.","[For credit for protection of natural shorelines]  A copy of the regulations (private property) or policy "]
[null,null,"(public property) on which the credit is based."]
[null,"b.","[For restoration credit]  A description of the restoration program or projects. "]
[null,"c.","An impact adjustment map and calculations (if optional minimum is not used). "]

{"sheet":"430AC","index":14,"n_rows":82,"n_cols":10,"rows_kept":82,"cut":false,"hidden":false,"merged":[[0,8,0,10],[3,0,3,10]]}
["430 ACTIVITY CHECKLIST",null,null,null,null,null,null,"Community:",{"$f":"IF('310AC'!$I$1=0,\"\",'310AC'!$I$1)","v":""},{"$f":"IF(#REF!=0,\"\",#REF!)","v":{"$error":"#REF!"}}]
[]
[]
["Activity 430 (Higher Regulatory Standards) 2,042 points"]
["Activity 430 Credit Documentation"]
[null,"(1)","State or local law or ordinance language that adopts the regulatory standard."]
[null,"(2)","Impact adjustment map. See Section 431.c."]
[null,"(3)","[For credit for regulating flood-prone areas outside the SFHA]  Documentation that shows that"]
[null,null,"regulations are in effect outside the SFHA (i.e., the regulatory floodplain). "]
[null,"(4)","Development plans and/or permit records documenting how the regulation has been applied. "]
[]
["Development limitations (DL) (1,330 points)"]
[null,"(1)     ","The activity documentation requirements listed above (Section 431.d)."]
[]
["Freeboard (FRB) (500 points)"]
[null,"(1)     ","The activity documentation requirements listed above (Section 431.d)."]
[]
["Foundation protection (FDN) (80 points)"]
[null,"(1)     ","The activity documentation requirements listed above (Section 431.d)."]
[]
["Cumulative substantial improvements (CSI) (90 points)"]
[null,"(1)     ","The activity documentation requirements listed above (Section 431.d)."]
[null,"(2)","A list of all permits for building improvements or repairs in the regulatory floodplain issued since the"]
[null,null,"last visit. Include both substantial and non-substantial improvement permits."]
[]
["Lower substantial improvements threshold (LSI) (20 points)"]
[null,"(1)     ","The activity documentation requirements listed above (Section 431.d)."]
[null,"(2)","A list of all permits for building improvements or repairs in the regulatory floodplain issued since the"]
[null,null,"last visit. Include both substantial and non-substantial improvement permits."]
[]
["Protection of critical facilities (PCF) (80 points)"]
[null,"(1)     ","The activity documentation requirements listed above (Section 431.d)."]
[null,"(2) a. ","An impact adjustment map, showing the 500-year floodplain."]
[null,"b. ","[For extra credit for regulating floodprone areas outside the 500-year floodplain]  Documentation that "]
[null,null,"shows that floodplain regulations are in effect in these areas. "]
[]
["Enclosure limits (ENL) (240 points)"]
[null,"(1)     ","The activity documentation requirements listed above (Section 431.d)."]
[null,"(2) a. ","Elevation certificates, copies of nonconversion agreements, and other permit records that document "]
[null,null,"how the regulation has been applied."]
[null,"b. ","[For credit for (3)(a) and (3)(b)]  Copies of inspection records."]
[]
["Building code (BC) (100 points)"]
[null,"(1)     ","The activity documentation requirements listed above (Section 431.d)."]
[null,"(2) a. ","The entire I-Code adopted. If amendments are made, the language will be reviewed to determine credit:"]
[null,"b. ","The version of the I-Code series must be no more than six years old."]
[null,"(3) a. ","[For BC1 credit] State or local law or ordinance language that adopts the building code. "]
[null,"b. ","Permit records that will document that the code is being enforced. "]
[null,"(4)","[For BC2] No documentation is required. (BCEGS classifications obtained by ISO)."]
[]
["Local drainage protection (LDP) (120 points)"]
[null,"(1)     ","The activity documentation requirements listed above (Section 431.d)."]
[]
["Manufactured home parks (MHP) (15 points)"]
[null,"(1)     ","The activity documentation requirements listed above (Section 431.d)."]
[null,"(2) a. ","Elevation certificates and anchoring records that document how the regulation has been applied. "]
[null,"b. ","Documentation that shows at least one manufactured home park has a regulatory flood depth greater "]
[null,null,"than three feet above grade."]
[]
["Coastal A Zones (CAZ) (650 points)"]
[null,"(1)     ","The activity documentation requirements listed above (Section 431.d)."]
[null,"(2) a. ","Impact adjustment map. If a community-derived LiMWA is used, the data supporting the delineation "]
[null,null,"must be supplied to the ISO/CRS Technical Reviewer for approval."]
[]
["Special flood-related hazards regulations (SHR) (100 points)"]
[null,"(1)     ","The activity documentation requirements listed above (Section 431.d)."]
[null,"(2)     ","The community’s special flood-related hazards credits must meet the credit criteria described in the "]
[null,null,"separate publications on those hazards. "]
[]
["Other higher standards (OHS) (100 points)"]
[null,"(1)     ","The activity documentation requirements listed above (Section 431.d)."]
[]
[]
["State-mandated regulatory standards (SMS) (20 points)"]
[null,"(1)     ","The community must receive credit for the element before it gets the SMS bonus points. "]
[]
["Regulations administration (RA) (67 points)"]
[null,"(1) a.       ","[For RA1 credit]  A copy of the certificate of course attendance. "]
[null,"b.","[For credit for RA3 or RA4]  Inspection records that show how each item was checked. For RA3, "]
[null,null,"records must include copies of the photographs and elevation surveys. "]
[null,"c.","[For CFM and IAS accreditation]  No documentation is needed from the community. The status is "]
[null,null,"verified by checking names on the websites of the Association of State Floodplain Managers and IAS. "]

{"sheet":"440AC","index":15,"n_rows":25,"n_cols":10,"rows_kept":25,"cut":false,"hidden":false,"merged":[[3,0,3,10],[0,8,0,10]]}
["440 ACTIVITY CHECKLIST",null,null,null,null,null,null,"Community:",{"$f":"IF('310AC'!$I$1=0,\"\",'310AC'!$I$1)","v":""},{"$f":"IF(#REF!=0,\"\",#REF!)","v":{"$error":"#REF!"}}]
[]
[]
["Activity 440 (Flood Data Maintenance) Max. 222 points"]
["Additional map data (AMD) (160 points)"]
[null,"(1)    ","The map or data base must be used regularly by the community’s regulatory staff. "]
[null,"(2)    ","New data, including annexations, new subdivision maps, flood insurance restudies, LOMRs, LOMAs, "]
[null,null,"and site-specific studies must be added at least annually."]
[null,"(3) a.","Copies of the maps or data base that clearly show the items to be credited. "]
[null,"b.","If applicable, the impact adjustment map discussed in Section 403. "]
[]
["Firm maintenance (FM) (15 points)"]
[null,"(1) a.       ","Indexes from all past FIRMs and Flood Boundary and Floodway Maps, and the cover of each past "]
[null,null,"Flood Insurance Study. "]
[]
["Benchmark maintenance (BMM) (27 points)"]
[null,"(1) a.       ","The list of the benchmarks and/or CORS."]
[null,"b.","Data for the creditable benchmarks in the NSRS or the community’s publicly accessible data base. "]
[null,null,"Must include key data (location, description of benchmarks, elevation, datum, etc...)"]
[null,"c.","Impact adjustment map and calculations. Must show those SFHAs where base flood elevations are "]
[null,null,"available, locations of the benchmarks (BMM1 credit), or the locations of the CORS (BMM2 credit). "]
[]
["Erosion data maintenance (EDM) (20 points)"]
[null,"(1) a.       ","The community’s credits must meet the credit criteria described in the separate publications on coastal"]
[null,null,"hazards."]

{"sheet":"450AC","index":16,"n_rows":42,"n_cols":10,"rows_kept":42,"cut":false,"hidden":false,"merged":[[0,8,0,10],[3,0,3,10]]}
["450 ACTIVITY CHECKLIST",null,null,null,null,null,null,"Community:",{"$f":"IF('310AC'!$I$1=0,\"\",'310AC'!$I$1)","v":""},{"$f":"IF(#REF!=0,\"\",#REF!)","v":{"$error":"#REF!"}}]
[]
[]
["Activity 450 (Stormwater Management Regulations) Max. 755 points"]
["Stormwater management regulations (SMR) (280 points)"]
[null,"(1)","Require that peak runoff from new development be no greater than the runoff from the site in its pre-"]
[null,null,"development condition. "]
[null,"(2) a.       ","Copy of the ordinance or legal language that regulates surface water runoff from new development in "]
[null,null,"the watershed (marked \"SMR\", \"SZ\", and \"DS\"). "]
[null,"b.","Copy of the ordinance exempting some properties from the requirements. "]
[null,"c.","Copies of the engineering reports showing how developers meet the standards. "]
[null,"d.","Documentation that watersheds outside the jurisdiction of the community are regulated."]
[null,"e.","Impact adjustment map showing watershed boundaries and stormwater management jurisdictions."]
[null,"f.","Technical reviewer's score sheet and comments."]
[null,"(3)","Copy of the ordinance requiring that LID techniques be used to manage stormwater quantity prior to"]
[null,null,"utilizing conveyance or detention facilities (marked \"LID\")."]
[null,"(4) a.       ","Copy of ordinance requiring at least annually that owners have their facilties inspected by a licensed "]
[null,null,"PE, perform maintenance recommended by the engineer and submit an annual inspection report, OR"]
[null,"b.","If the community requires the owners to allow inspections of their facilities, either the owners must "]
[null,null,"perform the maintenance or the community (or other agency) must have authority to do it, OR"]
[null,"c.","All facilities are dedicated to the community. (In a-c, the ordinance must be marked \"PUB\")"]
[]
["Watershed master plan (WMP) (315 points)"]
[null,"(1) a.       ","Documentation that the plan has been adopted by the community. "]
[null,"b.","Copies of the pages of the plan that show minimum criteria are met. "]
[null,"c.","Ordinance pages credited under SMR showing regulatory standards are based on the plan. "]
[null,"d.","[For WMP8]  Copy of ordinance adopting the dedicated funding source and a budget describing how "]
[null,null,"the money was spent during the past fiscal year. "]
[null,"e.","If the plan(s) is more than five years old, an evaluation report that addresses whether the plan(s) is "]
[null,null,"still based on appropriate data and effectively manages stormwater runoff."]
[null,"f.","Watershed impact adjustment map."]
[null,"g.","If watershed areas outside the community's jurisdiction are included, documentation that these areas "]
[]
[" Erosion and sedimentation control regulations (ESC) (40 points)"]
[null,"(1) a.       ","Copy of ordinance demonstrating the types of development and what size of development are "]
[null,null,"required to provide erosion and sediment control during construction (marked \"ESC\")."]
[null,"b.","Development and building permit records that demonstrate enforcement of the regulation. "]
[]
["Water quality regulations (WQ) (20 points)"]
[null,"(1) a.       ","The ordinance or law language that requires new development to implement appropriate best "]
[null,null,"management activities to improve water quality (marked \"WQ\"). "]
[null,"b.","Development and building permit records that demonstrate enforcement of the regulation. "]

{"sheet":"501AC","index":17,"n_rows":26,"n_cols":10,"rows_kept":26,"cut":false,"hidden":false,"merged":[[0,8,0,10],[3,0,3,10]]}
["501 ACTIVITY CHECKLIST",null,null,null,null,null,null,"Community:",{"$f":"IF('310AC'!$I$1=0,\"\",'310AC'!$I$1)","v":""},{"$f":"IF(#REF!=0,\"\",#REF!)","v":{"$error":"#REF!"}}]
[]
[]
["501 (The Repetitive Loss List)"]
["Category A"]
[null,"(1)      ","A community that has no repetitive loss properties, or whose repetitive loss properties all have been"]
[null,null,"mitigated."]
[]
["Category B"]
[null,"(1)  ","A community that has no repetitive loss properties, or whose repetitive loss properties all have been"]
[null,null,"mitigated."]
[null,"(2)  ","Signed copy of CC-RL"]
[null,"(3)  ","Copies of AW-501s"]
[null,"(4) a.","A map of the repetitive loss area(s)."]
[null,"b.","A review and description of its repetitive loss problem."]
[null,"c.","A copy of the annual outreach project to those addrsesses."]
[]
["Category C"]
[null,"(1)","A community that has no repetitive loss properties, or whose repetitive loss properties all have been"]
[null,null,"mitigated."]
[null,"(2)","Signed copy of CC-RL"]
[null,"(3)","Copies of AW-501s"]
[null,"(4) a.","A map of the repetitive loss area(s)."]
[null,"b.","A review and description of its repetitive loss problem."]
[null,"c.","A copy of the annual outreach project to those addrsesses."]
[null,"(5)","Prepare a floodplain management plan or area analyses for its repetitive loss area(s)."]

{"sheet":"510AC","index":18,"n_rows":40,"n_cols":10,"rows_kept":40,"cut":false,"hidden":false,"merged":[[0,8,0,10],[3,0,3,10]]}
["510 ACTIVITY CHECKLIST",null,null,null,null,null,null,"Community:",{"$f":"IF('310AC'!$I$1=0,\"\",'310AC'!$I$1)","v":""},{"$f":"IF(#REF!=0,\"\",#REF!)","v":{"$error":"#REF!"}}]
[]
[]
["Activity 510 (Floodplain Management Planning) Max. 622 points"]
["Activity 510 Credit Documentation"]
[null,"(1)","Technical reviewer's score sheet and comments."]
[]
["Floodplain management planning (FMP) (382 points)"]
[null,"(1)  ","The planning process must receive some credit under each of the 10 steps. (FMP Checklist)"]
[null,"(2) a.       ","Copy of the plan or updated plan to be credited. "]
[null,"b.","[For Step 1(b)] The plan or a separate document showing which department representatives implement,"]
[null,null,"or have expertise in, which of the six categories of mitigation measures."]
[null,"c.","[For Step 1(c)] Copy of the resolution or other official action taken by the governing body to create or "]
[null,null,"recognize the planning process and the committee’s membership."]
[null,"d.","[For Step 2(a)] Names of committee members, titles, and represented organizations must be listed in "]
[null,null,"the plan and separate materials provided documenting  meeting attendance."]
[null,"e.","[For Step 2(b), (c), or (d)] Copies of the publicity for the public meetings. "]
[null,"f.","[For Step 3(a)] The plan must note where the information from the studies and reports was used and "]
[null,null,"includes a list of all the documents reviewed. "]
[null,"g.","[For Step 3(b)] Record of the contacts and meetings. "]
[null,"h.","Copy of the resolution or other formal adoption action by the governing body."]
[]
["Repetitive loss area analysis (RLAA) (140 points)"]
[null,"(1) a.       ","Copy of each repetitive loss area analysis report or update of an earlier report (see Step 5). "]
[null,"b.","Documentation showing how the owners or residents of the areas were notified (see Step 1)."]
[null,"c.","Documentation showing how the analysis was made available to the media and the public."]
[null,"d.","A copy of the resolution or other formal action by the governing body that adopts the area analysis or "]
[null,null,"accepts changes in subsequent updates."]
[]
["Natural floodplain functions plan (NFP) (100 points)"]
[null,"(1) a.       ","The plan may cover more than one community, but an impact is needed."]
[null,"b.","The plan must be updated at least once every 10 years. "]
[null,"c.","The plan must include action items for protecting identified species of interest and natural floodplain. "]
[null,null,"functions."]
[null,"b.","No credit for a plan that addresses water quality issues to meet NPDES requirements. "]
[null,"(2) a.       ","[For NFP1] A plan must include a comprehensive inventory of the natural floodplain habitat."]
[null,"(3) a.       ","[For NFP2] Other plans that could be single-issue or single-species plans or plans that cover only one "]
[null,null,"area of the community’s floodplain."]
[null,"(4) a.       ","Copy of each natural floodplain functions plan or update to a plan. "]
[null,"b.","A copy of the resolution or other formal adoption action."]

{"sheet":"520AC","index":19,"n_rows":30,"n_cols":10,"rows_kept":30,"cut":false,"hidden":false,"merged":[[0,8,0,10],[3,0,3,10]]}
["520 ACTIVITY CHECKLIST",null,null,null,null,null,null,"Community:",{"$f":"IF('310AC'!$I$1=0,\"\",'310AC'!$I$1)","v":""},{"$f":"IF(#REF!=0,\"\",#REF!)","v":{"$error":"#REF!"}}]
[]
[]
["Activity 520 (Acquisition and Relocation) Max. 2,250 points"]
["Activity 520 Credit Documentation"]
[null,"(1)     ","Documentation of the implementation date for each project for which new credit is requested. "]
[null,"(2)     ","A completed CC-520EHP is needed for projects implemented after April 1, 2013."]
[null,"(3)     ","Map showing location of parcels where buildings have been demolished or relocated since the initial "]
[null,null,"FIRM and the total number of such buildings (bAR, bRL, bSRL, bCF and bVZ). "]
[null,"(4)     ","Calculations showing the total number of buildings in the SFHA (bSF)."]
[null,"(5)     ","Identification of which properties were cleared with support from FEMA’s FMA program."]
[]
["Buildings acquired or relocated (bAR)"]
[null,"(1)     ","Documentation showing that floodplain regulations are in effect in the area."]
[]
["Buildings on the repetitive loss list (bRL)"]
[null,"(1)     ","Documentation and a marked-up form AW-501 to update the repetitive loss data base."]
[]
["Severe Repetitive Loss properties (bSRL)"]
[null,"(1)     ","Documentation and a marked-up form AW-501 to update the repetitive loss data base."]
[]
["Critical facilities (bCF)"]
[null,"(1) a.       ","Description of the demolished or relocated critical facility demonstrating that it meets the definition for "]
[null,null,"CRS purposes. "]
[null,"b.","Documentation that demonstrates that it has been relocated outside the 500-year floodplain."]
[null,"c.","Documentation showing that floodplain regulations are in effect in the area."]
[]
["Buildings located in the V Zone or coastal A Zone (bVZ)"]
[null,"(1)  ","The map specified in the activity credit documentation must include any coastal A Zone or LiMWA "]
[null,null,"regulated areas, if creditable buildings are located in those areas. "]

{"sheet":"530AC","index":20,"n_rows":33,"n_cols":10,"rows_kept":33,"cut":false,"hidden":false,"merged":[[0,8,0,10],[3,0,3,10]]}
["530 ACTIVITY CHECKLIST",null,null,null,null,null,null,"Community:",{"$f":"IF('310AC'!$I$1=0,\"\",'310AC'!$I$1)","v":""},{"$f":"IF(#REF!=0,\"\",#REF!)","v":{"$error":"#REF!"}}]
[]
[]
["Activity 530 (Flood Protection) Max. 1,600 points"]
["Activity 530 Credit Documentation"]
[null,"(1)     ","Documentation of the implementation date for each project for which new credit is requested. "]
[null,"(2)     ","A completed CC-530EHP is needed for projects implemented after April 1, 2013."]
[null,"(3)     ","List of addresses or project areas requiring a CC-530-EHP."]
[null,"(4)     ","A map showing the location of all protected buildings for which credit is being requested. "]
[null,"(5)     ","[For scoring Option 2] Calculations showing the total number of buildings in the SFHA (bSF). "]
[null,"(6)     ","[For protecting non-repetitive loss buildings outside the SFHA] Documentation that shows that floodplain "]
[null,null,"regulations are in effect in those areas."]
[]
["Retrofitting (elevation, dry floodproofing, wet floodproofing, sewer backup, barriers) (1,600 points)"]
[null,"(1)    ","Retrofitting designs for buildings located in high hazard areas must be certified by a registered design "]
[null,null,"professional."]
[null,"(2) a.       ","[For elevation projects] Copies of the Elevation Certificate for each elevated building."]
[null,"b.","[For projects other than elevation] List of all buildings and a signed CC-530."]
[null,"c.","Completed 530 Credit Worksheet."]
[]
["Flood Control (channel modifications, storage facilities) (1,000 points)"]
[null,"(1) a.       ","Design and construction must have been certified by a licensed professional engineer."]
[null,"b.","Responsible agency is implementing an operations and maintenance plan prepared by a licensed "]
[null,null,"professional engineer."]
[null,"c.","The community must ensure that the impact of future development will not adversely affect the project’s "]
[null,null,"flood protection level. "]
[null,"d.","Additional documentation may be required that are unique to a community or region."]
[null,"e.","The project must protect buildings to at least the 25-year flood level."]
[null,"(2) a.       ","Level of flood protection for each building to be credited, both before and after the project."]
[null,"b.","[For above ground storage facilities] A letter from the state dam safety office stating that the structure "]
[null,null,"meets all state dam safety requirements. "]
[null,"c.","If the project lowers the base flood elevations on the FIRM, a copy of the LOMR."]
[null,"d.","Completed 530 Credit Worksheet."]

{"sheet":"540AC","index":21,"n_rows":52,"n_cols":10,"rows_kept":52,"cut":false,"hidden":false,"merged":[[0,8,0,10],[3,0,3,10]]}
["540 ACTIVITY CHECKLIST",null,null,null,null,null,null,"Community:",{"$f":"IF('310AC'!$I$1=0,\"\",'310AC'!$I$1)","v":""},{"$f":"IF(#REF!=0,\"\",#REF!)","v":{"$error":"#REF!"}}]
[]
[]
["Activity 540 (Drainage System Maintenance) Max. 570 points"]
["Channel debris removal (CDR) (200 points)"]
[null,"(1) a.       ","The community (or other non-federal agency) must have a program to inspect its drainage facilities "]
[null,null,"annually, upon receiving a complaint, and after each major storm. "]
[null,"b.","Action must be taken after an inspection identifies a need for maintenance or cleaning."]
[null,"(2) a.       ","A completed CC-540EHP."]
[null,"b.","Map of community’s drainage maintenance area with the conveyance system delineated and its "]
[null,null,"components labeled."]
[null,"c.","A complete inventory of the components of the community’s conveyance system."]
[null,"d.","Copy of the procedures that explain the community’s routine inspection and debris removal program."]
[null,"e.","Copies of records that show inspections were conducted and maintenance was performed when "]
[null,null,"inspections revealed problems."]
[]
["Problem site maintenance (PSM) (50 points)"]
[null,"(1) a.       ","Copy of the procedures that explain the community’s problem site inspection and maintenance. "]
[null,"b.","Inventory for CDR, annotated to show which components are problem sites."]
[null,"c.","Copies of records that show inspections were conducted and maintenance was performed when "]
[null,null,"inspections revealed problems."]
[]
["Capital improvement program (CIP) (70 points)"]
[null,"(1)","Sites that are improved through the program must be in the community’s conveyance system as defined"]
[null,null,"in its procedures to document CDR. Projects to improve road drainage or storm drains can only be"]
[null,null,"credited if those sites are identified in the community’s procedures and regularly inspected and"]
[null,null,"maintained."]
[null,"(2)","Excerpts from the capital improvement plan or other documentation that shows that the community "]
[null,null,"(or other drainage maintenance agency) has an ongoing program to reduce drainage maintenance "]
[null,null,"problems. The submittal must include:"]
[null,"a.","Master list of the community’s drainage maintenance problem sites in need of elimination or correction."]
[null,"b.","Recommended correction measures for the problem sites."]
[null,"c.","Documentation that funds are spent on capital improvement projects each year."]
[null,"d.","If full credit is requested, documentation of the engineering analysis."]
[]
[]
["Stream dumping regulations (SDR) (30 points)"]
[null,"(1) a.       ","Copy of ordinance or law prohibiting the disposal of debris in the affected drainage system (marked "]
[null,null,"\"SDR\")."]
[null,"b.","Copy of the notice or other medium through which the service is publicized."]
[]
["Storage basin maintenance (SBM) (120 points)"]
[null,"(1) a.","Copy of the procedures that explain the community’s storage basin inspection and maintenance "]
[null,null,"program. The procedures are marked to show that inspections are conducted: "]
[null,null,"     At least once each year, "]
[null,null,"     Upon receiving a complaint, and "]
[null,null,"     After each storm that could adversely affect the drainage system. "]
[null,"b.","Map showing the location of all storage basins in the community."]
[null,"c.","Inventory of all storage basins located in the community."]
[null,"d.","Copies of records that show inspections were conducted and maintenance was performed when "]
[null,null,"inspections revealed problems."]
[null,"e.","A completed CC-540EHP."]

{"sheet":"610AC","index":22,"n_rows":7,"n_cols":10,"rows_kept":7,"cut":false,"hidden":false,"merged":[[0,8,0,10],[3,0,3,10]]}
["610 ACTIVITY CHECKLIST",null,null,null,null,null,null,"Community:",{"$f":"IF('310AC'!$I$1=0,\"\",'310AC'!$I$1)","v":""},{"$f":"IF(#REF!=0,\"\",#REF!)","v":{"$error":"#REF!"}}]
[]
[]
["Activity 610 (Flood Warning and Response) Max. 395 points"]
["Activity 610 Credit Documentation"]
[null,"(1) a.","Technical reviewers' score sheets and comments."]
[null,"b.","Completed Activity 610 (Flood Warning and Response) Documentation Checklist."]

{"sheet":"620AC","index":23,"n_rows":7,"n_cols":10,"rows_kept":7,"cut":false,"hidden":false,"merged":[[3,0,3,10],[0,8,0,10]]}
["620 ACTIVITY CHECKLIST",null,null,null,null,null,null,"Community:",{"$f":"IF('310AC'!$I$1=0,\"\",'310AC'!$I$1)","v":""},{"$f":"IF(#REF!=0,\"\",#REF!)","v":{"$error":"#REF!"}}]
[]
[]
["Activity 620 (Levees) Max. 235 points"]
["Activity 620 Credit Documentation"]
[null,"(1) a.","Technical reviewers' score sheets and comments."]
[null,"b.","Completed Activity 620 (Levees) Documentation Checklist."]

{"sheet":"SDS Scores","index":24,"n_rows":53,"n_cols":6,"rows_kept":53,"cut":false,"hidden":true,"merged":[[0,0,0,5]]}
["Community Rating System - Activity 630 (Dams) State Dam Safety (SDS) Program Credit as of July 1, 2013"]
["State","NID State-Regulated High-Hazard-Potential Dams","SDS: Condition Assessment (CA)  (15 pts max)","SDS: Risk Communication/ Public Awareness (RC/PA) (15 pts max)","SDS: Emergency Action Planning (EAP) (15 pts max)","SDS: Total Credit  (45 pts max)"]
["Alabama","  --",0,0,0,{"$f":"SUM(C3:E3)","v":0}]
["Alaska",20,7,null,7,{"$f":"SUM(C4:E4)","v":14}]
["Arizona",106,15,15,15,{"$f":"SUM(C5:E5)","v":45}]
["Arkansas",148,7,15,7,29]
["California",689,15,15,0,30]
["Colorado",347,15,15,15,45]
["Connecticut",221,0,2,7,9]
["Delaware",44,15,11,0,26]
["Florida",72,0,15,0,15]
["Georgia",473,15,15,0,30]
["Hawaii",122,15,15,15,45]
["Idaho",90,15,2,7,24]
["Illinois",223,0,15,15,30]
["Indiana",242,15,6,0,21]
["Iowa",94,15,13,0,28]
["Kansas",225,15,15,15,45]
["Kentucky",214,0,10,0,10]
["Louisiana",36,15,15,15,45]
["Maine",26,15,null,15,30]
["Maryland",81,7,15,15,37]
["Massachusetts",295,15,15,15,45]
["Michigan",96,15,15,15,45]
["Minnesota",24,15,15,15,45]
["Mississippi",272,15,15,7,37]
["Missouri",460,15,null,7,22]
["Montana",107,15,15,15,45]
["Nebraska",127,15,6,15,36]
["Nevada",144,15,15,7,37]
["New Hampshire",122,15,15,15,45]
["New Jersey",216,15,15,15,45]
["New Mexico",152,15,13,0,28]
["New York",333,0,15,15,30]
["North Carolina",1127,15,15,0,30]
["North Dakota",31,0,4,7,11]
["Ohio",366,15,15,7,37]
["Oklahoma",326,15,15,15,45]
["Oregon",128,15,12,7,34]
["Pennsylvania",770,15,8,15,38]
["Puerto Rico",35,15,15,15,45]
["Rhode Island",91,0,5,0,5]
["South Carolina",160,15,11,15,41]
["South Dakota",76,0,4,15,19]
["Tennessee",149,15,8,15,38]
["Texas",1050,0,15,7,22]
["Utah",195,15,15,15,45]
["Vermont",52,0,null,7,7]
["Virginia",286,15,15,7,37]
["Washington",169,15,15,15,45]
["West Virginia",257,0,15,15,30]
["Wisconsin",196,0,15,7,22]
["Wyoming",68,0,16,15,31]

{"sheet":"710 & 720","index":25,"n_rows":45,"n_cols":9,"rows_kept":45,"cut":false,"hidden":true,"merged":[[37,0,37,3],[37,5,37,8],[40,0,42,0],[2,7,2,8],[0,7,0,8],[1,7,1,8]]}
["720 COMMUNITY CLASSIFICATION CALCULATIONS",null,null,null,null,null,"Community Name:",{"$f":"IF(#REF!=0,\"\",#REF!)","v":{"$error":"#REF!"}}]
[null,null,null,null,null,null,"State:",{"$f":"IF(#REF!=0,\"\",#REF!)","v":{"$error":"#REF!"}}]
[null,null,null,null,null,null,"CID:",{"$f":"IF(#REF!=0,\"\",#REF!)","v":{"$error":"#REF!"}}]
[]
[]
["712.c CGA - County Growth Adjustment"]
["CGA = ",1]
[]
["Verified Activity Calculations",null,null,null,null,null,null,null,"Credit"]
["c310 = ",{"$f":"#REF!","v":{"$error":"#REF!"}},null,null,null,null,null,"=",{"$f":"ROUND(B10,0)","v":{"$error":"#REF!"}}]
["c320 = ",{"$f":"#REF!","v":{"$error":"#REF!"}},null,null,null,null,null,"=",{"$error":"#REF!"}]
["c330 = ",{"$f":"#REF!","v":{"$error":"#REF!"}},null,null,null,null,null,"=",{"$error":"#REF!"}]
["c340 = ",{"$f":"#REF!","v":{"$error":"#REF!"}},null,null,null,null,null,"=",{"$error":"#REF!"}]
["c350 = ",{"$f":"#REF!","v":{"$error":"#REF!"}},null,null,null,null,null,"=",{"$error":"#REF!"}]
["c360 = ",{"$f":"#REF!","v":{"$error":"#REF!"}},null,null,null,null,null,"=",{"$error":"#REF!"}]
["c370 = ",{"$f":"#REF!","v":{"$error":"#REF!"}},null,null,null,null,null,"=",{"$f":"ROUND(B16,0)","v":{"$error":"#REF!"}}]
[]
["c410 = ",{"$f":"#REF!","v":{"$error":"#REF!"}}," x CGA = ",{"$f":"B7","v":1},null,null,null,"=",{"$f":"ROUND(B18*D18,0)","v":{"$error":"#REF!"}}]
["c420 = ",{"$f":"#REF!","v":{"$error":"#REF!"}}," x CGA = ",{"$f":"B7","v":1},null,null,null,"=",{"$f":"ROUND(B19*D19,0)","v":{"$error":"#REF!"}}]
["c430 = ",{"$f":"#REF!","v":{"$error":"#REF!"}}," x CGA = ",{"$f":"B7","v":1},null,null,null,"=",{"$f":"ROUND(B20*D20,0)","v":{"$error":"#REF!"}}]
["c440 = ",{"$f":"#REF!","v":{"$error":"#REF!"}}," x CGA = ",{"$f":"B7","v":1},null,null,null,"=",{"$f":"ROUND(B21*D21,0)","v":{"$error":"#REF!"}}]
["c450 = ",{"$f":"#REF!","v":{"$error":"#REF!"}}," x CGA = ",{"$f":"B7","v":1},null,null,null,"=",{"$f":"ROUND(B22*D22,0)","v":{"$error":"#REF!"}}]
[]
["c510 = ",{"$f":"#REF!","v":{"$error":"#REF!"}},null,null,null,null,null,"=",{"$f":"ROUND(B24,0)","v":{"$error":"#REF!"}}]
["c520 = ",{"$f":"MAX(#REF!,#REF!)","v":{"$error":"#REF!"}},null,null,null,null,null,"=",{"$f":"ROUND(B25,0)","v":{"$error":"#REF!"}}]
["c530 = ",{"$f":"MAX(#REF!,#REF!)","v":{"$error":"#REF!"}},null,null,null,null,null,"=",{"$f":"ROUND(B26,0)","v":{"$error":"#REF!"}}]
["c540 = ",{"$f":"#REF!","v":{"$error":"#REF!"}},null,null,null,null,null,"=",{"$f":"ROUND(B27,0)","v":{"$error":"#REF!"}}]
[]
["c610 = ",{"$f":"#REF!","v":{"$error":"#REF!"}},null,null,null,null,null,"=",{"$f":"ROUND(B29,0)","v":{"$error":"#REF!"}}]
["c620 = ",{"$f":"#REF!","v":{"$error":"#REF!"}},null,null,null,null,null,"=",{"$f":"ROUND(B30,0)","v":{"$error":"#REF!"}}]
["c630 = ",{"$f":"#REF!","v":{"$error":"#REF!"}},null,null,null,null,null,"=",{"$f":"ROUND(B31,0)","v":{"$error":"#REF!"}}]
[]
[]
["722  Community Classification Calculation:"]
["cT = total credit",null,null,null,null,null,null,"cT = ",{"$f":"SUM(I10:I31)","v":{"$error":"#REF!"}}]
["Community Classification",null,null,null,null,null,null,"Class = ",{"$f":"IF(I35>4499,1,10-INT(I35/500))","v":{"$error":"#REF!"}}]
[]
["CEO Name/Address:",null,null,null,null,"CRS Coordinator Name/Address:"]
["Name:",{"$f":"IF(#REF!=0,\"\",#REF!)","v":{"$error":"#REF!"}},null,null,null,{"$f":"IF(#REF!=0,\"\",#REF!)","v":{"$error":"#REF!"}}]
["Title:",{"$f":"IF(#REF!=0,\"\",#REF!)","v":{"$error":"#REF!"}},null,null,null,{"$f":"IF(#REF!=0,\"\",#REF!)","v":{"$error":"#REF!"}}]
["Address:",{"$f":"IF(#REF!=0,\"\",#REF!)","v":{"$error":"#REF!"}},null,null,null,{"$f":"IF(#REF!=0,\"\",#REF!)","v":{"$error":"#REF!"}}]
[null,{"$f":"IF(#REF!=0,\"\",#REF!)","v":{"$error":"#REF!"}},null,null,null,{"$f":"IF(#REF!=0,\"\",#REF!)","v":{"$error":"#REF!"}}]
[null,{"$f":"IF(#REF!=0,\"\",#REF!)","v":{"$error":"#REF!"}},null,null,null,{"$f":"IF(#REF!=0,\"\",#REF!)","v":{"$error":"#REF!"}}]
["Phone:",{"$f":"IF(#REF!=0,\"\",#REF!)","v":{"$error":"#REF!"}},null,null,null,{"$f":"IF(#REF!=0,\"\",#REF!)","v":{"$error":"#REF!"}}]
["E-mail:",{"$f":"IF(#REF!=0,\"\",#REF!)","v":{"$error":"#REF!"}},null,null,null,{"$f":"IF(#REF!=0,\"\",#REF!)","v":{"$error":"#REF!"}}]

{"sheet":"630AC","index":26,"n_rows":10,"n_cols":10,"rows_kept":10,"cut":false,"hidden":false,"merged":[[0,8,0,10],[3,0,3,10]]}
["630 ACTIVITY CHECKLIST",null,null,null,null,null,null,"Community:",{"$f":"IF('310AC'!$I$1=0,\"\",'310AC'!$I$1)","v":""},{"$f":"IF(#REF!=0,\"\",#REF!)","v":{"$error":"#REF!"}}]
[]
[]
["Activity 630 (Dams) Max. 160 points"]
["State dam safety program (SDS) (45 points)"]
[null,"(1)","A map and description of the threat from failure of high-hazard-potential dams."]
[]
["Other Activity 630 credit - DFR, DFW, DFO, and DCF"]
[null,"(1) a.","Technical reviewers' score sheets and comments."]
[null,"b.","Completed Activity 630 (Dams) Documentation Checklist. "]

{"sheet":"2015 SDS","index":27,"n_rows":53,"n_cols":6,"rows_kept":53,"cut":false,"hidden":false,"merged":[[0,0,0,5]]}
["Community Rating System - Activity 630 (Dams) State Dam Safety (SDS) Program Credit for Use in 2015"]
["State","NID State-Regulated High-Hazard-Potential Dams","SDS: Condition Assessment (CA)  (15 pts max)","SDS: Risk Communication/ Public Awareness (RC/PA) (15 pts max)","SDS: Emergency Action Planning (EAP) (15 pts max)","SDS: Total Credit  (45 pts max)"]
["Alabama","  --",0,0,0,{"$f":"SUM(C3:E3)","v":0}]
["Alaska",20,7,15,7,{"$f":"SUM(C4:E4)","v":29}]
["Arizona",106,15,15,15,45]
["Arkansas",148,7,15,7,29]
["California",689,15,15,7,37]
["Colorado",347,15,15,15,45]
["Connecticut",221,0,15,7,22]
["Delaware",44,15,11,0,26]
["Florida",72,0,15,0,15]
["Georgia",473,15,15,0,30]
["Hawaii",122,15,15,15,45]
["Idaho",90,15,15,7,37]
["Illinois",223,0,15,15,30]
["Indiana",242,15,15,0,30]
["Iowa",94,15,15,0,30]
["Kansas",225,15,15,15,45]
["Kentucky",214,0,15,0,15]
["Louisiana",36,15,15,15,45]
["Maine",26,15,15,15,45]
["Maryland",81,15,15,15,45]
["Massachusetts",295,15,15,15,45]
["Michigan",96,15,15,15,45]
["Minnesota",24,15,15,15,45]
["Mississippi",272,15,15,15,45]
["Missouri",460,15,15,7,37]
["Montana",107,15,15,15,45]
["Nebraska",127,15,15,15,45]
["Nevada",144,15,15,15,45]
["New Hampshire",122,15,15,15,45]
["New Jersey",216,15,15,15,45]
["New Mexico",152,15,15,0,30]
["New York",333,0,15,15,30]
["North Carolina",1127,15,7,0,22]
["North Dakota",31,0,15,15,30]
["Ohio",366,15,15,7,37]
["Oklahoma",326,15,15,15,45]
["Oregon",128,15,9,7,31]
["Pennsylvania",770,15,15,15,45]
["Puerto Rico",35,15,15,15,45]
["Rhode Island",91,0,13,0,13]
["South Carolina",160,15,15,15,45]
["South Dakota",76,0,15,15,30]
["Tennessee",149,15,15,15,45]
["Texas",1050,0,15,7,22]
["Utah",195,15,15,15,45]
["Vermont",52,0,15,7,22]
["Virginia",286,15,15,7,37]
["Washington",169,15,15,15,45]
["West Virginia",257,0,15,15,30]
["Wisconsin",196,0,15,7,22]
["Wyoming",68,0,15,15,30]

{"sheet":"2015 CGAs","index":28,"n_rows":3143,"n_cols":3,"rows_kept":3143,"cut":false,"hidden":false,"merged":[]}
["STATE","COUNTY NAME","CGA Values for use in 2015"]
["Alabama","Autauga County",1.1360335673900837]
["Alabama","Baldwin County",1.053244757235924]
["Alabama","Barbour County",1]
["Alabama","Bibb County",1.0462073063457091]
["Alabama","Blount County",1.096459068390391]
["Alabama","Bullock County",1]
["Alabama","Butler County",1]
["Alabama","Calhoun County",1.0156532375176321]
["Alabama","Chambers County",1.0035165732597964]
["Alabama","Cherokee County",1.1115065881369648]
["Alabama","Chilton County",1.0438623467219301]
["Alabama","Choctaw County",1]
["Alabama","Clarke County",1]
["Alabama","Clay County",1.0100989091368819]
["Alabama","Cleburne County",1.0536517889926658]
["Alabama","Coffee County",1.089075954500204]
["Alabama","Colbert County",1.0183787087053888]
["Alabama","Conecuh County",1]
["Alabama","Coosa County",1.0381257941449431]
["Alabama","Covington County",1]
["Alabama","Crenshaw County",1]
["Alabama","Cullman County",1.0371409625839902]
["Alabama","Dale County",1.0397416861455202]
["Alabama","Dallas County",1]
["Alabama","DeKalb County",1.0750560356824126]
["Alabama","Elmore County",1.1454612398256527]
["Alabama","Escambia County",1]
["Alabama","Etowah County",1.0031875662695646]
["Alabama","Fayette County",1]
["Alabama","Franklin County",1.0241430648318386]
["Alabama","Geneva County",1.0370846790506918]
["Alabama","Greene County",1]
["Alabama","Hale County",1]
["Alabama","Henry County",1.1014309134226443]
["Alabama","Houston County",1.0837711705567434]
["Alabama","Jackson County",1.0049743258407808]
["Alabama","Jefferson County",1.0122300566879385]
["Alabama","Lamar County",1]
["Alabama","Lauderdale County",1.0710546846917315]
["Alabama","Lawrence County",1.0001925131636771]
["Alabama","Lee County",1.1222911304201713]
["Alabama","Limestone County",1.1845789444374302]
["Alabama","Lowndes County",1]
["Alabama","Macon County",1]
["Alabama","Madison County",1.1343072185498428]
["Alabama","Marengo County",1.001615255961851]
["Alabama","Marion County",1.0050873377996452]
["Alabama","Marshall County",1.0653558593302783]
["Alabama","Mobile County",1.0535529658334388]
["Alabama","Monroe County",1]
["Alabama","Montgomery County",1.0487873062525623]
["Alabama","Morgan County",1.0447929059348762]
["Alabama","Perry County",1]
["Alabama","Pickens County",1]
["Alabama","Pike County",1.0585023308143739]
["Alabama","Randolph County",1.1229873338467691]
["Alabama","Russell County",1.145581926264049]
["Alabama","St. Clair County",1.1430317099558476]
["Alabama","Shelby County",1.0845207134413917]
["Alabama","Sumter County",1]
["Alabama","Talladega County",1.0435809051358294]
["Alabama","Tallapoosa County",1.0504299891648707]
["Alabama","Tuscaloosa County",1.0849085538964633]
["Alabama","Walker County",1]
["Alabama","Washington County",1.0194907527254173]
["Alabama","Wilcox County",1]
["Alabama","Winston County",1.0551239081973609]
["Alaska","Aleutians East Borough",1.0013132840531616]
["Alaska","Aleutians West Census Area",1]
["Alaska","Anchorage Municipality",1.0527382258150455]
["Alaska","Bethel Census Area",1.0771597776738275]
["Alaska","Bristol Bay Borough",1]
["Alaska","Denali Borough",1.2009256144806759]
["Alaska","Dillingham Census Area",1.0153408167715119]
["Alaska","Fairbanks North Star Borough",1.104595420430682]
["Alaska","Haines Borough",1.0867422921855043]
["Alaska","Hoonah-Angoon Census Area",1.0033376011087349]
["Alaska","Juneau City and Borough",1.0453565287741697]
["Alaska","Kenai Peninsula Borough",1.1704311794059077]
["Alaska","Ketchikan Gateway Borough",1]
["Alaska","Kodiak Island Borough",1]
["Alaska","Lake and Peninsula Borough",1]
["Alaska","Matanuska-Susitna Borough",1.2823022258676855]
["Alaska","Nome Census Area",1.0902689698794368]
["Alaska","North Slope Borough",1.0126824763638056]
["Alaska","Northwest Arctic Borough",1.0664693200112931]
["Alaska","Petersburg Census Area",1]
["Alaska","Prince of Wales-Hyder Census Area",1]
["Alaska","Sitka City and Borough",1.0547144060063487]
["Alaska","Skagway Municipality",1.0813149284962411]
["Alaska","Southeast Fairbanks Census Area",1.1535877214863102]
["Alaska","Valdez-Cordova Census Area",1.1362963743651791]
["Alaska","Wade Hampton Census Area",1.0659843842601893]
["Alaska","Wrangell City and Borough",1.022300471271095]
["Alaska","Yakutat City and Borough",1]
["Alaska","Yukon-Koyukuk Census Area",1.0184193992731396]
["Arizona","Apache County",1.0259824942367315]
["Arizona","Cochise County",1.0946843742762837]
["Arizona","Coconino County",1.0861038740144737]
["Arizona","Gila County",1.0906038864856296]
["Arizona","Graham County",1.1039815323809745]
["Arizona","Greenlee County",1.1501584077722051]
["Arizona","La Paz County",1.0440456693179048]
["Arizona","Maricopa County",1.0899718038342168]
["Arizona","Mohave County",1.10865405565325]
["Arizona","Navajo County",1.0708212953195475]
["Arizona","Pima County",1.0813632217286919]
["Arizona","Pinal County",1.153520104093019]
["Arizona","Santa Cruz County",1.0702828484298945]
["Arizona","Yavapai County",1.0814193945030017]
["Arizona","Yuma County",1.0604399970233893]
["Arkansas","Arkansas County",1]
["Arkansas","Ashley County",1]
["Arkansas","Baxter County",1.0655876029185398]
["Arkansas","Benton County",1.1415491293427196]
["Arkansas","Boone County",1.065603504716707]
["Arkansas","Bradley County",1]
["Arkansas","Calhoun County",1]
["Arkansas","Carroll County",1.0859352271003422]
["Arkansas","Chicot County",1]
["Arkansas","Clark County",1]
["Arkansas","Clay County",1]
["Arkansas","Cleburne County",1.080435502130296]
["Arkansas","Cleveland County",1.0222133063327434]
["Arkansas","Columbia County",1]
["Arkansas","Conway County",1.0495380148386171]
["Arkansas","Craighead County",1.1488492891502946]
["Arkansas","Crawford County",1.1303064664864384]
["Arkansas","Crittenden County",1]
["Arkansas","Cross County",1]
["Arkansas","Dallas County",1]
["Arkansas","Desha County",1]
["Arkansas","Drew County",1.0066622495708701]
["Arkansas","Faulkner County",1.1795925721962455]
["Arkansas","Franklin County",1.0239704541200969]
["Arkansas","Fulton County",1.0844587687082954]
["Arkansas","Garland County",1.0821266573694501]
["Arkansas","Grant County",1.0811915750346648]
["Arkansas","Greene County",1.0719517877055376]
["Arkansas","Hempstead County",1.0091333170042152]
["Arkansas","Hot Spring County",1.0414728238515627]
["Arkansas","Howard County",1]
["Arkansas","Independence County",1.0575633377315832]
["Arkansas","Izard County",1.052199974981908]
["Arkansas","Jackson County",1]
["Arkansas","Jefferson County",1]
["Arkansas","Johnson County",1.0770657960287036]
["Arkansas","Lafayette County",1]
["Arkansas","Lawrence County",1]
["Arkansas","Lee County",1]
["Arkansas","Lincoln County",1]
["Arkansas","Little River County",1]
["Arkansas","Logan County",1.0078185731541125]
["Arkansas","Lonoke County",1.1318997805543365]
["Arkansas","Madison County",1.0918357252117863]
["Arkansas","Marion County",1.0617587127343677]
["Arkansas","Miller County",1.0319607094225138]
["Arkansas","Mississippi County",1]
["Arkansas","Monroe County",1]
["Arkansas","Montgomery County",1.080759858627133]
["Arkansas","Nevada County",1]
["Arkansas","Newton County",1.0483283574404436]
["Arkansas","Ouachita County",1]
["Arkansas","Perry County",1.0092956765319685]
["Arkansas","Phillips County",1]
["Arkansas","Pike County",1]
["Arkansas","Poinsett County",1]
["Arkansas","Polk County",1.0648857125792723]
["Arkansas","Pope County",1.066550647647714]
["Arkansas","Prairie County",1]
["Arkansas","Pulaski County",1.0952448019779895]
["Arkansas","Randolph County",1]
["Arkansas","St. Francis County",1]
["Arkansas","Saline County",1.1769384695319709]
["Arkansas","Scott County",1.0227371358812767]
["Arkansas","Searcy County",1.0990830950269839]
["Arkansas","Sebastian County",1.0913322102037695]
["Arkansas","Sevier County",1.0438314933707518]
["Arkansas","Sharp County",1.0322208953956227]
["Arkansas","Stone County",1.1072047113510166]
["Arkansas","Union County",1]
["Arkansas","Van Buren County",1.0741930986578554]
["Arkansas","Washington County",1.0866340803119225]
["Arkansas","White County",1.1066650123879209]
["Arkansas","Woodruff County",1]
["Arkansas","Yell County",1.025269494027429]
["California","Alameda County",1.0598279652113121]
["California","Alpine County",1.0044928750531925]
["California","Amador County",1.0619735377352382]
["California","Butte County",1.0298788317052789]
["California","Calaveras County",1.0330374198872896]
["California","Colusa County",1.0619248306205145]
["California","Contra Costa County",1.0459417881751789]
["California","Del Norte County",1.0461843698037545]
["California","El Dorado County",1.0719420043058805]
["California","Fresno County",1.0759760519313324]
["California","Glenn County",1.0257505743760844]
["California","Humboldt County",1.0647205685547969]
["California","Imperial County",1.0530112560567053]
["California","Inyo County",1.0425976402736294]
["California","Kern County",1.0773154635509044]
["California","Kings County",1.0820465432244366]
["California","Lake County",1.0050787167948596]
["California","Lassen County",1]
["California","Los Angeles County",1.0421963050234142]
["California","Madera County",1.0450112742839814]
["California","Marin County",1.0439940273307893]
["California","Mariposa County",1.0442236853972555]
["California","Mendocino County",1.0526474909081265]
["California","Merced County",1.0183825774857804]
["California","Modoc County",1.0750919912480108]
["California","Mono County",1.0349710020641369]
["California","Monterey County",1.0125588837246493]
["California","Napa County",1.0461679941249793]
["California","Nevada County",1.0649303835742798]
["California","Orange County",1.0535337181325457]
["California","Placer County",1.0905504067812513]
["California","Plumas County",1.0438905309384174]
["California","Riverside County",1.0757209292202909]
["California","Sacramento County",1.0342685208794125]
["California","San Benito County",1.0300803323137822]
["California","San Bernardino County",1.0434318342161988]
["California","San Diego County",1.0615004171140221]
["California","San Francisco County",1.0702370651577588]
["California","San Joaquin County",1.0602199818470939]
["California","San Luis Obispo County",1.0321861574431304]
["California","San Mateo County",1.0367611180845806]
["California","Santa Barbara County",1.029091970410271]
["California","Santa Clara County",1.0699813268395499]
["California","Santa Cruz County",1.0270711236984122]
["California","Shasta County",1.0219808310900294]
["California","Sierra County",1.0316008029737014]
["California","Siskiyou County",1.0247652827287648]
["California","Solano County",1.0469761884168673]
["California","Sonoma County",1.0569781036978823]
["California","Stanislaus County",1.0449049920570599]
["California","Sutter County",1.0386593731620732]
["California","Tehama County",1.0277936781335053]
["California","Trinity County",1.0524972366330934]
["California","Tulare County",1.0887859175090466]
["California","Tuolumne County",1.0362000844105248]
["California","Ventura County",1.0518323758040129]
["California","Yolo County",1.0657942647582055]
["California","Yuba County",1]
["Colorado","Adams County",1.0488343357422516]
["Colorado","Alamosa County",1.0605300872787051]
["Colorado","Arapahoe County",1.0649854285800422]
["Colorado","Archuleta County",1.0553529940536901]
["Colorado","Baca County",1]
["Colorado","Bent County",1]
["Colorado","Boulder County",1.0733338826387286]
["Colorado","Broomfield County",1.1233461319210649]
["Colorado","Chaffee County",1.0645957273858144]
["Colorado","Cheyenne County",1]
["Colorado","Clear Creek County",1.0587970232633106]
["Colorado","Conejos County",1.017348047300183]
["Colorado","Costilla County",1.1607281097030544]
["Colorado","Crowley County",1]
["Colorado","Custer County",1.1269667780287143]
["Colorado","Delta County",1.0972671870865671]
["Colorado","Denver County",1.0872852177750483]
["Colorado","Dolores County",1.116483698648977]
["Colorado","Douglas County",1.1413706415149929]
["Colorado","Eagle County",1.1416921939240856]
["Colorado","Elbert County",1.0396273490404675]
["Colorado","El Paso County",1.0955275644630693]
["Colorado","Fremont County",1.0149740726400727]
["Colorado","Garfield County",1.0656279609353794]
["Colorado","Gilpin County",1.0520915192048199]
["Colorado","Grand County",1.1071020775724274]
["Colorado","Gunnison County",1.0809639396159434]
["Colorado","Hinsdale County",1.024126609514814]
["Colorado","Huerfano County",1.0389279235472473]
["Colorado","Jackson County",1.0439532103383544]
["Colorado","Jefferson County",1.048886751464492]
["Colorado","Kiowa County",1.0234202622632806]
["Colorado","Kit Carson County",1.0064239748292194]
["Colorado","Lake County",1]
["Colorado","La Plata County",1.050075556726854]
["Colorado","Larimer County",1.0945543466080823]
["Colorado","Las Animas County",1.0302068267956868]
["Colorado","Lincoln County",1.0028407380474582]
["Colorado","Logan County",1.0408747064432546]
["Colorado","Mesa County",1.0911735136658054]
["Colorado","Mineral County",1]
["Colorado","Moffat County",1.0269254075326897]
["Colorado","Montezuma County",1.0845199006478681]
["Colorado","Montrose County",1.055255486460617]
["Colorado","Morgan County",1.0370225191141826]
["Colorado","Otero County",1.015432992951343]
["Colorado","Ouray County",1.1267855205507495]
["Colorado","Park County",1.0860916730250527]
["Colorado","Phillips County",1.0242730230083366]
["Colorado","Pitkin County",1.1322372054616761]
["Colorado","Prowers County",1]
["Colorado","Pueblo County",1.0501856576495752]
["Colorado","Rio Blanco County",1.0839723927369285]
["Colorado","Rio Grande County",1.006338137399291]
["Colorado","Routt County",1.0830575101549114]
["Colorado","Saguache County",1.0614121948726387]
["Colorado","San Juan County",1.0411156907041521]
["Colorado","San Miguel County",1.0867104006643138]
["Colorado","Sedgwick County",1.0323463168624394]
["Colorado","Summit County",1.0708601750400661]
["Colorado","Teller County",1.069211066190753]
["Colorado","Washington County",1.0393602306266749]
["Colorado","Weld County",1.0912805419527185]
["Colorado","Yuma County",1.0314381162780797]
["Connecticut","Fairfield County",1.0491970087921367]
["Connecticut","Hartford County",1.0471604437261708]
["Connecticut","Litchfield County",1.0636228655436843]
["Connecticut","Middlesex County",1.0592037426137737]
["Connecticut","New Haven County",1.0558768398001441]
["Connecticut","New London County",1.053795390930611]
["Connecticut","Tolland County",1.0718869619491413]
["Connecticut","Windham County",1.0653392145599985]
["Delaware","Kent County",1.1122453195073314]
["Delaware","New Castle County",1.0515369779864217]
["Delaware","Sussex County",1.1292932209446396]
["Dist of Columbia","District of Columbia",1.1245129789670574]
["Florida","Alachua County",1.0594926693442077]
["Florida","Baker County",1.0813717092590505]
["Florida","Bay County",1.0332833316013859]
["Florida","Bradford County",1.0737384371246819]
["Florida","Brevard County",1.0422693436316113]
["Florida","Broward County",1.0365339140377219]
["Florida","Calhoun County",1.0843356276481022]
["Florida","Charlotte County",1.0254994707658862]
["Florida","Citrus County",1.0320332704602944]
["Florida","Clay County",1.0882582940800192]
["Florida","Collier County",1.0757255443851568]
["Florida","Columbia County",1.0837760659820375]
["Florida","DeSoto County",1.0251734376782475]
["Florida","Dixie County",1.1282530716982033]
["Florida","Duval County",1.0228727962201791]
["Florida","Escambia County",1.0285515495738653]
["Florida","Flagler County",1.034136286696409]
["Florida","Franklin County",1.0187010795463038]
["Florida","Gadsden County",1.0321984043126822]
["Florida","Gilchrist County",1.0978272355205156]
["Florida","Glades County",1.1041072576663082]
["Florida","Gulf County",1.0542926091101958]
["Florida","Hamilton County",1.093521229814495]
["Florida","Hardee County",1]
["Florida","Hendry County",1.0726832005719302]
["Florida","Hernando County",1.0709011177063168]
["Florida","Highlands County",1.0089965287543836]
["Florida","Hillsborough County",1.0849346527963268]
["Florida","Holmes County",1.0297493179425068]
["Florida","Indian River County",1.0176045556830595]
["Florida","Jackson County",1.019048631172085]
["Florida","Jefferson County",1.1168343829401319]
["Florida","Lafayette County",1.1444298087574936]
["Florida","Lake County",1.0250972013132378]
["Florida","Lee County",1.0499993449399283]
["Florida","Leon County",1.064487873732646]
["Florida","Levy County",1.0924856101460492]
["Florida","Liberty County",1.0272931419676747]
["Florida","Madison County",1.0313408173804763]
["Florida","Manatee County",1.0755527603748107]
["Florida","Marion County",1.0262973788610621]
["Florida","Martin County",1.0534671279801535]
["Florida","Miami-Dade County",1.0439014229452117]
["Florida","Monroe County",1]
["Florida","Nassau County",1.0895136783001571]
["Florida","Okaloosa County",1.0521972058568254]
["Florida","Okeechobee County",1.0805802946375378]
["Florida","Orange County",1.1135829414032674]
["Florida","Osceola County",1.0986433222263772]
["Florida","Palm Beach County",1.0703127460753183]
["Florida","Pasco County",1.0779421058815921]
["Florida","Pinellas County",1.0231040991464493]
["Florida","Polk County",1.0157243228540582]
["Florida","Putnam County",1.0428149151255952]
["Florida","St. Johns County",1.1551266606203061]
["Florida","St. Lucie County",1.0545040593084312]
["Florida","Santa Rosa County",1.1450859113317859]
["Florida","Sarasota County",1.0580270908604552]
["Florida","Seminole County",1.0934194755504691]
["Florida","Sumter County",1.3184738146137245]
["Florida","Suwannee County",1.1127537276757584]
["Florida","Taylor County",1.0808391751440007]
["Florida","Union County",1.1031450438460713]
["Florida","Volusia County",1.0527247777715489]
["Florida","Wakulla County",1]
["Florida","Walton County",1.1342340846854784]
["Florida","Washington County",1.0602994892659603]
["Georgia","Appling County",1.0608981031252576]
["Georgia","Atkinson County",1.0784796145517008]
["Georgia","Bacon County",1.0584390016182645]
["Georgia","Baker County",1]
["Georgia","Baldwin County",1.0475375353639618]
["Georgia","Banks County",1.0949728133200445]
["Georgia","Barrow County",1.0277412090993656]
["Georgia","Bartow County",1.0721961955460659]
["Georgia","Ben Hill County",1.0065024119956858]
["Georgia","Berrien County",1.1257151817996038]
["Georgia","Bibb County",1.0019518933308293]
["Georgia","Bleckley County",1.0324839821094192]
["Georgia","Brantley County",1.1586300193330992]
["Georgia","Brooks County",1.0038044557499251]
["Georgia","Bryan County",1.17121370254227]
["Georgia","Bulloch County",1.1155443617825513]
["Georgia","Burke County",1.0558081002744015]
["Georgia","Butts County",1.0068275780459381]
["Georgia","Calhoun County",1.0318890101294222]
["Georgia","Camden County",1.0404194952281411]
["Georgia","Candler County",1.1476833739056582]
["Georgia","Carroll County",1.0009315960097056]
["Georgia","Catoosa County",1.0377928116411508]
["Georgia","Charlton County",1.0779226280770895]
["Georgia","Chatham County",1.0875198861390913]
["Georgia","Chattahoochee County",1.0242782230181682]
["Georgia","Chattooga County",1.0149727380745479]
["Georgia","Cherokee County",1.0697857340931263]
["Georgia","Clarke County",1.0402575884908218]
["Georgia","Clay County",1.0217989660033924]
["Georgia","Clayton County",1]
["Georgia","Clinch County",1.0318301381026487]
["Georgia","Cobb County",1.0768514048041502]
["Georgia","Coffee County",1.029563558592498]
["Georgia","Colquitt County",1.0040367182666357]
["Georgia","Columbia County",1.2405806672777966]
["Georgia","Cook County",1.0204447270610952]
["Georgia","Coweta County",1.1155383437208535]
["Georgia","Crawford County",1]
["Georgia","Crisp County",1.0716929111472564]
["Georgia","Dade County",1.1175728571842449]
["Georgia","Dawson County",1.0522985225297989]
["Georgia","Decatur County",1]
["Georgia","DeKalb County",1.0017335037205979]
["Georgia","Dodge County",1.1338930137854955]
["Georgia","Dooly County",1.2453464976096909]
["Georgia","Dougherty County",1]
["Georgia","Douglas County",1.0585027691434181]
["Georgia","Early County",1]
["Georgia","Echols County",1.0101769091985493]
["Georgia","Effingham County",1.0687945061129103]
["Georgia","Elbert County",1.0159610535164356]
["Georgia","Emanuel County",1.0350914481293363]
["Georgia","Evans County",1.004431836153338]
["Georgia","Fannin County",1.0209808300451364]
["Georgia","Fayette County",1.0607834947644559]
["Georgia","Floyd County",1.0269657041101401]
["Georgia","Forsyth County",1.1457943306170928]
["Georgia","Franklin County",1.0909394065554303]
["Georgia","Fulton County",1.0298807903983489]
["Georgia","Gilmer County",1.0009359353009164]
["Georgia","Glascock County",1.1828874668905889]
["Georgia","Glynn County",1.0983903259243091]
["Georgia","Gordon County",1.057631642617042]
["Georgia","Grady County",1.0108745962940038]
["Georgia","Greene County",1.0941308622184223]
["Georgia","Gwinnett County",1.0563760460182605]
["Georgia","Habersham County",1.0403922222845488]
["Georgia","Hall County",1.0840663087651983]
["Georgia","Hancock County",1.0964717357093292]
["Georgia","Haralson County",1.0315705173581993]
["Georgia","Harris County",1.0883486676767764]
["Georgia","Hart County",1.0619440489004441]
["Georgia","Heard County",1.0538687933837534]
["Georgia","Henry County",1.0737732556489723]
["Georgia","Houston County",1.0841260353334006]
["Georgia","Irwin County",1]
["Georgia","Jackson County",1]
["Georgia","Jasper County",1.0252877198096102]
["Georgia","Jeff Davis County",1.1252154516741899]
["Georgia","Jefferson County",1]
["Georgia","Jenkins County",1.063316329190124]
["Georgia","Johnson County",1.1061362335330074]
["Georgia","Jones County",1.0408581536190344]
["Georgia","Lamar County",1.0607788861589231]
["Georgia","Lanier County",1.1527006517756169]
["Georgia","Laurens County",1.0671339041806918]
["Georgia","Lee County",1]
["Georgia","Liberty County",1.1130442467721293]
["Georgia","Lincoln County",1.0083056109630331]
["Georgia","Long County",1.2366394242348235]
["Georgia","Lowndes County",1.0588970755286433]
["Georgia","Lumpkin County",1.1244725268530322]
["Georgia","McDuffie County",1.0157821790895651]
["Georgia","McIntosh County",1.2516772709012516]
["Georgia","Macon County",1.0721085241588759]
["Georgia","Madison County",1]
["Georgia","Marion County",1.2093707407294421]
["Georgia","Meriwether County",1]
["Georgia","Miller County",1]
["Georgia","Mitchell County",1]
["Georgia","Monroe County",1.059119551731579]
["Georgia","Montgomery County",1.0315228757569086]
["Georgia","Morgan County",1]
["Georgia","Murray County",1]
["Georgia","Muscogee County",1.0296016322938653]
["Georgia","Newton County",1.0360369118008341]
["Georgia","Oconee County",1.0265311726179029]
["Georgia","Oglethorpe County",1.0385857719915328]
["Georgia","Paulding County",1.0444188654136424]
["Georgia","Peach County",1.0619068642628107]
["Georgia","Pickens County",1]
["Georgia","Pierce County",1.0361972328418836]
["Georgia","Pike County",1.0058317909955274]
["Georgia","Polk County",1.0140838138057719]
["Georgia","Pulaski County",1.1692610323876309]
["Georgia","Putnam County",1.0187281310952447]
["Georgia","Quitman County",1.1052234140493535]
["Georgia","Rabun County",1]
["Georgia","Randolph County",1.1687563887255816]
["Georgia","Richmond County",1.0267567027508941]
["Georgia","Rockdale County",1.0669370979150052]
["Georgia","Schley County",1.2203527539112571]
["Georgia","Screven County",1]
["Georgia","Seminole County",1.002001802283178]
["Georgia","Spalding County",1.0461147797762873]
["Georgia","Stephens County",1.0064063217332166]
["Georgia","Stewart County",1.0050348347275908]
["Georgia","Sumter County",1]
["Georgia","Talbot County",1.0877330852332658]
["Georgia","Taliaferro County",1]
["Georgia","Tattnall County",1.1064774232623789]
["Georgia","Taylor County",1.0666460200247565]
["Georgia","Telfair County",1.263874086327136]
["Georgia","Terrell County",1]
["Georgia","Thomas County",1.0259169403253989]
["Georgia","Tift County",1.0190584729355892]
["Georgia","Toombs County",1.0486083378209057]
["Georgia","Towns County",1]
["Georgia","Treutlen County",1.0558388346933536]
["Georgia","Troup County",1.0615633278923733]
["Georgia","Turner County",1]
["Georgia","Twiggs County",1]
["Georgia","Union County",1.0638769067775824]
["Georgia","Upson County",1.005751549434474]
["Georgia","Walker County",1.0492989095194574]
["Georgia","Walton County",1.0235132690555928]
["Georgia","Ware County",1.0162230496257854]
["Georgia","Warren County",1.0601595261113785]
["Georgia","Washington County",1.0568899963380676]
["Georgia","Wayne County",1.0928108951360729]
["Georgia","Webster County",1.2330644361035139]
["Georgia","Wheeler County",1.0544130159863943]
["Georgia","White County",1.2286249419953057]
["Georgia","Whitfield County",1.1134340338754281]
["Georgia","Wilcox County",1.0412883038191736]
["Georgia","Wilkes County",1.0062584952356937]
["Georgia","Wilkinson County",1]
["Georgia","Worth County",1]
["Hawaii","Hawaii County",1.1139027128195602]
["Hawaii","Honolulu County",1.0515692488076258]
["Hawaii","Kalawao County",1]
["Hawaii","Kauai County",1.0542435106879391]
["Hawaii","Maui County",1.0918006902459489]
["Idaho","Ada County",1.0953530047940188]
["Idaho","Adams County",1.0804497732690401]
["Idaho","Bannock County",1.0578545982132983]
["Idaho","Bear Lake County",1.1155104296271081]
["Idaho","Benewah County",1.067147216833372]
["Idaho","Bingham County",1.0506942442764302]
["Idaho","Blaine County",1.0568640317259583]
["Idaho","Boise County",1.0543576697794168]
["Idaho","Bonner County",1.1839121462036997]
["Idaho","Bonneville County",1.088582755548241]
["Idaho","Boundary County",1.1110146176921578]
["Idaho","Butte County",1.0633342859549035]
["Idaho","Camas County",1.1037184213006004]
["Idaho","Canyon County",1.0576567283696372]
["Idaho","Caribou County",1]
["Idaho","Cassia County",1.0451660617996263]
["Idaho","Clark County",1]
["Idaho","Clearwater County",1.0461915887726949]
["Idaho","Custer County",1.0328025944603483]
["Idaho","Elmore County",1.0146688614262724]
["Idaho","Franklin County",1.0986274020475175]
["Idaho","Fremont County",1.0878473764226162]
["Idaho","Gem County",1.0524982760892945]
["Idaho","Gooding County",1.0187126061360887]
["Idaho","Idaho County",1.1180335335057037]
["Idaho","Jefferson County",1.1045887188189876]
["Idaho","Jerome County",1.10186500958969]
["Idaho","Kootenai County",1.1194656505153913]
["Idaho","Latah County",1.083659357803616]
["Idaho","Lemhi County",1.0726163318595185]
["Idaho","Lewis County",1.0386695369499535]
["Idaho","Lincoln County",1.0866791234360553]
["Idaho","Madison County",1.1039805661660709]
["Idaho","Minidoka County",1.0595311583918878]
["Idaho","Nez Perce County",1.0495751683243872]
["Idaho","Oneida County",1.0896183433327202]
["Idaho","Owyhee County",1]
["Idaho","Payette County",1.0225920775512667]
["Idaho","Power County",1]
["Idaho","Shoshone County",1]
["Idaho","Teton County",1.1031392019132849]
["Idaho","Twin Falls County",1.0720664136371085]
["Idaho","Valley County",1.1379627912703141]
["Idaho","Washington County",1.0514784539407187]
["Illinois","Adams County",1.0132135211992757]
["Illinois","Alexander County",1]
["Illinois","Bond County",1.0083033773899976]
["Illinois","Boone County",1.0733956201942698]
["Illinois","Brown County",1]
["Illinois","Bureau County",1.0224634143071833]
["Illinois","Calhoun County",1.0167407908899886]
["Illinois","Carroll County",1.0268601757422737]
["Illinois","Cass County",1]
["Illinois","Champaign County",1.0715196114139549]
["Illinois","Christian County",1.0294023654283371]
["Illinois","Clark County",1]
["Illinois","Clay County",1]
["Illinois","Clinton County",1.060877671236812]
["Illinois","Coles County",1.0266221819717161]
["Illinois","Cook County",1.0155955052813384]
["Illinois","Crawford County",1]
["Illinois","Cumberland County",1]
["Illinois","DeKalb County",1.0640088346646817]
["Illinois","De Witt County",1.0149792290586581]
["Illinois","Douglas County",1.0154928897672035]
["Illinois","DuPage County",1.0171759490787626]
["Illinois","Edgar County",1.0128816225051143]
["Illinois","Edwards County",1]
["Illinois","Effingham County",1.0550766817432335]
["Illinois","Fayette County",1.0098124298626701]
["Illinois","Ford County",1.0265277536973629]
["Illinois","Franklin County",1.0191748243558498]
["Illinois","Fulton County",1]
["Illinois","Gallatin County",1]
["Illinois","Greene County",1]
["Illinois","Grundy County",1.1093825797099224]
["Illinois","Hamilton County",1.016460094946622]
["Illinois","Hancock County",1.020803213032381]
["Illinois","Hardin County",1]
["Illinois","Henderson County",1]
["Illinois","Henry County",1.036655671488881]
["Illinois","Iroquois County",1.0058600486462845]
["Illinois","Jackson County",1.0189525019795056]
["Illinois","Jasper County",1]
["Illinois","Jefferson County",1]
["Illinois","Jersey County",1.0576132453085831]
["Illinois","Jo Daviess County",1.0413105815590531]
["Illinois","Johnson County",1.0665893563366615]
["Illinois","Kane County",1.0696911938919009]
["Illinois","Kankakee County",1.034074154789725]
["Illinois","Kendall County",1.1734463477298953]
["Illinois","Knox County",1.0163325941694659]
["Illinois","Lake County",1.0522866914926579]
["Illinois","LaSalle County",1.0293194902287408]
["Illinois","Lawrence County",1]
["Illinois","Lee County",1.0375799549975286]
["Illinois","Livingston County",1.0247080402347621]
["Illinois","Logan County",1.0192088654134004]
["Illinois","McDonough County",1.0184413883481493]
["Illinois","McHenry County",1.0383619209770214]
["Illinois","McLean County",1.0851903193921943]
["Illinois","Macon County",1]
["Illinois","Macoupin County",1]
["Illinois","Madison County",1.0335881269912019]
["Illinois","Marion County",1.0025840363938978]
["Illinois","Marshall County",1]
["Illinois","Mason County",1.0109365587723032]
["Illinois","Massac County",1]
["Illinois","Menard County",1.0182975265680851]
["Illinois","Mercer County",1.0248727978257723]
["Illinois","Monroe County",1.1022644312885879]
["Illinois","Montgomery County",1.047027464714533]
["Illinois","Morgan County",1.0036117935281332]
["Illinois","Moultrie County",1.0685574856208171]
["Illinois","Ogle County",1.0424574861013571]
["Illinois","Peoria County",1.0373742419998124]
["Illinois","Perry County",1]
["Illinois","Piatt County",1.0297408723802506]
["Illinois","Pike County",1]
["Illinois","Pope County",1.0328436402530863]
["Illinois","Pulaski County",1]
["Illinois","Putnam County",1.0139181067531902]
["Illinois","Randolph County",1.0288524001696433]
["Illinois","Richland County",1]
["Illinois","Rock Island County",1.0254962445767748]
["Illinois","St. Clair County",1.0678385350965449]
["Illinois","Saline County",1]
["Illinois","Sangamon County",1.0295372051753606]
["Illinois","Schuyler County",1.0274442275735987]
["Illinois","Scott County",1]
["Illinois","Shelby County",1.033576928082526]
["Illinois","Stark County",1]
["Illinois","Stephenson County",1.0071598976571052]
["Illinois","Tazewell County",1.0428612420958285]
["Illinois","Union County",1]
["Illinois","Vermilion County",1.002088722603133]
["Illinois","Wabash County",1]
["Illinois","Warren County",1.0064054876731823]
["Illinois","Washington County",1.0114951307321287]
["Illinois","Wayne County",1]
["Illinois","White County",1]
["Illinois","Whiteside County",1.0251299085060497]
["Illinois","Will County",1.0555180612524153]
["Illinois","Williamson County",1.0669152641458703]
["Illinois","Winnebago County",1.0236139083693865]
["Illinois","Woodford County",1.0538560443224889]
["Indiana","Adams County",1.0088269349288428]
["Indiana","Allen County",1.0377054276227917]
["Indiana","Bartholomew County",1.0824678992739614]
["Indiana","Benton County",1.0322734510797584]
["Indiana","Blackford County",1]
["Indiana","Boone County",1.202652561819292]
["Indiana","Brown County",1.1053028021786062]
["Indiana","Carroll County",1.0283247528312436]
["Indiana","Cass County",1]
["Indiana","Clark County",1.0401868865885824]
["Indiana","Clay County",1.0350961021566021]
["Indiana","Clinton County",1]
["Indiana","Crawford County",1.0280204677944274]
["Indiana","Daviess County",1.038361395943487]
["Indiana","Dearborn County",1.0271448709810196]
["Indiana","Decatur County",1.05177697924861]
["Indiana","DeKalb County",1.0254746124137073]
["Indiana","Delaware County",1.006677458662141]
["Indiana","Dubois County",1.0633304174956462]
["Indiana","Elkhart County",1.0185954223438256]
["Indiana","Fayette County",1]
["Indiana","Floyd County",1.0454800686943124]
["Indiana","Fountain County",1.0079862657697927]
["Indiana","Franklin County",1.0364083423626727]
["Indiana","Fulton County",1.017296593214684]
["Indiana","Gibson County",1]
["Indiana","Grant County",1]
["Indiana","Greene County",1]
["Indiana","Hamilton County",1.1709918023070678]
["Indiana","Hancock County",1.0692624692881871]
["Indiana","Harrison County",1.1091411191617353]
["Indiana","Hendricks County",1.1049736218609798]
["Indiana","Henry County",1.0079184992402559]
["Indiana","Howard County",1]
["Indiana","Huntington County",1.0042841033060359]
["Indiana","Jackson County",1.032562792805455]
["Indiana","Jasper County",1.0482472903349929]
["Indiana","Jay County",1.0014869417388197]
["Indiana","Jefferson County",1.0249922168832239]
["Indiana","Jennings County",1]
["Indiana","Johnson County",1.0881231388705039]
["Indiana","Knox County",1]
["Indiana","Kosciusko County",1.0633820678670149]
["Indiana","LaGrange County",1.0238666008332178]
["Indiana","Lake County",1.0235625124215533]
["Indiana","LaPorte County",1.0301294028076415]
["Indiana","Lawrence County",1.0048487655100216]
["Indiana","Madison County",1.0097496255645457]
["Indiana","Marion County",1.027772523292775]
["Indiana","Marshall County",1.0519950312472139]
["Indiana","Martin County",1]
["Indiana","Miami County",1]
["Indiana","Monroe County",1.0620389340651251]
["Indiana","Montgomery County",1.0183261951648306]
["Indiana","Morgan County",1]
["Indiana","Newton County",1.0062979108085748]
["Indiana","Noble County",1.0407757685368537]
["Indiana","Ohio County",1.0538281307695487]
["Indiana","Orange County",1.0537703129641587]
["Indiana","Owen County",1]
["Indiana","Parke County",1.0442554447406596]
["Indiana","Perry County",1.0156099140235733]
["Indiana","Pike County",1]
["Indiana","Porter County",1.0344591922552873]
["Indiana","Posey County",1]
["Indiana","Pulaski County",1]
["Indiana","Putnam County",1.0388138495917145]
["Indiana","Randolph County",1]
["Indiana","Ripley County",1.0520645953986287]
["Indiana","Rush County",1]
["Indiana","St. Joseph County",1.0307352853543486]
["Indiana","Scott County",1]
["Indiana","Shelby County",1.0309166658549964]
["Indiana","Spencer County",1.0031446396034651]
["Indiana","Starke County",1.02214812161208]
["Indiana","Steuben County",1.0255579224099556]
["Indiana","Sullivan County",1]
["Indiana","Switzerland County",1.0043157299359775]
["Indiana","Tippecanoe County",1.1470957214684288]
["Indiana","Tipton County",1]
["Indiana","Union County",1]
["Indiana","Vanderburgh County",1.0411278349548749]
["Indiana","Vermillion County",1]
["Indiana","Vigo County",1.0198105430658235]
["Indiana","Wabash County",1]
["Indiana","Warren County",1]
["Indiana","Warrick County",1.0529105921570161]
["Indiana","Washington County",1.0315252685400091]
["Indiana","Wayne County",1.027776589004147]
["Indiana","Wells County",1.029263876029868]
["Indiana","White County",1.0206912577983243]
["Indiana","Whitley County",1.0624105033621114]
["Iowa","Adair County",1]
["Iowa","Adams County",1]
["Iowa","Allamakee County",1.0124650227592871]
["Iowa","Appanoose County",1]
["Iowa","Audubon County",1.0460336527827088]
["Iowa","Benton County",1.0267340706504515]
["Iowa","Black Hawk County",1.0660452244481946]
["Iowa","Boone County",1.0296709048770238]
["Iowa","Bremer County",1.0292829963512919]
["Iowa","Buchanan County",1.0011964391038655]
["Iowa","Buena Vista County",1.0250075988255971]
["Iowa","Butler County",1.0046000885302289]
["Iowa","Calhoun County",1]
["Iowa","Carroll County",1.0324758067119402]
["Iowa","Cass County",1]
["Iowa","Cedar County",1.0268650258166514]
["Iowa","Cerro Gordo County",1.0311543252674795]
["Iowa","Cherokee County",1.0023599626505622]
["Iowa","Chickasaw County",1.0172595990799573]
["Iowa","Clarke County",1.0548007937859474]
["Iowa","Clay County",1.0118543546678906]
["Iowa","Clayton County",1.0430370313396078]
["Iowa","Clinton County",1]
["Iowa","Crawford County",1.0095700475173]
["Iowa","Dallas County",1.2507522204174828]
["Iowa","Davis County",1]
["Iowa","Decatur County",1.0433318409313599]
["Iowa","Delaware County",1.0295882883452525]
["Iowa","Des Moines County",1]
["Iowa","Dickinson County",1.0327037328225166]
["Iowa","Dubuque County",1.0942211694395101]
["Iowa","Emmet County",1]
["Iowa","Fayette County",1.0056095405534218]
["Iowa","Floyd County",1.0291788617520972]
["Iowa","Franklin County",1.0405093003993096]
["Iowa","Fremont County",1]
["Iowa","Greene County",1]
["Iowa","Grundy County",1]
["Iowa","Guthrie County",1.0069639935769428]
["Iowa","Hamilton County",1]
["Iowa","Hancock County",1.0145315273962132]
["Iowa","Hardin County",1]
["Iowa","Harrison County",1]
["Iowa","Henry County",1]
["Iowa","Howard County",1.0035736658748364]
["Iowa","Humboldt County",1]
["Iowa","Ida County",1]
["Iowa","Iowa County",1.0772730100894603]
["Iowa","Jackson County",1.0344253776170755]
["Iowa","Jasper County",1.0157210434453781]
["Iowa","Jefferson County",1.0047880105804388]
["Iowa","Johnson County",1.1011504884854886]
["Iowa","Jones County",1.075012232004581]
["Iowa","Keokuk County",1]
["Iowa","Kossuth County",1.0037770051151531]
["Iowa","Lee County",1.0056404238782148]
["Iowa","Linn County",1.0583025860232267]
["Iowa","Louisa County",1]
["Iowa","Lucas County",1.0071727186873294]
["Iowa","Lyon County",1.053406388855104]
["Iowa","Madison County",1.0546227247585707]
["Iowa","Mahaska County",1.0154343226562581]
["Iowa","Marion County",1.0245154060501473]
["Iowa","Marshall County",1.0016296506806301]
["Iowa","Mills County",1.0513127576275463]
["Iowa","Mitchell County",1.0705655233316049]
["Iowa","Monona County",1.0270842386950942]
["Iowa","Monroe County",1.082557237484302]
["Iowa","Montgomery County",1]
["Iowa","Muscatine County",1.0175037374050957]
["Iowa","O'Brien County",1.0114436176436183]
["Iowa","Osceola County",1.0108203087282477]
["Iowa","Page County",1.0208723362697527]
["Iowa","Palo Alto County",1]
["Iowa","Plymouth County",1.0386192464875212]
["Iowa","Pocahontas County",1]
["Iowa","Polk County",1.0787142911376026]
["Iowa","Pottawattamie County",1.0209728721853941]
["Iowa","Poweshiek County",1.0029459440738777]
["Iowa","Ringgold County",1]
["Iowa","Sac County",1]
["Iowa","Scott County",1.0654520067356779]
["Iowa","Shelby County",1.0565473768030667]
["Iowa","Sioux County",1.0761444607253914]
["Iowa","Story County",1.1313901476589807]
["Iowa","Tama County",1.0102836397561834]
["Iowa","Taylor County",1]
["Iowa","Union County",1.0413516770024591]
["Iowa","Van Buren County",1.00729309142947]
["Iowa","Wapello County",1]
["Iowa","Warren County",1.1295693913272666]
["Iowa","Washington County",1.0810998903492144]
["Iowa","Wayne County",1]
["Iowa","Webster County",1.0089218895977949]
["Iowa","Winnebago County",1.0212881178706104]
["Iowa","Winneshiek County",1.0375180923863727]
["Iowa","Woodbury County",1.0072878905852147]
["Iowa","Worth County",1.0126943762353626]
["Iowa","Wright County",1.0073639691820748]
["Kansas","Allen County",1.0013734064901749]
["Kansas","Anderson County",1.0105015394434393]
["Kansas","Atchison County",1.0128611925313615]
["Kansas","Barber County",1.0145163526549363]
["Kansas","Barton County",1]
["Kansas","Bourbon County",1]
["Kansas","Brown County",1]
["Kansas","Butler County",1.0476812873330434]
["Kansas","Chase County",1]
["Kansas","Chautauqua County",1]
["Kansas","Cherokee County",1]
["Kansas","Cheyenne County",1]
["Kansas","Clark County",1.0153442582630148]
["Kansas","Clay County",1]
["Kansas","Cloud County",1]
["Kansas","Coffey County",1.0107061024922728]
["Kansas","Comanche County",1]
["Kansas","Cowley County",1.0079534382278812]
["Kansas","Crawford County",1]
["Kansas","Decatur County",1.0123634207868961]
["Kansas","Dickinson County",1.0627288180747043]
["Kansas","Doniphan County",1.0198384085944414]
["Kansas","Douglas County",1.0706382149871043]
["Kansas","Edwards County",1]
["Kansas","Elk County",1]
["Kansas","Ellis County",1.0848184540823183]
["Kansas","Ellsworth County",1]
["Kansas","Finney County",1]
["Kansas","Ford County",1.0481692359514341]
["Kansas","Franklin County",1.0031550743685638]
["Kansas","Geary County",1.1499853824062214]
["Kansas","Gove County",1]
["Kansas","Graham County",1]
["Kansas","Grant County",1]
["Kansas","Gray County",1.0811295593475303]
["Kansas","Greeley County",1]
["Kansas","Greenwood County",1]
["Kansas","Hamilton County",1.0103847230904908]
["Kansas","Harper County",1]
["Kansas","Harvey County",1.0446001711971644]
["Kansas","Haskell County",1.0423413640444537]
["Kansas","Hodgeman County",1.0208869213115537]
["Kansas","Jackson County",1.0695691499370277]
["Kansas","Jefferson County",1.0148103809984912]
["Kansas","Jewell County",1]
["Kansas","Johnson County",1.0969324525332982]
["Kansas","Kearny County",1]
["Kansas","Kingman County",1]
["Kansas","Kiowa County",1]
["Kansas","Labette County",1]
["Kansas","Lane County",1]
["Kansas","Leavenworth County",1.0531312578123244]
["Kansas","Lincoln County",1.0136220452424984]
["Kansas","Linn County",1.0755070601563301]
["Kansas","Logan County",1.0249734426944337]
["Kansas","Lyon County",1.0171699825882321]
["Kansas","McPherson County",1.0435846513304061]
["Kansas","Marion County",1]
["Kansas","Marshall County",1]
["Kansas","Meade County",1.0228703626530513]
["Kansas","Miami County",1.0726767406707185]
["Kansas","Mitchell County",1.0120079331753153]
["Kansas","Montgomery County",1]
["Kansas","Morris County",1]
["Kansas","Morton County",1]
["Kansas","Nemaha County",1.0427575971909988]
["Kansas","Neosho County",1.0683296189169713]
["Kansas","Ness County",1]
["Kansas","Norton County",1]
["Kansas","Osage County",1.0213356417040855]
["Kansas","Osborne County",1]
["Kansas","Ottawa County",1]
["Kansas","Pawnee County",1.0280899982901284]
["Kansas","Phillips County",1]
["Kansas","Pottawatomie County",1.0961401412010332]
["Kansas","Pratt County",1]
["Kansas","Rawlins County",1]
["Kansas","Reno County",1.0220738640302964]
["Kansas","Republic County",1]
["Kansas","Rice County",1.0141736796266634]
["Kansas","Riley County",1.1704032456387305]
["Kansas","Rooks County",1.0168626168284192]
["Kansas","Rush County",1]
["Kansas","Russell County",1.033706563671676]
["Kansas","Saline County",1.0509368347136996]
["Kansas","Scott County",1]
["Kansas","Sedgwick County",1.0512173445574637]
["Kansas","Seward County",1.0360257401810204]
["Kansas","Shawnee County",1.0274097547140895]
["Kansas","Sheridan County",1]
["Kansas","Sherman County",1]
["Kansas","Smith County",1]
["Kansas","Stafford County",1]
["Kansas","Stanton County",1]
["Kansas","Stevens County",1.0102398700854134]
["Kansas","Sumner County",1]
["Kansas","Thomas County",1.0055401802300237]
["Kansas","Trego County",1]
["Kansas","Wabaunsee County",1.0396183082172463]
["Kansas","Wallace County",1]
["Kansas","Washington County",1]
["Kansas","Wichita County",1]
["Kansas","Wilson County",1]
["Kansas","Woodson County",1]
["Kansas","Wyandotte County",1.0054447243159306]
["Kentucky","Adair County",1.0843872160755521]
["Kentucky","Allen County",1.1075051383347647]
["Kentucky","Anderson County",1.0563827712580589]
["Kentucky","Ballard County",1]
["Kentucky","Barren County",1.0842588380213072]
["Kentucky","Bath County",1.0327968027832637]
["Kentucky","Bell County",1]
["Kentucky","Boone County",1.1074492187564569]
["Kentucky","Bourbon County",1.0406326383863598]
["Kentucky","Boyd County",1]
["Kentucky","Boyle County",1.026257607971103]
["Kentucky","Bracken County",1.0017820098096366]
["Kentucky","Breathitt County",1]
["Kentucky","Breckinridge County",1.0323554242977364]
["Kentucky","Bullitt County",1.0884136370171174]
["Kentucky","Butler County",1]
["Kentucky","Caldwell County",1.0060497658008929]
["Kentucky","Calloway County",1.0658265750933551]
["Kentucky","Campbell County",1.0435429999826042]
["Kentucky","Carlisle County",1]
["Kentucky","Carroll County",1.0340706117587897]
["Kentucky","Carter County",1.0232903181326982]
["Kentucky","Casey County",1]
["Kentucky","Christian County",1.0520476227497135]
["Kentucky","Clark County",1.0144290269534619]
["Kentucky","Clay County",1]
["Kentucky","Clinton County",1.0447215100232379]
["Kentucky","Crittenden County",1.0100104125241796]
["Kentucky","Cumberland County",1.0251952446960679]
["Kentucky","Daviess County",1.0281218150873364]
["Kentucky","Edmonson County",1.0150423985181636]
["Kentucky","Elliott County",1.0367661786844597]
["Kentucky","Estill County",1]
["Kentucky","Fayette County",1.073946429918792]
["Kentucky","Fleming County",1.0512621257835066]
["Kentucky","Floyd County",1]
["Kentucky","Franklin County",1.0283255858546827]
["Kentucky","Fulton County",1]
["Kentucky","Gallatin County",1.0838293978778881]
["Kentucky","Garrard County",1.1115893934292322]
["Kentucky","Grant County",1]
["Kentucky","Graves County",1.0123763223468765]
["Kentucky","Grayson County",1.0430870504913838]
["Kentucky","Green County",1]
["Kentucky","Greenup County",1.0177486779140157]
["Kentucky","Hancock County",1.0274010796525204]
["Kentucky","Hardin County",1.1288119761495699]
["Kentucky","Harlan County",1]
["Kentucky","Harrison County",1.0234422241772103]
["Kentucky","Hart County",1.0739097828417412]
["Kentucky","Henderson County",1.0060364441996508]
["Kentucky","Henry County",1]
["Kentucky","Hickman County",1]
["Kentucky","Hopkins County",1.0034168986994354]
["Kentucky","Jackson County",1.039066835064212]
["Kentucky","Jefferson County",1.0458128378290468]
["Kentucky","Jessamine County",1.1098728080899125]
["Kentucky","Johnson County",1.0163725437796924]
["Kentucky","Kenton County",1.0086942413610269]
["Kentucky","Knott County",1]
["Kentucky","Knox County",1]
["Kentucky","Larue County",1]
["Kentucky","Laurel County",1.0882938939589972]
["Kentucky","Lawrence County",1]
["Kentucky","Lee County",1]
["Kentucky","Leslie County",1]
["Kentucky","Letcher County",1]
["Kentucky","Lewis County",1.0136108391255552]
["Kentucky","Lincoln County",1]
["Kentucky","Livingston County",1]
["Kentucky","Logan County",1.0348792493136041]
["Kentucky","Lyon County",1.0838936545767011]
["Kentucky","McCracken County",1.0115974371844207]
["Kentucky","McCreary County",1]
["Kentucky","McLean County",1]
["Kentucky","Madison County",1.1021793379869962]
["Kentucky","Magoffin County",1.0385124083765787]
["Kentucky","Marion County",1.0953840290961194]
["Kentucky","Marshall County",1.0559856878002196]
["Kentucky","Martin County",1]
["Kentucky","Mason County",1.0244879977529133]
["Kentucky","Meade County",1.1254527844011721]
["Kentucky","Menifee County",1]
["Kentucky","Mercer County",1.0143701253628881]
["Kentucky","Metcalfe County",1]
["Kentucky","Monroe County",1]
["Kentucky","Montgomery County",1.0649507873830957]
["Kentucky","Morgan County",1.0163171027538445]
["Kentucky","Muhlenberg County",1]
["Kentucky","Nelson County",1.0608177691971279]
["Kentucky","Nicholas County",1.0445770151842151]
["Kentucky","Ohio County",1.0010464282072942]
["Kentucky","Oldham County",1.0602512896550711]
["Kentucky","Owen County",1.0300337814832452]
["Kentucky","Owsley County",1.0012560974691622]
["Kentucky","Pendleton County",1.065232875810799]
["Kentucky","Perry County",1]
["Kentucky","Pike County",1]
["Kentucky","Powell County",1]
["Kentucky","Pulaski County",1.1132754900076383]
["Kentucky","Robertson County",1.0265150134471037]
["Kentucky","Rockcastle County",1.0105837082767812]
["Kentucky","Rowan County",1.0761898299878139]
["Kentucky","Russell County",1.0709873250221782]
["Kentucky","Scott County",1.213392735514808]
["Kentucky","Shelby County",1.0701000200866364]
["Kentucky","Simpson County",1.027707823910843]
["Kentucky","Spencer County",1.0939987301750889]
["Kentucky","Taylor County",1.0896046547836948]
["Kentucky","Todd County",1.0180248975780928]
["Kentucky","Trigg County",1.1124365799369698]
["Kentucky","Trimble County",1.090515511052125]
["Kentucky","Union County",1.0063247900511665]
["Kentucky","Warren County",1.1446726701744638]
["Kentucky","Washington County",1.0925808256808147]
["Kentucky","Wayne County",1.0872694116167994]
["Kentucky","Webster County",1]
["Kentucky","Whitley County",1]
["Kentucky","Wolfe County",1.0669575197802041]
["Kentucky","Woodford County",1.0548995791610407]
["Louisiana","Acadia Parish",1.0734916537478325]
["Louisiana","Allen Parish",1.0433814267351851]
["Louisiana","Ascension Parish",1.1632562857056019]
["Louisiana","Assumption Parish",1.0234118263269978]
["Louisiana","Avoyelles Parish",1.0343497402857551]
["Louisiana","Beauregard Parish",1.037509002510201]
["Louisiana","Bienville Parish",1]
["Louisiana","Bossier Parish",1.1735294755014216]
["Louisiana","Caddo Parish",1.0170042002241488]
["Louisiana","Calcasieu Parish",1.1034529652551197]
["Louisiana","Caldwell Parish",1]
["Louisiana","Cameron Parish",1]
["Louisiana","Catahoula Parish",1]
["Louisiana","Claiborne Parish",1]
["Louisiana","Concordia Parish",1]
["Louisiana","De Soto Parish",1.0547920756262155]
["Louisiana","East Baton Rouge Parish",1.0527889525201086]
["Louisiana","East Carroll Parish",1]
["Louisiana","East Feliciana Parish",1.0077500485093607]
["Louisiana","Evangeline Parish",1.005314369568814]
["Louisiana","Franklin Parish",1.0342374457269345]
["Louisiana","Grant Parish",1.016198429726848]
["Louisiana","Iberia Parish",1.0371529047623986]
["Louisiana","Iberville Parish",1.0480322154188317]
["Louisiana","Jackson Parish",1.03316522379464]
["Louisiana","Jefferson Parish",1.060965258429333]
["Louisiana","Jefferson Davis Parish",1.046628389213812]
["Louisiana","Lafayette Parish",1.1048384634384547]
["Louisiana","Lafourche Parish",1.0666439833810628]
["Louisiana","La Salle Parish",1.0144748865101296]
["Louisiana","Lincoln Parish",1.0749895204865303]
["Louisiana","Livingston Parish",1.1883812914258143]
["Louisiana","Madison Parish",1]
["Louisiana","Morehouse Parish",1]
["Louisiana","Natchitoches Parish",1.0465794422750387]
["Louisiana","Orleans Parish",1.1554040832446701]
["Louisiana","Ouachita Parish",1.0623007323560709]
["Louisiana","Plaquemines Parish",1.1353804383521839]
["Louisiana","Pointe Coupee Parish",1.0419354905583758]
["Louisiana","Rapides Parish",1.0470683225454271]
["Louisiana","Red River Parish",1.0028054443799319]
["Louisiana","Richland Parish",1.0363019551474109]
["Louisiana","Sabine Parish",1.0336403952821551]
["Louisiana","St. Bernard Parish",1.0030641441098811]
["Louisiana","St. Charles Parish",1.0546226289512108]
["Louisiana","St. Helena Parish",1]
["Louisiana","St. James Parish",1.1063596970586911]
["Louisiana","St. John the Baptist Parish",1.0306524290514387]
["Louisiana","St. Landry Parish",1]
["Louisiana","St. Martin Parish",1.050220998103867]
["Louisiana","St. Mary Parish",1.0428945068373054]
["Louisiana","St. Tammany Parish",1.0619338475047271]
["Louisiana","Tangipahoa Parish",1.0907279121879001]
["Louisiana","Tensas Parish",1]
["Louisiana","Terrebonne Parish",1.0349846310337498]
["Louisiana","Union Parish",1]
["Louisiana","Vermilion Parish",1.097008550164448]
["Louisiana","Vernon Parish",1]
["Louisiana","Washington Parish",1.0587257114335182]
["Louisiana","Webster Parish",1]
["Louisiana","West Baton Rouge Parish",1.1021764312640561]
["Louisiana","West Carroll Parish",1]
["Louisiana","West Feliciana Parish",1.0449962503823764]
["Louisiana","Winn Parish",1]
["Maine","Androscoggin County",1.0388898793611037]
["Maine","Aroostook County",1.0177453355506185]
["Maine","Cumberland County",1.0655327392239324]
["Maine","Franklin County",1.0880831370561164]
["Maine","Hancock County",1.0997978047046066]
["Maine","Kennebec County",1.0422635200301036]
["Maine","Knox County",1.0451559178898342]
["Maine","Lincoln County",1.0578937705049798]
["Maine","Oxford County",1.0577300309058248]
["Maine","Penobscot County",1.0684401043387584]
["Maine","Piscataquis County",1.0817085451446276]
["Maine","Sagadahoc County",1.0579229977130846]
["Maine","Somerset County",1.077011205307802]
["Maine","Waldo County",1.0836116584675417]
["Maine","Washington County",1.0226389312096198]
["Maine","York County",1.0462237026575352]
["Maryland","Allegany County",1.0233732861220126]
["Maryland","Anne Arundel County",1.121197517016447]
["Maryland","Baltimore County",1.0493644301092933]
["Maryland","Calvert County",1.0934751163467884]
["Maryland","Caroline County",1.0182641741544542]
["Maryland","Carroll County",1.0473265730408512]
["Maryland","Cecil County",1.0734040973963102]
["Maryland","Charles County",1.125249671109815]
["Maryland","Dorchester County",1.0364502771801867]
["Maryland","Frederick County",1.1080884420759598]
["Maryland","Garrett County",1.0223905804779978]
["Maryland","Harford County",1.0655388540274116]
["Maryland","Howard County",1.1261033193147032]
["Maryland","Kent County",1.0216463394879973]
["Maryland","Montgomery County",1.0855802302183539]
["Maryland","Prince George's County",1.0564816378424049]
["Maryland","Queen Anne's County",1.0858927057789649]
["Maryland","St. Mary's County",1.1148301589510381]
["Maryland","Somerset County",1.0458760370357281]
["Maryland","Talbot County",1.0397557986515285]
["Maryland","Washington County",1.0298825667525127]
["Maryland","Wicomico County",1.0360245949550619]
["Maryland","Worcester County",1.0284905152633375]
["Maryland","Baltimore city",1.0286815977179189]
["Massachusetts","Barnstable County",1.0507515601813635]
["Massachusetts","Berkshire County",1.0178099299455181]
["Massachusetts","Bristol County",1.0434035764351037]
["Massachusetts","Dukes County",1.0902189554972677]
["Massachusetts","Essex County",1.0469552397983164]
["Massachusetts","Franklin County",1.0304030689108026]
["Massachusetts","Hampden County",1.0243674256051918]
["Massachusetts","Hampshire County",1.0417697831400754]
["Massachusetts","Middlesex County",1.0514437645262311]
["Massachusetts","Nantucket County",1.110260333104093]
["Massachusetts","Norfolk County",1.0549620752105695]
["Massachusetts","Plymouth County",1.0683988301522875]
["Massachusetts","Suffolk County",1.0524500226679692]
["Massachusetts","Worcester County",1.0513999668489928]
["Michigan","Alcona County",1]
["Michigan","Alger County",1.0306364358428479]
["Michigan","Allegan County",1.0356525586959555]
["Michigan","Alpena County",1.0354469355277409]
["Michigan","Antrim County",1.0763486192023599]
["Michigan","Arenac County",1]
["Michigan","Baraga County",1.0774050774947499]
["Michigan","Barry County",1.0481949969076112]
["Michigan","Bay County",1.0164931481698805]
["Michigan","Benzie County",1.0428296846486687]
["Michigan","Berrien County",1.01052338840829]
["Michigan","Branch County",1.0101729064541867]
["Michigan","Calhoun County",1.0174934003731853]
["Michigan","Cass County",1.0182806695427185]
["Michigan","Charlevoix County",1.0066949589150678]
["Michigan","Cheboygan County",1.0309286039087642]
["Michigan","Chippewa County",1.0384203082027024]
["Michigan","Clare County",1.0111334632692883]
["Michigan","Clinton County",1.0545592605280443]
["Michigan","Crawford County",1.0442957832669877]
["Michigan","Delta County",1.0181699898713528]
["Michigan","Dickinson County",1.0084699783921005]
["Michigan","Eaton County",1.0476733288878028]
["Michigan","Emmet County",1.0207208131256564]
["Michigan","Genesee County",1]
["Michigan","Gladwin County",1]
["Michigan","Gogebic County",1]
["Michigan","Grand Traverse County",1.0608790902379974]
["Michigan","Gratiot County",1.0365809966129271]
["Michigan","Hillsdale County",1.0114769178939844]
["Michigan","Houghton County",1.0225402899279104]
["Michigan","Huron County",1.0044569973487563]
["Michigan","Ingham County",1.0303619826945445]
["Michigan","Ionia County",1.0337953060918106]
["Michigan","Iosco County",1]
["Michigan","Iron County",1.0378155629476407]
["Michigan","Isabella County",1]
["Michigan","Jackson County",1.0310423995639586]
["Michigan","Kalamazoo County",1.0360415245786916]
["Michigan","Kalkaska County",1.038331050016811]
["Michigan","Kent County",1.039232463642076]
["Michigan","Keweenaw County",1.0091257793366917]
["Michigan","Lake County",1.0397595976938803]
["Michigan","Lapeer County",1.0301577065332026]
["Michigan","Leelanau County",1.0306689794358128]
["Michigan","Lenawee County",1.0281610559909495]
["Michigan","Livingston County",1.0286648653840471]
["Michigan","Luce County",1.0074917767341987]
["Michigan","Mackinac County",1.0957987055565646]
["Michigan","Macomb County",1.0395942687105144]
["Michigan","Manistee County",1.0108242066532371]
["Michigan","Marquette County",1.0170695992292624]
["Michigan","Mason County",1.0162507910585963]
["Michigan","Mecosta County",1]
["Michigan","Menominee County",1]
["Michigan","Midland County",1.0489992050403143]
["Michigan","Missaukee County",1]
["Michigan","Monroe County",1.0085460061393028]
["Michigan","Montcalm County",1.0348332349511993]
["Michigan","Montmorency County",1]
["Michigan","Muskegon County",1.0156319289546514]
["Michigan","Newaygo County",1.0128498319761516]
["Michigan","Oakland County",1.0305696149263412]
["Michigan","Oceana County",1.0009342448082506]
["Michigan","Ogemaw County",1]
["Michigan","Ontonagon County",1.0116479489415]
["Michigan","Osceola County",1.0125876073790354]
["Michigan","Oscoda County",1.0027285890860451]
["Michigan","Otsego County",1.0233534106646749]
["Michigan","Ottawa County",1.059772773414497]
["Michigan","Presque Isle County",1]
["Michigan","Roscommon County",1]
["Michigan","Saginaw County",1]
["Michigan","St. Clair County",1]
["Michigan","St. Joseph County",1.0193229083745572]
["Michigan","Sanilac County",1.0350190107780235]
["Michigan","Schoolcraft County",1.0505812747854884]
["Michigan","Shiawassee County",1.0102886549386905]
["Michigan","Tuscola County",1.0182454632500617]
["Michigan","Van Buren County",1.0108291376950831]
["Michigan","Washtenaw County",1.0326971199744808]
["Michigan","Wayne County",1]
["Michigan","Wexford County",1.0325148784555496]
["Minnesota","Aitkin County",1.0146584845952136]
["Minnesota","Anoka County",1.0738810745427498]
["Minnesota","Becker County",1.0612014028537566]
["Minnesota","Beltrami County",1.1145776591284786]
["Minnesota","Benton County",1.0125962834165327]
["Minnesota","Big Stone County",1]
["Minnesota","Blue Earth County",1.0813192336748991]
["Minnesota","Brown County",1.0015286497328981]
["Minnesota","Carlton County",1.0273581414986279]
["Minnesota","Carver County",1.1204012236782126]
["Minnesota","Cass County",1]
["Minnesota","Chippewa County",1]
["Minnesota","Chisago County",1.103026387920031]
["Minnesota","Clay County",1.0845960914742738]
["Minnesota","Clearwater County",1.1109374057804979]
["Minnesota","Cook County",1.0736586277081441]
["Minnesota","Cottonwood County",1.0113835722600197]
["Minnesota","Crow Wing County",1.0392097195233121]
["Minnesota","Dakota County",1.0792900947094588]
["Minnesota","Dodge County",1.0468928037456107]
["Minnesota","Douglas County",1.0790906310542194]
["Minnesota","Faribault County",1]
["Minnesota","Fillmore County",1.0318485575851613]
["Minnesota","Freeborn County",1.0279717470645946]
["Minnesota","Goodhue County",1.0307664516986983]
["Minnesota","Grant County",1.0520196702714371]
["Minnesota","Hennepin County",1.0667045338240491]
["Minnesota","Houston County",1.0162118837785719]
["Minnesota","Hubbard County",1.1056174716997949]
["Minnesota","Isanti County",1]
["Minnesota","Itasca County",1.0061979051480598]
["Minnesota","Jackson County",1]
["Minnesota","Kanabec County",1.0318856175165827]
["Minnesota","Kandiyohi County",1.011471260767979]
["Minnesota","Kittson County",1]
["Minnesota","Koochiching County",1]
["Minnesota","Lac qui Parle County",1]
["Minnesota","Lake County",1.0551827380123893]
["Minnesota","Lake of the Woods County",1.0446208794255631]
["Minnesota","Le Sueur County",1.017849989556713]
["Minnesota","Lincoln County",1.0160328981541169]
["Minnesota","Lyon County",1.0413360185083844]
["Minnesota","McLeod County",1.0220490268946461]
["Minnesota","Mahnomen County",1.0035392002590928]
["Minnesota","Marshall County",1]
["Minnesota","Martin County",1.0116115277672302]
["Minnesota","Meeker County",1.0057385828572976]
["Minnesota","Mille Lacs County",1.048636414733072]
["Minnesota","Morrison County",1.0003074416269189]
["Minnesota","Mower County",1.0160131487224358]
["Minnesota","Murray County",1.029766864962788]
["Minnesota","Nicollet County",1.0726553789704032]
["Minnesota","Nobles County",1.027430424635897]
["Minnesota","Norman County",1]
["Minnesota","Olmsted County",1.0644861243567862]
["Minnesota","Otter Tail County",1.0184035400163318]
["Minnesota","Pennington County",1.0166372641897805]
["Minnesota","Pine County",1.0437211371360746]
["Minnesota","Pipestone County",1.0102238136874422]
["Minnesota","Polk County",1.0145591849938098]
["Minnesota","Pope County",1.0446212572937532]
["Minnesota","Ramsey County",1.0434119363196483]
["Minnesota","Red Lake County",1.0194757779941424]
["Minnesota","Redwood County",1.0105692955006154]
["Minnesota","Renville County",1]
["Minnesota","Rice County",1.0516781301636304]
["Minnesota","Rock County",1.0240777452234098]
["Minnesota","Roseau County",1.0072380638435887]
["Minnesota","St. Louis County",1.0448374168370669]
["Minnesota","Scott County",1.1068686732208968]
["Minnesota","Sherburne County",1.0549187764754766]
["Minnesota","Sibley County",1.0313129354068087]
["Minnesota","Stearns County",1.0702879045186022]
["Minnesota","Steele County",1.0513777663903903]
["Minnesota","Stevens County",1]
["Minnesota","Swift County",1]
["Minnesota","Todd County",1.010849360919909]
["Minnesota","Traverse County",1]
["Minnesota","Wabasha County",1]
["Minnesota","Wadena County",1.0355943384317792]
["Minnesota","Waseca County",1.0179884021587329]
["Minnesota","Washington County",1.1110210406059742]
["Minnesota","Watonwan County",1]
["Minnesota","Wilkin County",1]
["Minnesota","Winona County",1.0343330053843061]
["Minnesota","Wright County",1.0436972160260796]
["Minnesota","Yellow Medicine County",1]
["Mississippi","Adams County",1]
["Mississippi","Alcorn County",1.0550781457924088]
["Mississippi","Amite County",1]
["Mississippi","Attala County",1.0121183953245252]
["Mississippi","Benton County",1.1389337408674174]
["Mississippi","Bolivar County",1]
["Mississippi","Calhoun County",1]
["Mississippi","Carroll County",1]
["Mississippi","Chickasaw County",1]
["Mississippi","Choctaw County",1]
["Mississippi","Claiborne County",1]
["Mississippi","Clarke County",1]
["Mississippi","Clay County",1.0260201242432356]
["Mississippi","Coahoma County",1]
["Mississippi","Copiah County",1.0625021890350363]
["Mississippi","Covington County",1.0147470172636344]
["Mississippi","DeSoto County",1.0915638618961268]
["Mississippi","Forrest County",1]
["Mississippi","Franklin County",1]
["Mississippi","George County",1.1473817323655369]
["Mississippi","Greene County",1.0015213177513784]
["Mississippi","Grenada County",1]
["Mississippi","Hancock County",1.2040023829770998]
["Mississippi","Harrison County",1.1507789107216384]
["Mississippi","Hinds County",1.0118907504887966]
["Mississippi","Holmes County",1]
["Mississippi","Humphreys County",1]
["Mississippi","Issaquena County",1]
["Mississippi","Itawamba County",1.0030411336208758]
["Mississippi","Jackson County",1.0922735369114891]
["Mississippi","Jasper County",1.0303282134981719]
["Mississippi","Jefferson County",1]
["Mississippi","Jefferson Davis County",1]
["Mississippi","Jones County",1.042310494706419]
["Mississippi","Kemper County",1.003692993629385]
["Mississippi","Lafayette County",1.1892332274297237]
["Mississippi","Lamar County",1.2802066911404633]
["Mississippi","Lauderdale County",1.011670424666208]
["Mississippi","Lawrence County",1.0386318996734536]
["Mississippi","Leake County",1.0495224465688637]
["Mississippi","Lee County",1.0902358589136831]
["Mississippi","Leflore County",1]
["Mississippi","Lincoln County",1.0538088566679407]
["Mississippi","Lowndes County",1.033233914745332]
["Mississippi","Madison County",1.136504715949366]
["Mississippi","Marion County",1.0933848077688015]
["Mississippi","Marshall County",1.0325751046305944]
["Mississippi","Monroe County",1]
["Mississippi","Montgomery County",1]
["Mississippi","Neshoba County",1]
["Mississippi","Newton County",1]
["Mississippi","Noxubee County",1]
["Mississippi","Oktibbeha County",1.0625428957196794]
["Mississippi","Panola County",1.0148299571184429]
["Mississippi","Pearl River County",1.0113407933206755]
["Mississippi","Perry County",1.0539426299640033]
["Mississippi","Pike County",1.0345365307966761]
["Mississippi","Pontotoc County",1.0944394238651625]
["Mississippi","Prentiss County",1.0005275328290488]
["Mississippi","Quitman County",1]
["Mississippi","Rankin County",1.0730157628008388]
["Mississippi","Scott County",1.0010122824448655]
["Mississippi","Sharkey County",1]
["Mississippi","Simpson County",1.0273877755642138]
["Mississippi","Smith County",1]
["Mississippi","Stone County",1.1806674652306217]
["Mississippi","Sunflower County",1]
["Mississippi","Tallahatchie County",1]
["Mississippi","Tate County",1.0431091368607306]
["Mississippi","Tippah County",1.052785120670793]
["Mississippi","Tishomingo County",1.047124935341285]
["Mississippi","Tunica County",1.0782357538169465]
["Mississippi","Union County",1.0685570302471783]
["Mississippi","Walthall County",1.0533976892777055]
["Mississippi","Warren County",1.0345130513598235]
["Mississippi","Washington County",1]
["Mississippi","Wayne County",1]
["Mississippi","Webster County",1.0669274332700565]
["Mississippi","Wilkinson County",1]
["Mississippi","Winston County",1.0016732204985415]
["Mississippi","Yalobusha County",1]
["Mississippi","Yazoo County",1]
["Missouri","Adair County",1.0146784352990736]
["Missouri","Andrew County",1.0570295858883241]
["Missouri","Atchison County",1]
["Missouri","Audrain County",1]
["Missouri","Barry County",1.0437623743615823]
["Missouri","Barton County",1.0113315647290579]
["Missouri","Bates County",1.0555112667846402]
["Missouri","Benton County",1.0690898506721593]
["Missouri","Bollinger County",1.044895104706113]
["Missouri","Boone County",1.0973146097175936]
["Missouri","Buchanan County",1.0511869916281826]
["Missouri","Butler County",1.0388930411746125]
["Missouri","Caldwell County",1]
["Missouri","Callaway County",1.0766918021635998]
["Missouri","Camden County",1.1352576170000086]
["Missouri","Cape Girardeau County",1.0698739046006303]
["Missouri","Carroll County",1]
["Missouri","Carter County",1.0417347467105555]
["Missouri","Cass County",1.0556011667395118]
["Missouri","Cedar County",1.0294472835607307]
["Missouri","Chariton County",1]
["Missouri","Christian County",1.1069979790813447]
["Missouri","Clark County",1]
["Missouri","Clay County",1.0181913134489298]
["Missouri","Clinton County",1.012341991095115]
["Missouri","Cole County",1.0494000129234906]
["Missouri","Cooper County",1.0705756224625187]
["Missouri","Crawford County",1.0595701771492974]
["Missouri","Dade County",1.0409153934189366]
["Missouri","Dallas County",1.0564143615695634]
["Missouri","Daviess County",1.0672858021349798]
["Missouri","DeKalb County",1.0436866626496335]
["Missouri","Dent County",1.0245450237458189]
["Missouri","Douglas County",1.0607101660651277]
["Missouri","Dunklin County",1]
["Missouri","Franklin County",1.0388085506898506]
["Missouri","Gasconade County",1.0192165496205621]
["Missouri","Gentry County",1.000610332955373]
["Missouri","Greene County",1.0773293264264763]
["Missouri","Grundy County",1]
["Missouri","Harrison County",1.0101912829731332]
["Missouri","Henry County",1.0472686552231827]
["Missouri","Hickory County",1.048699791733311]
["Missouri","Holt County",1]
["Missouri","Howard County",1.0440552806691663]
["Missouri","Howell County",1.0646433123823553]
["Missouri","Iron County",1.0553114582870728]
["Missouri","Jackson County",1.0288504737883732]
["Missouri","Jasper County",1.0619673503938212]
["Missouri","Jefferson County",1.0472987995520069]
["Missouri","Johnson County",1.0737032189803299]
["Missouri","Knox County",1]
["Missouri","Laclede County",1.0342695862008835]
["Missouri","Lafayette County",1.0296373952409756]
["Missouri","Lawrence County",1.0766714901635868]
["Missouri","Lewis County",1]
["Missouri","Lincoln County",1.1716769559811482]
["Missouri","Linn County",1]
["Missouri","Livingston County",1.0149539767112516]
["Missouri","McDonald County",1.0332321076749609]
["Missouri","Macon County",1.0114614421931725]
["Missouri","Madison County",1.0231472835007729]
["Missouri","Maries County",1.0703379351780486]
["Missouri","Marion County",1.0330236149673224]
["Missouri","Mercer County",1]
["Missouri","Miller County",1.0720804683648812]
["Missouri","Mississippi County",1]
["Missouri","Moniteau County",1.0525281980853554]
["Missouri","Monroe County",1]
["Missouri","Montgomery County",1.0143385012351049]
["Missouri","Morgan County",1.0705790131322526]
["Missouri","New Madrid County",1]
["Missouri","Newton County",1.0679287690318708]
["Missouri","Nodaway County",1.0313715772463685]
["Missouri","Oregon County",1.0701744465460385]
["Missouri","Osage County",1.102235797780541]
["Missouri","Ozark County",1.0666312484344411]
["Missouri","Pemiscot County",1]
["Missouri","Perry County",1.065659037408683]
["Missouri","Pettis County",1.0636574271071666]
["Missouri","Phelps County",1.0666521760141392]
["Missouri","Pike County",1.029355446439705]
["Missouri","Platte County",1.0640672690164457]
["Missouri","Polk County",1.1016315485083963]
["Missouri","Pulaski County",1.1156191536957918]
["Missouri","Putnam County",1.0026432315504499]
["Missouri","Ralls County",1.093157506155308]
["Missouri","Randolph County",1]
["Missouri","Ray County",1]
["Missouri","Reynolds County",1.042517104041857]
["Missouri","Ripley County",1.0046303639042522]
["Missouri","St. Charles County",1.1115267328617953]
["Missouri","St. Clair County",1.0429594067727335]
["Missouri","Ste. Genevieve County",1.0496200989941609]
["Missouri","St. Francois County",1.1448864800010274]
["Missouri","St. Louis County",1.0282153737925972]
["Missouri","Saline County",1.0022212895412532]
["Missouri","Schuyler County",1]
["Missouri","Scotland County",1.0262978250817225]
["Missouri","Scott County",1]
["Missouri","Shannon County",1.0459572579894729]
["Missouri","Shelby County",1]
["Missouri","Stoddard County",1.0099972260626058]
["Missouri","Stone County",1.1101457267899231]
["Missouri","Sullivan County",1]
["Missouri","Taney County",1.1809254363314627]
["Missouri","Texas County",1.0526609108657716]
["Missouri","Vernon County",1.0544264086696677]
["Missouri","Warren County",1.0922112863369762]
["Missouri","Washington County",1.0678050791722651]
["Missouri","Wayne County",1.0344559056757854]
["Missouri","Webster County",1.0990776828775708]
["Missouri","Worth County",1.0288751691229816]
["Missouri","Wright County",1.0703855883096893]
["Missouri","St. Louis city",1]
["Montana","Beaverhead County",1.1329685149389714]
["Montana","Big Horn County",1.0215293476513345]
["Montana","Blaine County",1]
["Montana","Broadwater County",1.2552620836991615]
["Montana","Carbon County",1.1353445052888191]
["Montana","Carter County",1.0507136574235578]
["Montana","Cascade County",1.0609894686421941]
["Montana","Chouteau County",1.0409878982310063]
["Montana","Custer County",1.0683085964485763]
["Montana","Daniels County",1]
["Montana","Dawson County",1.1078555541420267]
["Montana","Deer Lodge County",1.0409054297765721]
["Montana","Fallon County",1.1345804472510248]
["Montana","Fergus County",1.0719759901528749]
["Montana","Flathead County",1.1972466422946995]
["Montana","Gallatin County",1.1476614763140272]
["Montana","Garfield County",1]
["Montana","Glacier County",1.0367771264293215]
["Montana","Golden Valley County",1.1173744700129586]
["Montana","Granite County",1.2386893652060795]
["Montana","Hill County",1]
["Montana","Jefferson County",1.1791964243548261]
["Montana","Judith Basin County",1.0551602212640545]
["Montana","Lake County",1.1543260330862872]
["Montana","Lewis and Clark County",1.1551545964129408]
["Montana","Liberty County",1]
["Montana","Lincoln County",1.2049900490276513]
["Montana","McCone County",1]
["Montana","Madison County",1.2867319145236147]
["Montana","Meagher County",1.0750693069352582]
["Montana","Mineral County",1.2043572474460875]
["Montana","Missoula County",1.1343038611255021]
["Montana","Musselshell County",1.160678590926786]
["Montana","Park County",1.1036106563946615]
["Montana","Petroleum County",1.1611003121895815]
["Montana","Phillips County",1]
["Montana","Pondera County",1]
["Montana","Powder River County",1.030409005592964]
["Montana","Powell County",1.0730134874778399]
["Montana","Prairie County",1]
["Montana","Ravalli County",1.1656480390430692]
["Montana","Richland County",1.231905575596969]
["Montana","Roosevelt County",1.0597758130396198]
["Montana","Rosebud County",1.1139571762900071]
["Montana","Sanders County",1.2105118863095479]
["Montana","Sheridan County",1.0722995721183128]
["Montana","Silver Bow County",1.0541801232565842]
["Montana","Stillwater County",1.175227627586001]
["Montana","Sweet Grass County",1.1146030380088647]
["Montana","Teton County",1.0200140029281859]
["Montana","Toole County",1.0523646455450377]
["Montana","Treasure County",1.0747009099125129]
["Montana","Valley County",1.0308558658056479]
["Montana","Wheatland County",1.0783067070927879]
["Montana","Wibaux County",1]
["Montana","Yellowstone County",1.1227791980418047]
["Nebraska","Adams County",1.0444080956566739]
["Nebraska","Antelope County",1]
["Nebraska","Arthur County",1]
["Nebraska","Banner County",1]
["Nebraska","Blaine County",1]
["Nebraska","Boone County",1]
["Nebraska","Box Butte County",1.0101738438942034]
["Nebraska","Boyd County",1]
["Nebraska","Brown County",1]
["Nebraska","Buffalo County",1.0771887456061959]
["Nebraska","Burt County",1]
["Nebraska","Butler County",1.0081043510974199]
["Nebraska","Cass County",1.0349987868832513]
["Nebraska","Cedar County",1]
["Nebraska","Chase County",1.0085917688756765]
["Nebraska","Cherry County",1]
["Nebraska","Cheyenne County",1.0220774786040079]
["Nebraska","Clay County",1]
["Nebraska","Colfax County",1.0338729977234564]
["Nebraska","Cuming County",1]
["Nebraska","Custer County",1.0024581684860037]
["Nebraska","Dakota County",1.0550416730772563]
["Nebraska","Dawes County",1.0603823217445432]
["Nebraska","Dawson County",1.0512224016131069]
["Nebraska","Deuel County",1.0318886315062139]
["Nebraska","Dixon County",1.0121983342757503]
["Nebraska","Dodge County",1.0516645044530839]
["Nebraska","Douglas County",1.0985769631019973]
["Nebraska","Dundy County",1]
["Nebraska","Fillmore County",1]
["Nebraska","Franklin County",1.0180347485841081]
["Nebraska","Frontier County",1.0099676869441656]
["Nebraska","Furnas County",1.0108011840111266]
["Nebraska","Gage County",1.0134983060478144]
["Nebraska","Garden County",1.0082586147153907]
["Nebraska","Garfield County",1.130819853602262]
["Nebraska","Gosper County",1.0214815027875503]
["Nebraska","Grant County",1]
["Nebraska","Greeley County",1.077735272810644]
["Nebraska","Hall County",1.0715610915074305]
["Nebraska","Hamilton County",1.0443850353879882]
["Nebraska","Harlan County",1.0208686063291941]
["Nebraska","Hayes County",1]
["Nebraska","Hitchcock County",1.0444023213673161]
["Nebraska","Holt County",1]
["Nebraska","Hooker County",1.0131957029592789]
["Nebraska","Howard County",1.0467143868289965]
["Nebraska","Jefferson County",1]
["Nebraska","Johnson County",1.0231594808541824]
["Nebraska","Kearney County",1.0756340284703305]
["Nebraska","Keith County",1]
["Nebraska","Keya Paha County",1]
["Nebraska","Kimball County",1.0050339898822549]
["Nebraska","Knox County",1.002624223055776]
["Nebraska","Lancaster County",1.0973965138770372]
["Nebraska","Lincoln County",1.0464950328495983]
["Nebraska","Logan County",1.0171509732418818]
["Nebraska","Loup County",1.1095615860798471]
["Nebraska","McPherson County",1]
["Nebraska","Madison County",1.0252661974196156]
["Nebraska","Merrick County",1.0002595077153078]
["Nebraska","Morrill County",1.0008038908744834]
["Nebraska","Nance County",1.0711537138956642]
["Nebraska","Nemaha County",1.0063936168406764]
["Nebraska","Nuckolls County",1]
["Nebraska","Otoe County",1.0390384803627075]
["Nebraska","Pawnee County",1.0139029628049481]
["Nebraska","Perkins County",1.0108314072417226]
["Nebraska","Phelps County",1.0205845299782337]
["Nebraska","Pierce County",1]
["Nebraska","Platte County",1.053993868931359]
["Nebraska","Polk County",1.0032269079903036]
["Nebraska","Red Willow County",1.0226489620931214]
["Nebraska","Richardson County",1]
["Nebraska","Rock County",1]
["Nebraska","Saline County",1.0301438226260098]
["Nebraska","Sarpy County",1.1409338299144736]
["Nebraska","Saunders County",1.0520975639767829]
["Nebraska","Scotts Bluff County",1.0210269007304564]
["Nebraska","Seward County",1.0517682095878991]
["Nebraska","Sheridan County",1]
["Nebraska","Sherman County",1.0586502772489972]
["Nebraska","Sioux County",1.0669889927643652]
["Nebraska","Stanton County",1.0613103691181593]
["Nebraska","Thayer County",1]
["Nebraska","Thomas County",1]
["Nebraska","Thurston County",1]
["Nebraska","Valley County",1.0337327827269274]
["Nebraska","Washington County",1.0600000003196999]
["Nebraska","Wayne County",1.0427783640888801]
["Nebraska","Webster County",1]
["Nebraska","Wheeler County",1]
["Nebraska","York County",1.0290340277022771]
["Nevada","Churchill County",1]
["Nevada","Clark County",1.0881335139917416]
["Nevada","Douglas County",1.0346508459432404]
["Nevada","Elko County",1.0795226724361742]
["Nevada","Esmeralda County",1]
["Nevada","Eureka County",1.0018851923709562]
["Nevada","Humboldt County",1]
["Nevada","Lander County",1]
["Nevada","Lincoln County",1.1601221163510358]
["Nevada","Lyon County",1.1864016545262404]
["Nevada","Mineral County",1]
["Nevada","Nye County",1.2328147974104589]
["Nevada","Pershing County",1.0209905094798524]
["Nevada","Storey County",1.082616412474088]
["Nevada","Washoe County",1.0557843549754344]
["Nevada","White Pine County",1.0052959211611059]
["Nevada","Carson City",1.0447703432476421]
["New Hampshire","Belknap County",1.0661732060352982]
["New Hampshire","Carroll County",1.0570903932305988]
["New Hampshire","Cheshire County",1.0451058612612187]
["New Hampshire","Coos County",1.0626865609717209]
["New Hampshire","Grafton County",1.1063362911928678]
["New Hampshire","Hillsborough County",1.0586842810276278]
["New Hampshire","Merrimack County",1.0428865261401512]
["New Hampshire","Rockingham County",1.0562841695005889]
["New Hampshire","Strafford County",1.06831312453766]
["New Hampshire","Sullivan County",1.0463549156175369]
["New Jersey","Atlantic County",1.0373306162958409]
["New Jersey","Bergen County",1.0565948277927197]
["New Jersey","Burlington County",1.0519842222522193]
["New Jersey","Camden County",1.032324192427724]
["New Jersey","Cape May County",1]
["New Jersey","Cumberland County",1.0490730411912721]
["New Jersey","Essex County",1.0360963704842887]
["New Jersey","Gloucester County",1.087613301400391]
["New Jersey","Hudson County",1.0991799615123079]
["New Jersey","Hunterdon County",1.0760523804788571]
["New Jersey","Mercer County",1.0626147450961101]
["New Jersey","Middlesex County",1.0789055671362271]
["New Jersey","Monmouth County",1.0463863153148791]
["New Jersey","Morris County",1.0653485013131871]
["New Jersey","Ocean County",1.0514010689871514]
["New Jersey","Passaic County",1.0525735757867385]
["New Jersey","Salem County",1.0375978487968931]
["New Jersey","Somerset County",1.0674490740484668]
["New Jersey","Sussex County",1.0650922992413316]
["New Jersey","Union County",1.0559265887082794]
["New Jersey","Warren County",1.0426950286998307]
["New Mexico","Bernalillo County",1.053862882888176]
["New Mexico","Catron County",1.1817046224434615]
["New Mexico","Chaves County",1.0293886685575129]
["New Mexico","Cibola County",1.0426722840248539]
["New Mexico","Colfax County",1.0792913243247861]
["New Mexico","Curry County",1.0531985914403843]
["New Mexico","De Baca County",1]
["New Mexico","Dona Ana County",1.1177067464404957]
["New Mexico","Eddy County",1.0908117309171685]
["New Mexico","Grant County",1.0502185403223421]
["New Mexico","Guadalupe County",1.0984235012417045]
["New Mexico","Harding County",1]
["New Mexico","Hidalgo County",1]
["New Mexico","Lea County",1.0441454315079115]
["New Mexico","Lincoln County",1.0770286384032692]
["New Mexico","Los Alamos County",1]
["New Mexico","Luna County",1]
["New Mexico","McKinley County",1]
["New Mexico","Mora County",1.0769526318580938]
["New Mexico","Otero County",1.0316672367073445]
["New Mexico","Quay County",1]
["New Mexico","Rio Arriba County",1.086993075577535]
["New Mexico","Roosevelt County",1.0878945605214332]
["New Mexico","Sandoval County",1.1165725711029797]
["New Mexico","San Juan County",1.1061439742089165]
["New Mexico","San Miguel County",1.0876857373606499]
["New Mexico","Santa Fe County",1.1239869962465479]
["New Mexico","Sierra County",1]
["New Mexico","Socorro County",1.0307376366642975]
["New Mexico","Taos County",1.1376295217981927]
["New Mexico","Torrance County",1.072705995073985]
["New Mexico","Union County",1.0513611546129433]
["New Mexico","Valencia County",1.1268986964000018]
["New York","Albany County",1.0500838137724502]
["New York","Allegany County",1.0534008433438671]
["New York","Bronx County",1.041460466271197]
["New York","Broome County",1.029571980755434]
["New York","Cattaraugus County",1.0272949077821694]
["New York","Cayuga County",1.0305444698722912]
["New York","Chautauqua County",1.0308480801462374]
["New York","Chemung County",1.0329487452519417]
["New York","Chenango County",1.0293270175920934]
["New York","Clinton County",1.0512138395301975]
["New York","Columbia County",1.0369150924623396]
["New York","Cortland County",1.0266699823551009]
["New York","Delaware County",1.0590393099113928]
["New York","Dutchess County",1.0698264553494554]
["New York","Erie County",1.017141920259125]
["New York","Essex County",1.0563255683894837]
["New York","Franklin County",1.0459511849315852]
["New York","Fulton County",1.0338720889847011]
["New York","Genesee County",1.0553273255578612]
["New York","Greene County",1.0469087034973326]
["New York","Hamilton County",1.0578814971364205]
["New York","Herkimer County",1.0391164586822401]
["New York","Jefferson County",1.0355792692615342]
["New York","Kings County",1.0593728805119342]
["New York","Lewis County",1]
["New York","Livingston County",1.1004406426849735]
["New York","Madison County",1.0787639254502226]
["New York","Monroe County",1.0483783284678996]
["New York","Montgomery County",1.0618318326591716]
["New York","Nassau County",1.0368762672623335]
["New York","New York County",1.0333185176441342]
["New York","Niagara County",1.0301604447399972]
["New York","Oneida County",1.022770834405097]
["New York","Onondaga County",1.038670075882461]
["New York","Ontario County",1.0936512782506482]
["New York","Orange County",1.0703230704526736]
["New York","Orleans County",1.0590538428433729]
["New York","Oswego County",1.0206106724179311]
["New York","Otsego County",1.017933994441699]
["New York","Putnam County",1.075185665737858]
["New York","Queens County",1.0403559309493073]
["New York","Rensselaer County",1.0591365945042122]
["New York","Richmond County",1.0268018950090609]
["New York","Rockland County",1.0711951885577133]
["New York","St. Lawrence County",1.0447166794242837]
["New York","Saratoga County",1.1041188335101939]
["New York","Schenectady County",1.0418802996951206]
["New York","Schoharie County",1.0507136574235578]
["New York","Schuyler County",1.0262385026883116]
["New York","Seneca County",1.0960808737066388]
["New York","Steuben County",1.0720819488281421]
["New York","Suffolk County",1.061535914854165]
["New York","Sullivan County",1.0375472661654919]
["New York","Tioga County",1.0378703539875369]
["New York","Tompkins County",1.0490456282680429]
["New York","Ulster County",1.0421233722386583]
["New York","Warren County",1.0527793274715793]
["New York","Washington County",1.0386182695456916]
["New York","Wayne County",1.0410970091014984]
["New York","Westchester County",1.0441328886726478]
["New York","Wyoming County",1.0506159527769179]
["New York","Yates County",1.0857471823807687]
["North Carolina","Alamance County",1.0885588405042159]
["North Carolina","Alexander County",1.0503675764907774]
["North Carolina","Alleghany County",1.1169647096144777]
["North Carolina","Anson County",1.0939341908113156]
["North Carolina","Ashe County",1.1146868419000913]
["North Carolina","Avery County",1.0306915072855118]
["North Carolina","Beaufort County",1.1042231314383746]
["North Carolina","Bertie County",1.0587612620211719]
["North Carolina","Bladen County",1.1012262034503086]
["North Carolina","Brunswick County",1.0881343763480591]
["North Carolina","Buncombe County",1.0959846015309829]
["North Carolina","Burke County",1.0450070567312455]
["North Carolina","Cabarrus County",1.1066711749704008]
["North Carolina","Caldwell County",1.0569971500146216]
["North Carolina","Camden County",1.0404515112123871]
["North Carolina","Carteret County",1.10362798326079]
["North Carolina","Caswell County",1.0490019180655743]
["North Carolina","Catawba County",1.0221727098633084]
["North Carolina","Chatham County",1.1547742838304234]
["North Carolina","Cherokee County",1.0838733804939151]
["North Carolina","Chowan County",1.0484151596910265]
["North Carolina","Clay County",1.073970164584769]
["North Carolina","Cleveland County",1.0245883338590747]
["North Carolina","Columbus County",1.0527815700862577]
["North Carolina","Craven County",1.0699143107447675]
["North Carolina","Cumberland County",1.1571875246891952]
["North Carolina","Currituck County",1.0935236290051744]
["North Carolina","Dare County",1.0537599002174982]
["North Carolina","Davidson County",1.0626816669559016]
["North Carolina","Davie County",1.0467530539042249]
["North Carolina","Duplin County",1.1601298142124419]
["North Carolina","Durham County",1.1085130541291535]
["North Carolina","Edgecombe County",1]
["North Carolina","Forsyth County",1.0694654799989358]
["North Carolina","Franklin County",1.1041898304604172]
["North Carolina","Gaston County",1.0535763184114191]
["North Carolina","Gates County",1.1186867444466544]
["North Carolina","Graham County",1.0637002293779454]
["North Carolina","Granville County",1.0766793750308303]
["North Carolina","Greene County",1.0752339076671582]
["North Carolina","Guilford County",1.0792946920453019]
["North Carolina","Halifax County",1.0044588780084753]
["North Carolina","Harnett County",1.12324568134916]
["North Carolina","Haywood County",1.0967366747146214]
["North Carolina","Henderson County",1.0971028800023843]
["North Carolina","Hertford County",1.0598735242160964]
["North Carolina","Hoke County",1.2310738346152452]
["North Carolina","Hyde County",1]
["North Carolina","Iredell County",1.0187647118632417]
["North Carolina","Jackson County",1.10008028274753]
["North Carolina","Johnston County",1.1092941045127471]
["North Carolina","Jones County",1.0451301220849287]
["North Carolina","Lee County",1.0516407618320369]
["North Carolina","Lenoir County",1]
["North Carolina","Lincoln County",1.0812084571564808]
["North Carolina","McDowell County",1.0656517797834066]
["North Carolina","Macon County",1.0816707076065826]
["North Carolina","Madison County",1]
["North Carolina","Martin County",1.0542225718274403]
["North Carolina","Mecklenburg County",1.0429138226668968]
["North Carolina","Mitchell County",1.0659012323232266]
["North Carolina","Montgomery County",1.0858215956182784]
["North Carolina","Moore County",1.1134187448124169]
["North Carolina","Nash County",1.0447761574898564]
["North Carolina","New Hanover County",1.0716525283584502]
["North Carolina","Northampton County",1.0679845551497071]
["North Carolina","Onslow County",1.2169096540526527]
["North Carolina","Orange County",1.0631726360453655]
["North Carolina","Pamlico County",1.0425861942984262]
["North Carolina","Pasquotank County",1.0530078506199327]
["North Carolina","Pender County",1.0723972932249217]
["North Carolina","Perquimans County",1.0556986048129993]
["North Carolina","Person County",1.073994336305645]
["North Carolina","Pitt County",1.0571224794684211]
["North Carolina","Polk County",1.0978249981721846]
["North Carolina","Randolph County",1.0449370082302791]
["North Carolina","Richmond County",1]
["North Carolina","Robeson County",1.058156499880313]
["North Carolina","Rockingham County",1.0304894658820731]
["North Carolina","Rowan County",1.0174676882152358]
["North Carolina","Rutherford County",1.0643496842107361]
["North Carolina","Sampson County",1.0473897028050274]
["North Carolina","Scotland County",1.0119986617565027]
["North Carolina","Stanly County",1.0151166952532567]
["North Carolina","Stokes County",1.0657892862958143]
["North Carolina","Surry County",1.0445113199311153]
["North Carolina","Swain County",1.0870412902452045]
["North Carolina","Transylvania County",1.1190716241989764]
["North Carolina","Tyrrell County",1]
["North Carolina","Union County",1.108833444445029]
["North Carolina","Vance County",1.0630074687496807]
["North Carolina","Wake County",1.143918136204213]
["North Carolina","Warren County",1.0426922540332519]
["North Carolina","Washington County",1.0410458745320685]
["North Carolina","Watauga County",1.1731462491343994]
["North Carolina","Wayne County",1.0593473262598132]
["North Carolina","Wilkes County",1.0783881203569625]
["North Carolina","Wilson County",1.0626023417609511]
["North Carolina","Yadkin County",1.0360146496442892]
["North Carolina","Yancey County",1.0530150279132213]
["North Dakota","Adams County",1.0103609965649598]
["North Dakota","Barnes County",1.0186349004514264]
["North Dakota","Benson County",1.058528097535322]
["North Dakota","Billings County",1.1671307180068182]
["North Dakota","Bottineau County",1.0264495540436438]
["North Dakota","Bowman County",1.1299179416503771]
["North Dakota","Burke County",1.0288542619132204]
["North Dakota","Burleigh County",1.1946765867831002]
["North Dakota","Cass County",1.1797128673440396]
["North Dakota","Cavalier County",1]
["North Dakota","Dickey County",1.0369727380989682]
["North Dakota","Divide County",1.1782936892087239]
["North Dakota","Dunn County",1.1789518795751555]
["North Dakota","Eddy County",1]
["North Dakota","Emmons County",1.0369727380989682]
["North Dakota","Foster County",1.0539074063741118]
["North Dakota","Golden Valley County",1.0984869683983125]
["North Dakota","Grand Forks County",1.0968480562094731]
["North Dakota","Grant County",1.0299954063134655]
["North Dakota","Griggs County",1]
["North Dakota","Hettinger County",1.0438795266313785]
["North Dakota","Kidder County",1.0687440633576597]
["North Dakota","LaMoure County",1]
["North Dakota","Logan County",1]
["North Dakota","McHenry County",1.0941621362842104]
["North Dakota","McIntosh County",1.0262908345099255]
["North Dakota","McKenzie County",1.3303081777585803]
["North Dakota","McLean County",1.1339293860686586]
["North Dakota","Mercer County",1.0927238632058214]
["North Dakota","Morton County",1.1889928684006015]
["North Dakota","Mountrail County",1.2899012408656176]
["North Dakota","Nelson County",1.0044268535193792]
["North Dakota","Oliver County",1.0760742814649062]
["North Dakota","Pembina County",1]
["North Dakota","Pierce County",1.0318257853484516]
["North Dakota","Ramsey County",1.067952773535418]
["North Dakota","Ransom County",1.0125236434728371]
["North Dakota","Renville County",1.0374636661485295]
["North Dakota","Richland County",1.0440240262297276]
["North Dakota","Rolette County",1.1561575240036062]
["North Dakota","Sargent County",1.0265449485918845]
["North Dakota","Sheridan County",1]
["North Dakota","Sioux County",1.1155045119503484]
["North Dakota","Slope County",1]
["North Dakota","Stark County",1.2375279230084537]
["North Dakota","Steele County",1]
["North Dakota","Stutsman County",1.0639388922572981]
["North Dakota","Towner County",1]
["North Dakota","Traill County",1.0521811286370677]
["North Dakota","Walsh County",1.0307371179490445]
["North Dakota","Ward County",1.272554921560284]
["North Dakota","Wells County",1]
["North Dakota","Williams County",1.5]
["Ohio","Adams County",1.0793410596745558]
["Ohio","Allen County",1.0101458556792333]
["Ohio","Ashland County",1.0206912316952446]
["Ohio","Ashtabula County",1.0230640923025716]
["Ohio","Athens County",1.0487494494229268]
["Ohio","Auglaize County",1.0265247893487897]
["Ohio","Belmont County",1.0437350788062307]
["Ohio","Brown County",1]
["Ohio","Butler County",1.058133308196664]
["Ohio","Carroll County",1.0587038075511548]
["Ohio","Champaign County",1.008570406065993]
["Ohio","Clark County",1.0044444127460297]
["Ohio","Clermont County",1.0816694748994107]
["Ohio","Clinton County",1.0189181806371619]
["Ohio","Columbiana County",1.0196591170531146]
["Ohio","Coshocton County",1.0346067108800763]
["Ohio","Crawford County",1]
["Ohio","Cuyahoga County",1.0180216377373155]
["Ohio","Darke County",1.0354285914482166]
["Ohio","Defiance County",1.0079657831806101]
["Ohio","Delaware County",1.1326870177973216]
["Ohio","Erie County",1.0232324635417069]
["Ohio","Fairfield County",1.0734849811851346]
["Ohio","Fayette County",1.0163658469785322]
["Ohio","Franklin County",1.0622375815460141]
["Ohio","Fulton County",1.0264339247387757]
["Ohio","Gallia County",1.0521048791235468]
["Ohio","Geauga County",1.0519178737862447]
["Ohio","Greene County",1.0454547860924603]
["Ohio","Guernsey County",1]
["Ohio","Hamilton County",1.0022006968330923]
["Ohio","Hancock County",1]
["Ohio","Hardin County",1.0409608989807864]
["Ohio","Harrison County",1.061138372890166]
["Ohio","Henry County",1]
["Ohio","Highland County",1.0592182066556401]
["Ohio","Hocking County",1.0740980371284827]
["Ohio","Holmes County",1.0881735055606025]
["Ohio","Huron County",1.0249877623728123]
["Ohio","Jackson County",1.0088899271618348]
["Ohio","Jefferson County",1]
["Ohio","Knox County",1.0840693411279081]
["Ohio","Lake County",1.0448428576748117]
["Ohio","Lawrence County",1.022738833719993]
["Ohio","Licking County",1.0834133629912803]
["Ohio","Logan County",1.0161999836570859]
["Ohio","Lorain County",1.0667790572334259]
["Ohio","Lucas County",1.0108729633777949]
["Ohio","Madison County",1.0469451611649285]
["Ohio","Mahoning County",1]
["Ohio","Marion County",1.0214365921584592]
["Ohio","Medina County",1.0829677024920095]
["Ohio","Meigs County",1.0350852898794218]
["Ohio","Mercer County",1.0654367854043758]
["Ohio","Miami County",1.0645738881899338]
["Ohio","Monroe County",1.052424763955301]
["Ohio","Montgomery County",1.0195621914215116]
["Ohio","Morgan County",1]
["Ohio","Morrow County",1.0752644726761442]
["Ohio","Muskingum County",1.0741649493084506]
["Ohio","Noble County",1.0658782228202237]
["Ohio","Ottawa County",1.0383707239726916]
["Ohio","Paulding County",1.0072713352266152]
["Ohio","Perry County",1.0770869530742369]
["Ohio","Pickaway County",1.0782627468513186]
["Ohio","Pike County",1.0318547590137275]
["Ohio","Portage County",1.0826424339419973]
["Ohio","Preble County",1.0137503264250061]
["Ohio","Putnam County",1.0393578527400607]
["Ohio","Richland County",1.009405954120103]
["Ohio","Ross County",1.0645187308809581]
["Ohio","Sandusky County",1.0274224231413323]
["Ohio","Scioto County",1.0010051767435826]
["Ohio","Seneca County",1.0045232442330811]
["Ohio","Shelby County",1.0238566144555996]
["Ohio","Stark County",1.0245854598935491]
["Ohio","Summit County",1.0300728266288686]
["Ohio","Trumbull County",1.0038562831759736]
["Ohio","Tuscarawas County",1.0440155324059677]
["Ohio","Union County",1.0793209370334602]
["Ohio","Van Wert County",1.0285218752997562]
["Ohio","Vinton County",1.0927778526819667]
["Ohio","Warren County",1.1241883351105488]
["Ohio","Washington County",1.0235988445673052]
["Ohio","Wayne County",1.0222684140985141]
["Ohio","Williams County",1]
["Ohio","Wood County",1.0522492894026971]
["Ohio","Wyandot County",1.0453931137467944]
["Oklahoma","Adair County",1.0828303479242853]
["Oklahoma","Alfalfa County",1]
["Oklahoma","Atoka County",1.0938826596835218]
["Oklahoma","Beaver County",1]
["Oklahoma","Beckham County",1.0769948473969095]
["Oklahoma","Blaine County",1]
["Oklahoma","Bryan County",1.1109360048899077]
["Oklahoma","Caddo County",1]
["Oklahoma","Canadian County",1.1379079689716756]
["Oklahoma","Carter County",1.0288191572039431]
["Oklahoma","Cherokee County",1.0623326116285172]
["Oklahoma","Choctaw County",1]
["Oklahoma","Cimarron County",1.0030935832619461]
["Oklahoma","Cleveland County",1.1227551988750841]
["Oklahoma","Coal County",1.0110674148121936]
["Oklahoma","Comanche County",1.1101105989962736]
["Oklahoma","Cotton County",1]
["Oklahoma","Craig County",1.0363766768191853]
["Oklahoma","Creek County",1.0280016624938928]
["Oklahoma","Custer County",1.0532846080582527]
["Oklahoma","Delaware County",1.0425929685862658]
["Oklahoma","Dewey County",1]
["Oklahoma","Ellis County",1.0585939481389919]
["Oklahoma","Garfield County",1.0185215111303516]
["Oklahoma","Garvin County",1.0092608007346473]
["Oklahoma","Grady County",1.0999789349318303]
["Oklahoma","Grant County",1]
["Oklahoma","Greer County",1]
["Oklahoma","Harmon County",1]
["Oklahoma","Harper County",1.027003175977014]
["Oklahoma","Haskell County",1.0467831801514018]
["Oklahoma","Hughes County",1.012313084772515]
["Oklahoma","Jackson County",1]
["Oklahoma","Jefferson County",1.0054510899469462]
["Oklahoma","Johnston County",1.0401600019003467]
["Oklahoma","Kay County",1.0004077924664192]
["Oklahoma","Kingfisher County",1.0745226997692394]
["Oklahoma","Kiowa County",1]
["Oklahoma","Latimer County",1.0386181179752687]
["Oklahoma","Le Flore County",1.0517418510425771]
["Oklahoma","Lincoln County",1.0755526823232611]
["Oklahoma","Logan County",1.1588814219473322]
["Oklahoma","Love County",1.0737015468502977]
["Oklahoma","McClain County",1.1571424957470025]
["Oklahoma","McCurtain County",1]
["Oklahoma","McIntosh County",1.012947222633195]
["Oklahoma","Major County",1.0265354488627723]
["Oklahoma","Marshall County",1.1099443454919635]
["Oklahoma","Mayes County",1.0612795681528855]
["Oklahoma","Murray County",1.0233104043947607]
["Oklahoma","Muskogee County",1.0166786007768205]
["Oklahoma","Noble County",1.0380846605704455]
["Oklahoma","Nowata County",1.0068696850725591]
["Oklahoma","Okfuskee County",1.0292835997087249]
["Oklahoma","Oklahoma County",1.0470152309183836]
["Oklahoma","Okmulgee County",1.0188580697977003]
["Oklahoma","Osage County",1.080650969226399]
["Oklahoma","Ottawa County",1]
["Oklahoma","Pawnee County",1.0152600210162945]
["Oklahoma","Payne County",1.0777895737605672]
["Oklahoma","Pittsburg County",1.0461694504461807]
["Oklahoma","Pontotoc County",1.064348225550297]
["Oklahoma","Pottawatomie County",1.0681382759435878]
["Oklahoma","Pushmataha County",1.0318091664148357]
["Oklahoma","Roger Mills County",1.0724986723997456]
["Oklahoma","Rogers County",1.1438883303140703]
["Oklahoma","Seminole County",1.037826982647573]
["Oklahoma","Sequoyah County",1.0585360725268225]
["Oklahoma","Stephens County",1.0339638098450901]
["Oklahoma","Texas County",1]
["Oklahoma","Tillman County",1]
["Oklahoma","Tulsa County",1.0916170256089166]
["Oklahoma","Wagoner County",1.0748011226728273]
["Oklahoma","Washington County",1.0545070808538939]
["Oklahoma","Washita County",1.0023273102228627]
["Oklahoma","Woods County",1.0028584955005417]
["Oklahoma","Woodward County",1.0599522380335027]
["Oregon","Baker County",1.0214562829696296]
["Oregon","Benton County",1.0946293016996469]
["Oregon","Clackamas County",1.0815439376966376]
["Oregon","Clatsop County",1.0623508297178965]
["Oregon","Columbia County",1.0555960615042839]
["Oregon","Coos County",1.0264089878725726]
["Oregon","Crook County",1.0311581634915514]
["Oregon","Curry County",1.0427378936815148]
["Oregon","Deschutes County",1.0678778004196312]
["Oregon","Douglas County",1.0665528166999119]
["Oregon","Gilliam County",1.0736443260735253]
["Oregon","Grant County",1.0187730921507767]
["Oregon","Harney County",1.0538452563458791]
["Oregon","Hood River County",1.0953054540256937]
["Oregon","Jackson County",1.0576386032173737]
["Oregon","Jefferson County",1.0119440043276908]
["Oregon","Josephine County",1.0401282224740163]
["Oregon","Klamath County",1.0646639471489641]
["Oregon","Lake County",1.045794450800043]
["Oregon","Lane County",1.0668230515019408]
["Oregon","Lincoln County",1.0543013449644225]
["Oregon","Linn County",1.0503421049738573]
["Oregon","Malheur County",1.0255147630392671]
["Oregon","Marion County",1.0484392245675935]
["Oregon","Morrow County",1.0465407902026116]
["Oregon","Multnomah County",1.0623456966085745]
["Oregon","Polk County",1.1113842427721279]
["Oregon","Sherman County",1]
["Oregon","Tillamook County",1.0423021941614965]
["Oregon","Umatilla County",1.0301894332377151]
["Oregon","Union County",1.0702917376312295]
["Oregon","Wallowa County",1.0103085036693451]
["Oregon","Wasco County",1.06202045836742]
["Oregon","Washington County",1.0759788480750223]
["Oregon","Wheeler County",1.0077080155239195]
["Oregon","Yamhill County",1.0524929524799189]
["Pennsylvania","Adams County",1.0647910355482573]
["Pennsylvania","Allegheny County",1.0178187264771457]
["Pennsylvania","Armstrong County",1.0126108269004699]
["Pennsylvania","Beaver County",1.0097592453473982]
["Pennsylvania","Bedford County",1.0188165689167152]
["Pennsylvania","Berks County",1.0432006236708404]
["Pennsylvania","Blair County",1.0168889344637124]
["Pennsylvania","Bradford County",1.0489278646245084]
["Pennsylvania","Bucks County",1.0410996429071764]
["Pennsylvania","Butler County",1.0561578512040173]
["Pennsylvania","Cambria County",1.0031703615669865]
["Pennsylvania","Cameron County",1]
["Pennsylvania","Carbon County",1.055503777885908]
["Pennsylvania","Centre County",1.1118162373469866]
["Pennsylvania","Chester County",1.0814677083791726]
["Pennsylvania","Clarion County",1.0136854508046791]
["Pennsylvania","Clearfield County",1.014938482104041]
["Pennsylvania","Clinton County",1.0223580116927757]
["Pennsylvania","Columbia County",1.0446638151792489]
["Pennsylvania","Crawford County",1.0353771552151039]
["Pennsylvania","Cumberland County",1.0978577223432264]
["Pennsylvania","Dauphin County",1.067548875234178]
["Pennsylvania","Delaware County",1.0273795353145467]
["Pennsylvania","Elk County",1]
["Pennsylvania","Erie County",1.0368614458075323]
["Pennsylvania","Fayette County",1]
["Pennsylvania","Forest County",1]
["Pennsylvania","Franklin County",1.0855639590948054]
["Pennsylvania","Fulton County",1]
["Pennsylvania","Greene County",1]
["Pennsylvania","Huntingdon County",1.0379051535447084]
["Pennsylvania","Indiana County",1.0141353677709843]
["Pennsylvania","Jefferson County",1]
["Pennsylvania","Juniata County",1.0633280557108917]
["Pennsylvania","Lackawanna County",1.0137549242305512]
["Pennsylvania","Lancaster County",1.0880979088844525]
["Pennsylvania","Lawrence County",1.029179812428648]
["Pennsylvania","Lebanon County",1.0623600189931861]
["Pennsylvania","Lehigh County",1.0609468491661525]
["Pennsylvania","Luzerne County",1.0217652676246138]
["Pennsylvania","Lycoming County",1]
["Pennsylvania","McKean County",1]
["Pennsylvania","Mercer County",1.0220853753616002]
["Pennsylvania","Mifflin County",1.0336731779938848]
["Pennsylvania","Monroe County",1.0410966963241788]
["Pennsylvania","Montgomery County",1.0602121354911822]
["Pennsylvania","Montour County",1.0380596310639958]
["Pennsylvania","Northampton County",1.0531178872359162]
["Pennsylvania","Northumberland County",1.0454064316481539]
["Pennsylvania","Perry County",1.0562392883355622]
["Pennsylvania","Philadelphia County",1.0317420533079305]
["Pennsylvania","Pike County",1]
["Pennsylvania","Potter County",1.0272434364916108]
["Pennsylvania","Schuylkill County",1.0074349153157338]
["Pennsylvania","Snyder County",1.0569684119032199]
["Pennsylvania","Somerset County",1.0125145409723815]
["Pennsylvania","Sullivan County",1.0087552537425739]
["Pennsylvania","Susquehanna County",1.0349635160525352]
["Pennsylvania","Tioga County",1.0521243854224651]
["Pennsylvania","Union County",1.1033510278202465]
["Pennsylvania","Venango County",1.0187820223633683]
["Pennsylvania","Warren County",1.0150510722823261]
["Pennsylvania","Washington County",1.0420923077417923]
["Pennsylvania","Wayne County",1]
["Pennsylvania","Westmoreland County",1.0316048513484457]
["Pennsylvania","Wyoming County",1.0330072008760651]
["Pennsylvania","York County",1.0567551114962828]
["Rhode Island","Bristol County",1.0422625933767073]
["Rhode Island","Kent County",1.0368604978483655]
["Rhode Island","Newport County",1.037498446909261]
["Rhode Island","Providence County",1.0475693758920825]
["Rhode Island","Washington County",1.0506670818571164]
["South Carolina","Abbeville County",1.0196910696948915]
["South Carolina","Aiken County",1.1094609045001893]
["South Carolina","Allendale County",1]
["South Carolina","Anderson County",1.0413769929248531]
["South Carolina","Bamberg County",1.0660162500825168]
["South Carolina","Barnwell County",1.0231103390669141]
["South Carolina","Beaufort County",1.1208265709267264]
["South Carolina","Berkeley County",1.1712899074011598]
["South Carolina","Calhoun County",1.0035999318496427]
["South Carolina","Charleston County",1.071003552348885]
["South Carolina","Cherokee County",1.0389130252992409]
["South Carolina","Chester County",1]
["South Carolina","Chesterfield County",1.0869388248492209]
["South Carolina","Clarendon County",1.069593198597786]
["South Carolina","Colleton County",1.0367454397081146]
["South Carolina","Darlington County",1.0264976584068632]
["South Carolina","Dillon County",1.05819552473461]
["South Carolina","Dorchester County",1.1769297481047571]
["South Carolina","Edgefield County",1.0700502833408922]
["South Carolina","Fairfield County",1.0722484007680757]
["South Carolina","Florence County",1.089673051022563]
["South Carolina","Georgetown County",1.0302847973898057]
["South Carolina","Greenville County",1.0783409016796455]
["South Carolina","Greenwood County",1.0450264252355925]
["South Carolina","Hampton County",1.0442152635873683]
["South Carolina","Horry County",1.1223867117178523]
["South Carolina","Jasper County",1.1551609480504723]
["South Carolina","Kershaw County",1.0996093483115978]
["South Carolina","Lancaster County",1.1070345285339225]
["South Carolina","Laurens County",1]
["South Carolina","Lee County",1]
["South Carolina","Lexington County",1.1381968052658533]
["South Carolina","McCormick County",1.1069251313898945]
["South Carolina","Marion County",1]
["South Carolina","Marlboro County",1.0136514212859873]
["South Carolina","Newberry County",1.0262118324973093]
["South Carolina","Oconee County",1.0278714243203493]
["South Carolina","Orangeburg County",1.0320102937660782]
["South Carolina","Pickens County",1.0236376962673979]
["South Carolina","Richland County",1.0909434096085238]
["South Carolina","Saluda County",1.0583109795352899]
["South Carolina","Spartanburg County",1.0360196679573166]
["South Carolina","Sumter County",1.0575878714168021]
["South Carolina","Union County",1.0498671452080357]
["South Carolina","Williamsburg County",1]
["South Carolina","York County",1.1350959193157508]
["South Dakota","Aurora County",1.0200493538808866]
["South Dakota","Beadle County",1.0473874314531297]
["South Dakota","Bennett County",1]
["South Dakota","Bon Homme County",1]
["South Dakota","Brookings County",1.0860602932505983]
["South Dakota","Brown County",1.0952183003906337]
["South Dakota","Brule County",1.044795831501323]
["South Dakota","Buffalo County",1]
["South Dakota","Butte County",1.0729194551412204]
["South Dakota","Campbell County",1.0178204842775265]
["South Dakota","Charles Mix County",1]
["South Dakota","Clark County",1.0140592771038217]
["South Dakota","Clay County",1.0294571864833237]
["South Dakota","Codington County",1.0708812273933579]
["South Dakota","Corson County",1]
["South Dakota","Custer County",1.116322883776272]
["South Dakota","Davison County",1.0681617618737329]
["South Dakota","Day County",1.0036839238144237]
["South Dakota","Deuel County",1]
["South Dakota","Dewey County",1]
["South Dakota","Douglas County",1]
["South Dakota","Edmunds County",1]
["South Dakota","Fall River County",1.0555144310960043]
["South Dakota","Faulk County",1]
["South Dakota","Grant County",1]
["South Dakota","Gregory County",1.0321152748537923]
["South Dakota","Haakon County",1]
["South Dakota","Hamlin County",1.0293002475495374]
["South Dakota","Hand County",1]
["South Dakota","Hanson County",1]
["South Dakota","Harding County",1]
["South Dakota","Hughes County",1.0795665753655483]
["South Dakota","Hutchinson County",1]
["South Dakota","Hyde County",1]
["South Dakota","Jackson County",1]
["South Dakota","Jerauld County",1]
["South Dakota","Jones County",1.0047292591380899]
["South Dakota","Kingsbury County",1]
["South Dakota","Lake County",1]
["South Dakota","Lawrence County",1.1235857381956662]
["South Dakota","Lincoln County",1.3377982029655446]
["South Dakota","Lyman County",1.0345072514231815]
["South Dakota","McCook County",1]
["South Dakota","McPherson County",1]
["South Dakota","Marshall County",1.0066812910685177]
["South Dakota","Meade County",1.051892272209022]
["South Dakota","Mellette County",1.0046576701878376]
["South Dakota","Miner County",1]
["South Dakota","Minnehaha County",1.0538541121215452]
["South Dakota","Moody County",1.0108534496051393]
["South Dakota","Pennington County",1.1100292913929457]
["South Dakota","Perkins County",1]
["South Dakota","Potter County",1]
["South Dakota","Roberts County",1.0174307397936602]
["South Dakota","Sanborn County",1]
["South Dakota","Shannon County",1.0973582672771123]
["South Dakota","Spink County",1]
["South Dakota","Stanley County",1.0497951777474803]
["South Dakota","Sully County",1]
["South Dakota","Todd County",1.0690226691250051]
["South Dakota","Tripp County",1.0076268320610628]
["South Dakota","Turner County",1.0291396363193641]
["South Dakota","Union County",1.1127655254377347]
["South Dakota","Walworth County",1]
["South Dakota","Yankton County",1.0474224236924714]
["South Dakota","Ziebach County",1.0774427053895654]
["Tennessee","Anderson County",1.03449284028052]
["Tennessee","Bedford County",1.0875816259517403]
["Tennessee","Benton County",1.0312948556425807]
["Tennessee","Bledsoe County",1.0610420930881728]
["Tennessee","Blount County",1.065297256702388]
["Tennessee","Bradley County",1.0675535598658183]
["Tennessee","Campbell County",1.0823541091728797]
["Tennessee","Cannon County",1.0742326975161345]
["Tennessee","Carroll County",1.0028410041096727]
["Tennessee","Carter County",1.038373236230711]
["Tennessee","Cheatham County",1.0314662243148667]
["Tennessee","Chester County",1.0555938686286717]
["Tennessee","Claiborne County",1.0349358298448532]
["Tennessee","Clay County",1.0347248873961559]
["Tennessee","Cocke County",1.0577864492967772]
["Tennessee","Coffee County",1.0263363659715332]
["Tennessee","Crockett County",1.021110546117773]
["Tennessee","Cumberland County",1.1608976098117054]
["Tennessee","Davidson County",1.0609629942456102]
["Tennessee","Decatur County",1.0236516286943189]
["Tennessee","DeKalb County",1.0701444991888933]
["Tennessee","Dickson County",1.0663671186436465]
["Tennessee","Dyer County",1.0037517539698739]
["Tennessee","Fayette County",1.1205598398314756]
["Tennessee","Fentress County",1.1163412783121753]
["Tennessee","Franklin County",1.0314770539980458]
["Tennessee","Gibson County",1.025818937765365]
["Tennessee","Giles County",1.0212821563712473]
["Tennessee","Grainger County",1.0640894183703056]
["Tennessee","Greene County",1.0577571141211375]
["Tennessee","Grundy County",1]
["Tennessee","Hamblen County",1.0348179902545009]
["Tennessee","Hamilton County",1.0635272537252818]
["Tennessee","Hancock County",1.0680665310356021]
["Tennessee","Hardeman County",1]
["Tennessee","Hardin County",1.0428818905737582]
["Tennessee","Hawkins County",1.0414394159691134]
["Tennessee","Haywood County",1]
["Tennessee","Henderson County",1.0740405845753256]
["Tennessee","Henry County",1.0329627013097866]
["Tennessee","Hickman County",1.1019590967458095]
["Tennessee","Houston County",1.0334421114990113]
["Tennessee","Humphreys County",1.0184824252990268]
["Tennessee","Jackson County",1.0815586096182885]
["Tennessee","Jefferson County",1.0650970896936753]
["Tennessee","Johnson County",1.0575117366966604]
["Tennessee","Knox County",1.0482889031525069]
["Tennessee","Lake County",1]
["Tennessee","Lauderdale County",1]
["Tennessee","Lawrence County",1.0558253374197282]
["Tennessee","Lewis County",1.0890260320924341]
["Tennessee","Lincoln County",1.1045406268772209]
["Tennessee","Loudon County",1.1289287842833731]
["Tennessee","McMinn County",1.0403002243102879]
["Tennessee","McNairy County",1.048652598987069]
["Tennessee","Macon County",1.0800322003496379]
["Tennessee","Madison County",1.0135731630533331]
["Tennessee","Marion County",1]
["Tennessee","Marshall County",1.0462363333118598]
["Tennessee","Maury County",1.0222519839817537]
["Tennessee","Meigs County",1.0091289319389087]
["Tennessee","Monroe County",1.1058518049857016]
["Tennessee","Montgomery County",1.1964361607410425]
["Tennessee","Moore County",1.0376560707914941]
["Tennessee","Morgan County",1.0990990456808061]
["Tennessee","Obion County",1]
["Tennessee","Overton County",1.0761468247393426]
["Tennessee","Perry County",1.0630359707741479]
["Tennessee","Pickett County",1.1065482377723037]
["Tennessee","Polk County",1.0591809190397119]
["Tennessee","Putnam County",1.1016432643029463]
["Tennessee","Rhea County",1.0536383551440212]
["Tennessee","Roane County",1.0490859703523427]
["Tennessee","Robertson County",1.066055601315318]
["Tennessee","Rutherford County",1.086010194649444]
["Tennessee","Scott County",1.066888597974275]
["Tennessee","Sequatchie County",1.1861402463461004]
["Tennessee","Sevier County",1.2245782931788942]
["Tennessee","Shelby County",1.0316487052491699]
["Tennessee","Smith County",1.0545356114875339]
["Tennessee","Stewart County",1.0733744020857596]
["Tennessee","Sullivan County",1.0211566108123407]
["Tennessee","Sumner County",1.0955429674884156]
["Tennessee","Tipton County",1.0314426753611374]
["Tennessee","Trousdale County",1.0263849056253118]
["Tennessee","Unicoi County",1.0411772844478908]
["Tennessee","Union County",1.0147577863290493]
["Tennessee","Van Buren County",1.0412160443807852]
["Tennessee","Warren County",1.0336423123934826]
["Tennessee","Washington County",1.1129191423218701]
["Tennessee","Wayne County",1.0398895342263517]
["Tennessee","Weakley County",1.0083571326329346]
["Tennessee","White County",1.0944973293948093]
["Tennessee","Williamson County",1.1911151365377406]
["Tennessee","Wilson County",1.1513088014156261]
["Texas","Anderson County",1.0514931074452107]
["Texas","Andrews County",1.1011483776226174]
["Texas","Angelina County",1.1142279127411028]
["Texas","Aransas County",1.0771179932351362]
["Texas","Archer County",1.0543987865796414]
["Texas","Armstrong County",1]
["Texas","Atascosa County",1.1255320892252376]
["Texas","Austin County",1.1658467351919679]
["Texas","Bailey County",1.025032581523039]
["Texas","Bandera County",1.1362894073550014]
["Texas","Bastrop County",1.1615223492807871]
["Texas","Baylor County",1]
["Texas","Bee County",1]
["Texas","Bell County",1.1805892888252747]
["Texas","Bexar County",1.1291922677655055]
["Texas","Blanco County",1.217110232390898]
["Texas","Borden County",1]
["Texas","Bosque County",1.083214699362697]
["Texas","Bowie County",1.0668078535958005]
["Texas","Brazoria County",1.1396921267719797]
["Texas","Brazos County",1.1767909319992311]
["Texas","Brewster County",1.1183995004755412]
["Texas","Briscoe County",1]
["Texas","Brooks County",1.0063244648394245]
["Texas","Brown County",1]
["Texas","Burleson County",1.0422840763605392]
["Texas","Burnet County",1.0887260690435765]
["Texas","Caldwell County",1.0626525341216477]
["Texas","Calhoun County",1.0735830795333681]
["Texas","Callahan County",1.0700684655242179]
["Texas","Cameron County",1.0493323107352062]
["Texas","Camp County",1.0545962463796235]
["Texas","Carson County",1]
["Texas","Cass County",1.0089091050441925]
["Texas","Castro County",1.0504085680708055]
["Texas","Chambers County",1.1027665402278632]
["Texas","Cherokee County",1.067172639959161]
["Texas","Childress County",1]
["Texas","Clay County",1.0092522438220466]
["Texas","Cochran County",1]
["Texas","Coke County",1]
["Texas","Coleman County",1.0439775590502145]
["Texas","Collin County",1.1670867079042537]
["Texas","Collingsworth County",1]
["Texas","Colorado County",1.089787773586627]
["Texas","Comal County",1.1489181379771543]
["Texas","Comanche County",1.0006766586850993]
["Texas","Concho County",1.0637248466819651]
["Texas","Cooke County",1.060819142995352]
["Texas","Coryell County",1.1285104244507407]
["Texas","Cottle County",1]
["Texas","Crane County",1.0583091547131653]
["Texas","Crockett County",1]
["Texas","Crosby County",1]
["Texas","Culberson County",1]
["Texas","Dallam County",1.1001556161179473]
["Texas","Dallas County",1.0593411075781658]
["Texas","Dawson County",1]
["Texas","Deaf Smith County",1.0144486301004076]
["Texas","Delta County",1.006301217861735]
["Texas","Denton County",1.2356198097140161]
["Texas","DeWitt County",1.0360784489681354]
["Texas","Dickens County",1]
["Texas","Dimmit County",1.0374781576988825]
["Texas","Donley County",1]
["Texas","Duval County",1]
["Texas","Eastland County",1.0600355096868155]
["Texas","Ector County",1.1249488308968516]
["Texas","Edwards County",1.1991706848958708]
["Texas","Ellis County",1.1385413632161914]
["Texas","El Paso County",1.159643676567236]
["Texas","Erath County",1.1084174591565623]
["Texas","Falls County",1]
["Texas","Fannin County",1.0542318463852465]
["Texas","Fayette County",1.169174667993337]
["Texas","Fisher County",1]
["Texas","Floyd County",1]
["Texas","Foard County",1]
["Texas","Fort Bend County",1.3116856123334788]
["Texas","Franklin County",1.0759602076176313]
["Texas","Freestone County",1.0805668537928539]
["Texas","Frio County",1.0147943821699048]
["Texas","Gaines County",1.1351377209134919]
["Texas","Galveston County",1.1037431622987595]
["Texas","Garza County",1.1244227326441893]
["Texas","Gillespie County",1.1578298360959951]
["Texas","Glasscock County",1]
["Texas","Goliad County",1.049110633875995]
["Texas","Gonzales County",1.0499474224342733]
["Texas","Gray County",1]
["Texas","Grayson County",1.0669862075551064]
["Texas","Gregg County",1.0845193813434419]
["Texas","Grimes County",1.1009400452237297]
["Texas","Guadalupe County",1.2535155530611077]
["Texas","Hale County",1]
["Texas","Hall County",1]
["Texas","Hamilton County",1.0134434983939036]
["Texas","Hansford County",1.0158660550917111]
["Texas","Hardeman County",1.0344902856714713]
["Texas","Hardin County",1.1750524622262728]
["Texas","Harris County",1.0946344092067108]
["Texas","Harrison County",1.0608912474937395]
["Texas","Hartley County",1.1310882676872249]
["Texas","Haskell County",1]
["Texas","Hays County",1.3142472540471641]
["Texas","Hemphill County",1.0467941355024348]
["Texas","Henderson County",1.0529589397200048]
["Texas","Hidalgo County",1.0877608373620631]
["Texas","Hill County",1.0711347520902228]
["Texas","Hockley County",1.0059706983696284]
["Texas","Hood County",1.1947132999751888]
["Texas","Hopkins County",1.0452862713340707]
["Texas","Houston County",1.0501958103295808]
["Texas","Howard County",1]
["Texas","Hudspeth County",1.0038054209214455]
["Texas","Hunt County",1.0765633340614147]
["Texas","Hutchinson County",1]
["Texas","Irion County",1]
["Texas","Jack County",1.0978596979173618]
["Texas","Jackson County",1.0031164461892308]
["Texas","Jasper County",1.0254822512001374]
["Texas","Jeff Davis County",1.0920259997924]
["Texas","Jefferson County",1.0632030777587822]
["Texas","Jim Hogg County",1.0364338546876875]
["Texas","Jim Wells County",1.060666557729947]
["Texas","Johnson County",1.116495925627671]
["Texas","Jones County",1]
["Texas","Karnes County",1.0372667132414706]
["Texas","Kaufman County",1.1947723393405121]
["Texas","Kendall County",1.1425888454678925]
["Texas","Kenedy County",1]
["Texas","Kent County",1]
["Texas","Kerr County",1.120385192137864]
["Texas","Kimble County",1.0896196651816927]
["Texas","King County",1.0413281246586616]
["Texas","Kinney County",1]
["Texas","Kleberg County",1.0147059238614777]
["Texas","Knox County",1]
["Texas","Lamar County",1.0432758305771741]
["Texas","Lamb County",1]
["Texas","Lampasas County",1.0837302017753072]
["Texas","La Salle County",1.091992167481818]
["Texas","Lavaca County",1.0570856565953304]
["Texas","Lee County",1.0598810566042673]
["Texas","Leon County",1.0937453253681575]
["Texas","Liberty County",1.0785392497568727]
["Texas","Limestone County",1.0692744782700094]
["Texas","Lipscomb County",1]
["Texas","Live Oak County",1]
["Texas","Llano County",1.099977272743379]
["Texas","Loving County",1]
["Texas","Lubbock County",1.0978533826918171]
["Texas","Lynn County",1.0065500031619559]
["Texas","McCulloch County",1.0084405044596569]
["Texas","McLennan County",1.0772718801297856]
["Texas","McMullen County",1]
["Texas","Madison County",1.0489360797965444]
["Texas","Marion County",1]
["Texas","Martin County",1]
["Texas","Mason County",1.1145241342598369]
["Texas","Matagorda County",1]
["Texas","Maverick County",1.130604752751029]
["Texas","Medina County",1.1365878651984143]
["Texas","Menard County",1.0284513993327584]
["Texas","Midland County",1.1404424046815311]
["Texas","Milam County",1.0193885921531578]
["Texas","Mills County",1.0338212448016662]
["Texas","Mitchell County",1]
["Texas","Montague County",1.005846596473269]
["Texas","Montgomery County",1.2055636578750919]
["Texas","Moore County",1.0494560610744843]
["Texas","Morris County",1]
["Texas","Motley County",1]
["Texas","Nacogdoches County",1.0753732332112222]
["Texas","Navarro County",1.0939073751270403]
["Texas","Newton County",1]
["Texas","Nolan County",1.0222008785455841]
["Texas","Nueces County",1.0970135443196107]
["Texas","Ochiltree County",1.0675105253867203]
["Texas","Oldham County",1.0325852886735056]
["Texas","Orange County",1.0555079481656562]
["Texas","Palo Pinto County",1.0790795194118554]
["Texas","Panola County",1.0211437209832477]
["Texas","Parker County",1.1972657644643205]
["Texas","Parmer County",1.0181918642903867]
["Texas","Pecos County",1]
["Texas","Polk County",1.0894450770844135]
["Texas","Potter County",1.0361781681071638]
["Texas","Presidio County",1.0092044005689429]
["Texas","Rains County",1.0986234225628801]
["Texas","Randall County",1.1546373964670589]
["Texas","Reagan County",1]
["Texas","Real County",1.1627645433466918]
["Texas","Red River County",1]
["Texas","Reeves County",1]
["Texas","Refugio County",1.0099893043487476]
["Texas","Roberts County",1]
["Texas","Robertson County",1.0451747053892015]
["Texas","Rockwall County",1.2051640039587088]
["Texas","Runnels County",1]
["Texas","Rusk County",1.0535786957123086]
["Texas","Sabine County",1.0019554649173781]
["Texas","San Augustine County",1]
["Texas","San Jacinto County",1.0848305249323911]
["Texas","San Patricio County",1.0022149273572314]
["Texas","San Saba County",1.0448885695860568]
["Texas","Schleicher County",1.0712584254562643]
["Texas","Scurry County",1.0782018413695629]
["Texas","Shackelford County",1.0632418238514365]
["Texas","Shelby County",1]
["Texas","Sherman County",1]
["Texas","Smith County",1.1357100920763865]
["Texas","Somervell County",1.1601667472453872]
["Texas","Starr County",1.0842503130166139]
["Texas","Stephens County",1.0093030364156865]
["Texas","Sterling County",1]
["Texas","Stonewall County",1]
["Texas","Sutton County",1.0067590656825534]
["Texas","Swisher County",1]
["Texas","Tarrant County",1.1058850384118792]
["Texas","Taylor County",1.0731154834758363]
["Texas","Terrell County",1]
["Texas","Terry County",1]
["Texas","Throckmorton County",1]
["Texas","Titus County",1.0803513849785542]
["Texas","Tom Green County",1.0528219634305782]
["Texas","Travis County",1.1193949958109419]
["Texas","Trinity County",1.0363540557359388]
["Texas","Tyler County",1.0055971406588906]
["Texas","Upshur County",1.0881449051209304]
["Texas","Upton County",1]
["Texas","Uvalde County",1.1033412535517764]
["Texas","Val Verde County",1.0721468420175486]
["Texas","Van Zandt County",1.0542293858644571]
["Texas","Victoria County",1.0528922173997715]
["Texas","Walker County",1.1237063919216852]
["Texas","Waller County",1.13201041890335]
["Texas","Ward County",1]
["Texas","Washington County",1.1180534145109235]
["Texas","Webb County",1.12764039134876]
["Texas","Wharton County",1.0160531765098604]
["Texas","Wheeler County",1.0146984997888655]
["Texas","Wichita County",1.021040082215662]
["Texas","Wilbarger County",1]
["Texas","Willacy County",1.0023372045204662]
["Texas","Williamson County",1.2162351422096198]
["Texas","Wilson County",1.23302075717202]
["Texas","Winkler County",1]
["Texas","Wise County",1.1270757875109951]
["Texas","Wood County",1.1167064262131778]
["Texas","Yoakum County",1.0038968679063434]
["Texas","Young County",1.0143405603071778]
["Texas","Zapata County",1]
["Texas","Zavala County",1.0379043833982617]
["Utah","Beaver County",1.0404068802454671]
["Utah","Box Elder County",1.1129765466947741]
["Utah","Cache County",1.1464683400705979]
["Utah","Carbon County",1.0663933397272309]
["Utah","Daggett County",1.0105106669531874]
["Utah","Davis County",1.1330823222995559]
["Utah","Duchesne County",1.1614418832321363]
["Utah","Emery County",1.0555318135892935]
["Utah","Garfield County",1.1167414038415115]
["Utah","Grand County",1.2087612622349266]
["Utah","Iron County",1.0887073656809423]
["Utah","Juab County",1.0454879829781074]
["Utah","Kane County",1.1597023960678534]
["Utah","Millard County",1.0323255422108293]
["Utah","Morgan County",1.1153474905218754]
["Utah","Piute County",1.1199512953044168]
["Utah","Rich County",1]
["Utah","Salt Lake County",1.0908975794803824]
["Utah","San Juan County",1.0509785751140446]
["Utah","Sanpete County",1.1697439707206327]
["Utah","Sevier County",1.0946502025679052]
["Utah","Summit County",1.1700511914503799]
["Utah","Tooele County",1.1257670593097537]
["Utah","Uintah County",1.1665246050630853]
["Utah","Utah County",1.1370605858952767]
["Utah","Wasatch County",1.208409394326774]
["Utah","Washington County",1.1336702771958631]
["Utah","Wayne County",1.1054966037508942]
["Utah","Weber County",1.0823758923090634]
["Vermont","Addison County",1.0482071031102427]
["Vermont","Bennington County",1.0245516483141928]
["Vermont","Caledonia County",1.0656791004712809]
["Vermont","Chittenden County",1.0996599860170555]
["Vermont","Essex County",1.0405843251792692]
["Vermont","Franklin County",1.0721536200579953]
["Vermont","Grand Isle County",1.0481785787546563]
["Vermont","Lamoille County",1.1037458143903947]
["Vermont","Orange County",1.0927974199395454]
["Vermont","Orleans County",1.0729437956826384]
["Vermont","Rutland County",1.0400917457806194]
["Vermont","Washington County",1.0492427092442904]
["Vermont","Windham County",1.0656632929671352]
["Vermont","Windsor County",1.0398059636696879]
["Virginia","Accomack County",1]
["Virginia","Albemarle County",1.136797226630534]
["Virginia","Alleghany County",1.0171276259156228]
["Virginia","Amelia County",1.029741556053009]
["Virginia","Amherst County",1.0397244952821363]
["Virginia","Appomattox County",1.1094176929447466]
["Virginia","Arlington County",1.1330269885172397]
["Virginia","Augusta County",1.081675056176127]
["Virginia","Bath County",1.0721513440343524]
["Virginia","Bland County",1.1476650587106376]
["Virginia","Botetourt County",1]
["Virginia","Brunswick County",1.0549225975226597]
["Virginia","Buchanan County",1.0500338080345442]
["Virginia","Buckingham County",1]
["Virginia","Campbell County",1.0615272664138367]
["Virginia","Caroline County",1.0404453687673589]
["Virginia","Carroll County",1.0616186530811635]
["Virginia","Charles City County",1.0560151615579829]
["Virginia","Charlotte County",1.0883598215815273]
["Virginia","Chesterfield County",1.0321817444301709]
["Virginia","Clarke County",1.090067782609069]
["Virginia","Craig County",1.0205613780083458]
["Virginia","Culpeper County",1.123142753526666]
["Virginia","Cumberland County",1]
["Virginia","Dickenson County",1.0501000817357999]
["Virginia","Dinwiddie County",1]
["Virginia","Essex County",1.0707376027577888]
["Virginia","Fairfax County",1.0215044172202439]
["Virginia","Fauquier County",1.0643369402477689]
["Virginia","Floyd County",1.0445315665440238]
["Virginia","Fluvanna County",1.0774436019566482]
["Virginia","Franklin County",1.0640327476239144]
["Virginia","Frederick County",1.1136042168570794]
["Virginia","Giles County",1.1301857121006522]
["Virginia","Gloucester County",1.0337081660181981]
["Virginia","Goochland County",1.0092742843379168]
["Virginia","Grayson County",1.0503904934097132]
["Virginia","Greene County",1]
["Virginia","Greensville County",1.1511067877223615]
["Virginia","Halifax County",1.0327912821753173]
["Virginia","Hanover County",1.0637851450701565]
["Virginia","Henrico County",1.0817283356175835]
["Virginia","Henry County",1.0884640700419936]
["Virginia","Highland County",1.0020885243145186]
["Virginia","Isle of Wight County",1]
["Virginia","James City County",1.0833100447995205]
["Virginia","King and Queen County",1.1450163174390195]
["Virginia","King George County",1.0540378307333711]
["Virginia","King William County",1.0843634941362215]
["Virginia","Lancaster County",1.0659628104797139]
["Virginia","Lee County",1.0891276015520348]
["Virginia","Loudoun County",1.0315102389038002]
["Virginia","Louisa County",1.2099461330306629]
["Virginia","Lunenburg County",1.0926470701810889]
["Virginia","Madison County",1.0110920121733105]
["Virginia","Mathews County",1.0268811954663017]
["Virginia","Mecklenburg County",1.0074377431178974]
["Virginia","Middlesex County",1.0167996448721586]
["Virginia","Montgomery County",1.0336095664807878]
["Virginia","Nelson County",1.0804000001196403]
["Virginia","New Kent County",1.0572035936213711]
["Virginia","Northampton County",1.1598219192132455]
["Virginia","Northumberland County",1.003411763350325]
["Virginia","Nottoway County",1]
["Virginia","Orange County",1.012479597533479]
["Virginia","Page County",1.0455556808106872]
["Virginia","Patrick County",1.032288999795318]
["Virginia","Pittsylvania County",1]
["Virginia","Powhatan County",1.0647374706548498]
["Virginia","Prince Edward County",1.0771856983689601]
["Virginia","Prince George County",1.1152264175159434]
["Virginia","Prince William County",1.0059477958584031]
["Virginia","Pulaski County",1.1177158647337539]
["Virginia","Rappahannock County",1.0164417819132701]
["Virginia","Richmond County",1.1035880768090447]
["Virginia","Roanoke County",1.0497001407989361]
["Virginia","Rockbridge County",1.0556238422750899]
["Virginia","Rockingham County",1.0417666817420237]
["Virginia","Russell County",1.1018239415471189]
["Virginia","Scott County",1]
["Virginia","Shenandoah County",1.0230478313485838]
["Virginia","Smyth County",1.0881251329045063]
["Virginia","Southampton County",1.0091765529238708]
["Virginia","Spotsylvania County",1.0176642041477848]
["Virginia","Stafford County",1.059810527328803]
["Virginia","Surry County",1.1120026753519965]
["Virginia","Sussex County",1]
["Virginia","Tazewell County",1]
["Virginia","Warren County",1]
["Virginia","Washington County",1.0498152684296294]
["Virginia","Westmoreland County",1.047627937777952]
["Virginia","Wise County",1.0308109354515729]
["Virginia","Wythe County",1]
["Virginia","York County",1.0603083440874275]
["Virginia","Alexandria city",1.0964628053455296]
["Virginia","Bedford city",1.0999944060334634]
["Virginia","Bristol city",1.0147515417066901]
["Virginia","Buena Vista city",1.0274546956972532]
["Virginia","Charlottesville city",1.0659648892905396]
["Virginia","Chesapeake city",1.1108989563369356]
["Virginia","Colonial Heights city",1.0351529619299273]
["Virginia","Covington city",1]
["Virginia","Danville city",1]
["Virginia","Emporia city",1.0265886933508841]
["Virginia","Fairfax city",1.0544103481031177]
["Virginia","Falls Church city",1.154934890552596]
["Virginia","Franklin city",1]
["Virginia","Fredericksburg city",1.2640946735655936]
["Virginia","Galax city",1.0051179494308062]
["Virginia","Hampton city",1.0529568300225347]
["Virginia","Harrisonburg city",1.1142530712908552]
["Virginia","Hopewell city",1.0168511714347819]
["Virginia","Lexington city",1.0590472522582774]
["Virginia","Lynchburg city",1.0790957069988818]
["Virginia","Manassas city",1.0510784150408838]
["Virginia","Manassas Park city",1.1267477514680149]
["Virginia","Martinsville city",1.0046313405188969]
["Virginia","Newport News city",1.0288690791570012]
["Virginia","Norfolk city",1.0362127991491867]
["Virginia","Norton city",1.0132735502275882]
["Virginia","Petersburg city",1.0804482590307187]
["Virginia","Poquoson city",1.0351319088154978]
["Virginia","Portsmouth city",1]
["Virginia","Radford city",1.0515428996513023]
["Virginia","Richmond city",1.0768651759355299]
["Virginia","Roanoke city",1.0382477839020212]
["Virginia","Salem city",1.0299560391000542]
["Virginia","Staunton city",1.0502228751094713]
["Virginia","Suffolk city",1.0827758349185381]
["Virginia","Virginia Beach city",1.0817819423338029]
["Virginia","Waynesboro city",1.0479893201997705]
["Virginia","Williamsburg city",1.1212835465364059]
["Virginia","Winchester city",1.0480618814127864]
["Washington","Adams County",1.065822752794007]
["Washington","Asotin County",1.0477231239386611]
["Washington","Benton County",1.1712849212777767]
["Washington","Chelan County",1.0853509979566702]
["Washington","Clallam County",1.0706361843106262]
["Washington","Clark County",1.0796621145659659]
["Washington","Columbia County",1.0376914247681581]
["Washington","Cowlitz County",1.0441702210512829]
["Washington","Douglas County",1.0964395968112819]
["Washington","Ferry County",1.1076824241083041]
["Washington","Franklin County",1.219609716650242]
["Washington","Garfield County",1]
["Washington","Grant County",1.0901748369927757]
["Washington","Grays Harbor County",1.0327562099225975]
["Washington","Island County",1.1049392795584114]
["Washington","Jefferson County",1.1097451608653754]
["Washington","King County",1.0783141504436857]
["Washington","Kitsap County",1.0893772035932905]
["Washington","Kittitas County",1.1382772588849135]
["Washington","Klickitat County",1.0764560258605007]
["Washington","Lewis County",1.0745712270483856]
["Washington","Lincoln County",1.0759054282291505]
["Washington","Mason County",1.1178454107073046]
["Washington","Okanogan County",1.1024274442729656]
["Washington","Pacific County",1.0864633220937594]
["Washington","Pend Oreille County",1.1128805347377226]
["Washington","Pierce County",1.0736758054004705]
["Washington","San Juan County",1.1926382350052624]
["Washington","Skagit County",1.0730822674101028]
["Washington","Skamania County",1.0994372607955496]
["Washington","Snohomish County",1.0921446986113339]
["Washington","Spokane County",1.0839392279564088]
["Washington","Stevens County",1.1149636439602819]
["Washington","Thurston County",1.1210108158821988]
["Washington","Wahkiakum County",1.0557755028353224]
["Washington","Walla Walla County",1.0838783459600023]
["Washington","Whatcom County",1.0785356910386814]
["Washington","Whitman County",1.0694506637757208]
["Washington","Yakima County",1.0604786846720651]
["West Virginia","Barbour County",1.048236046877479]
["West Virginia","Berkeley County",1.0769316868912129]
["West Virginia","Boone County",1]
["West Virginia","Braxton County",1]
["West Virginia","Brooke County",1]
["West Virginia","Cabell County",1.0213800799330599]
["West Virginia","Calhoun County",1.0044366737877688]
["West Virginia","Clay County",1]
["West Virginia","Doddridge County",1.0495389917059019]
["West Virginia","Fayette County",1]
["West Virginia","Gilmer County",1]
["West Virginia","Grant County",1]
["West Virginia","Greenbrier County",1.0517079591292235]
["West Virginia","Hampshire County",1.0927467519588032]
["West Virginia","Hancock County",1]
["West Virginia","Hardy County",1.0362427700515777]
["West Virginia","Harrison County",1.0059591085993227]
["West Virginia","Jackson County",1.0586273029331386]
["West Virginia","Jefferson County",1.0456876300261788]
["West Virginia","Kanawha County",1]
["West Virginia","Lewis County",1]
["West Virginia","Lincoln County",1]
["West Virginia","Logan County",1]
["West Virginia","McDowell County",1]
["West Virginia","Marion County",1]
["West Virginia","Marshall County",1.005786661142948]
["West Virginia","Mason County",1.0515424778690665]
["West Virginia","Mercer County",1.0064417935005978]
["West Virginia","Mineral County",1.0247231239545398]
["West Virginia","Mingo County",1]
["West Virginia","Monongalia County",1.168920253447109]
["West Virginia","Monroe County",1.0157749136801466]
["West Virginia","Morgan County",1.0464128333344038]
["West Virginia","Nicholas County",1.0226417656009592]
["West Virginia","Ohio County",1]
["West Virginia","Pendleton County",1]
["West Virginia","Pleasants County",1.0546413012742852]
["West Virginia","Pocahontas County",1.1063341968023912]
["West Virginia","Preston County",1.0876636371287631]
["West Virginia","Putnam County",1.0351250551486637]
["West Virginia","Raleigh County",1]
["West Virginia","Randolph County",1.0317775570256318]
["West Virginia","Ritchie County",1.0379432157075632]
["West Virginia","Roane County",1]
["West Virginia","Summers County",1.0412572841160785]
["West Virginia","Taylor County",1.0419486950188186]
["West Virginia","Tucker County",1.1132651886866864]
["West Virginia","Tyler County",1.0311892416358939]
["West Virginia","Upshur County",1.0037429265028832]
["West Virginia","Wayne County",1.0042805589124284]
["West Virginia","Webster County",1.0025351769049831]
["West Virginia","Wetzel County",1]
["West Virginia","Wirt County",1]
["West Virginia","Wood County",1.0047563203432754]
["West Virginia","Wyoming County",1]
["Wisconsin","Adams County",1.0603498976038908]
["Wisconsin","Ashland County",1.0352303730586545]
["Wisconsin","Barron County",1.0240990616615777]
["Wisconsin","Bayfield County",1.0079772330058003]
["Wisconsin","Brown County",1.0805262045546229]
["Wisconsin","Buffalo County",1.0221945953136427]
["Wisconsin","Burnett County",1.1135713378100078]
["Wisconsin","Calumet County",1.0600841151654907]
["Wisconsin","Chippewa County",1.0716710681415567]
["Wisconsin","Clark County",1.0470230707353503]
["Wisconsin","Columbia County",1.0423572274631079]
["Wisconsin","Crawford County",1]
["Wisconsin","Dane County",1.0667564271583387]
["Wisconsin","Dodge County",1.0337983458093771]
["Wisconsin","Door County",1.0914918525050834]
["Wisconsin","Douglas County",1.0742149651438817]
["Wisconsin","Dunn County",1.0499462575427012]
["Wisconsin","Eau Claire County",1.054481468531713]
["Wisconsin","Florence County",1.050802422120888]
["Wisconsin","Fond du Lac County",1.061325357043438]
["Wisconsin","Forest County",1.0243560016122246]
["Wisconsin","Grant County",1.0390359971211796]
["Wisconsin","Green County",1.0268531039589637]
["Wisconsin","Green Lake County",1.0358819625700635]
["Wisconsin","Iowa County",1.0245210350096126]
["Wisconsin","Iron County",1]
["Wisconsin","Jackson County",1.0967976029920559]
["Wisconsin","Jefferson County",1.0529397070009985]
["Wisconsin","Juneau County",1.0569277599913409]
["Wisconsin","Kenosha County",1.0497925210524497]
["Wisconsin","Kewaunee County",1.0442644011462634]
["Wisconsin","La Crosse County",1.0633889193283443]
["Wisconsin","Lafayette County",1.0299652618316504]
["Wisconsin","Langlade County",1.0376884663017107]
["Wisconsin","Lincoln County",1.0685036017343621]
["Wisconsin","Manitowoc County",1.0281418728284843]
["Wisconsin","Marathon County",1.0397719693725085]
["Wisconsin","Marinette County",1.063231829122179]
["Wisconsin","Marquette County",1.0457637618210893]
["Wisconsin","Menominee County",1.0225273672811865]
["Wisconsin","Milwaukee County",1.0406295237907162]
["Wisconsin","Monroe County",1.0657109300977754]
["Wisconsin","Oconto County",1.0578182107555802]
["Wisconsin","Oneida County",1.0525040301031732]
["Wisconsin","Outagamie County",1.0787810358224417]
["Wisconsin","Ozaukee County",1.0472172142135308]
["Wisconsin","Pepin County",1.083979155107714]
["Wisconsin","Pierce County",1.063835467006923]
["Wisconsin","Polk County",1.0054752301307026]
["Wisconsin","Portage County",1.0550149031416303]
["Wisconsin","Price County",1.0901763708988668]
["Wisconsin","Racine County",1.036044515436211]
["Wisconsin","Richland County",1.0380035258148337]
["Wisconsin","Rock County",1.0166861569148047]
["Wisconsin","Rusk County",1.0984329689975438]
["Wisconsin","St. Croix County",1.0548474959604217]
["Wisconsin","Sauk County",1.0504229037393555]
["Wisconsin","Sawyer County",1.0539092679763997]
["Wisconsin","Shawano County",1.0357686489188702]
["Wisconsin","Sheboygan County",1.0253044089141774]
["Wisconsin","Taylor County",1.1375223597258168]
["Wisconsin","Trempealeau County",1.0409385651008165]
["Wisconsin","Vernon County",1.0229919096560183]
["Wisconsin","Vilas County",1.0386296975923495]
["Wisconsin","Walworth County",1.0294500209835302]
["Wisconsin","Washburn County",1.066046101265973]
["Wisconsin","Washington County",1.0590104658438562]
["Wisconsin","Waukesha County",1.0557839383879899]
["Wisconsin","Waupaca County",1.0498401078316113]
["Wisconsin","Waushara County",1.0078995278383021]
["Wisconsin","Winnebago County",1.0646527999272006]
["Wisconsin","Wood County",1.0396480374117991]
["Wyoming","Albany County",1.1667478407758161]
["Wyoming","Big Horn County",1.0394802779635439]
["Wyoming","Campbell County",1.2290135129427751]
["Wyoming","Carbon County",1.0065968549228512]
["Wyoming","Converse County",1.0919170395977353]
["Wyoming","Crook County",1.1201270572833524]
["Wyoming","Fremont County",1.0936998087775409]
["Wyoming","Goshen County",1.0108345189066861]
["Wyoming","Hot Springs County",1.0049849595048723]
["Wyoming","Johnson County",1.1659061305822718]
["Wyoming","Laramie County",1.1089056089396445]
["Wyoming","Lincoln County",1.0850059239969836]
["Wyoming","Natrona County",1.1699644463777039]
["Wyoming","Niobrara County",1.0080353983502168]
["Wyoming","Park County",1.0790015936852528]
["Wyoming","Platte County",1.0048003263618468]
["Wyoming","Sheridan County",1.0637812620771427]
["Wyoming","Sublette County",1.2070363810116227]
["Wyoming","Sweetwater County",1.1286699543134184]
["Wyoming","Teton County",1.0992528406785409]
["Wyoming","Uinta County",1.0189562552053046]
["Wyoming","Washakie County",1.0505288612626598]
["Wyoming","Weston County",1.0611061145334379]

{"sheet":"Calc Avg CGA","index":29,"n_rows":24,"n_cols":6,"rows_kept":24,"cut":false,"hidden":false,"merged":[]}
["Determining Average CGA values if a community's corporate limits are in two or more counties"]
[]
["Name of County #1:"]
["Name of County #2:"]
["Name of County #3:"]
["Name of County #4:"]
[]
["CGA of County #1 = "]
["CGA of County #2 = "]
["CGA of County #3 = "]
["CGA of County #4 = "]
[]
["Basic Average:"]
["CGA = CGA#1 + CGA#2 + CGA#3 +….",null,null,null,"Average CGA = ",{"$f":"ROUND(IF(SUM(B8:B11)=0,1,SUM(B8:B11)/COUNTIF(B8:B11,\">0\")),2)","v":1}]
["                           # of Counties"]
[]
["Average based on different area percentages:"]
["CGA = (CGA#1 x %) + (CGA#2 x %) + (CGA#3 x %) +…."]
[]
["% of area in County #1 = "]
["% of area in County #2 = "]
["% of area in County #3 = "]
["% of area in County #4 = "]
["Total = ",{"$f":"SUM(B20:B23)","v":0},null,null,"Average CGA = ",{"$f":"IF(B8*B20+B9*B21+B10*B22+B11*B23<1,1,(B8*B20+B9*B21+B10*B22+B11*B23))","v":1}]

{"sheet":"CRS Documents","index":30,"n_rows":110,"n_cols":2,"rows_kept":110,"cut":false,"hidden":true,"merged":[[14,1,14,2],[15,1,15,2],[16,1,16,2],[10,1,10,2],[13,1,13,2],[17,1,17,2],[11,1,11,2],[12,1,12,2],[0,0,0,2],[3,1,3,2],[5,1,5,2],[7,1,7,2],[9,1,9,2],[4,1,4,2],[2,1,2,2],[6,1,6,2],[1,0,1,2],[8,1,8,2],[18,1,18,2],[19,1,19,2],[20,1,20,2],[33,1,33,2],[35,1,35,2],[36,1,36,2],[32,1,32,2],[21,1,21,2],[22,1,22,2],[23,1,23,2],[37,1,37,2],[38,1,38,2],[39,1,39,2],[24,1,24,2],[25,1,25,2],[26,1,26,2],[49,1,49,2],[50,1,50,2],[40,1,40,2],[41,1,41,2],[42,1,42,2],[44,1,44,2],[43,1,43,2],[51,1,51,2],[52,1,52,2],[53,1,53,2],[54,1,54,2],[55,1,55,2],[56,1,56,2],[45,1,45,2],[46,1,46,2],[47,1,47,2],[64,1,64,2],[66,1,66,2],[67,1,67,2],[65,1,65,2],[68,1,68,2],[82,1,82,2],[75,1,75,2],[57,1,57,2],[58,1,58,2],[62,0,62,2],[63,1,63,2],[59,1,59,2],[60,1,60,2],[61,1,61,2],[77,0,77,2],[103,1,103,2],[104,1,104,2],[105,1,105,2],[90,1,90,2],[91,1,91,2],[92,1,92,2],[69,1,69,2],[102,1,102,2],[95,1,95,2],[89,1,89,2],[84,1,84,2],[85,1,85,2],[86,1,86,2],[87,1,87,2],[101,1,101,2],[88,1,88,2],[76,1,76,2],[70,1,70,2],[71,1,71,2],[72,1,72,2],[80,1,80,2],[106,1,106,2],[109,1,109,2],[27,1,27,2],[28,1,28,2],[29,1,29,2],[30,1,30,2],[31,1,31,2],[34,1,34,2],[48,1,48,2],[96,1,96,2],[97,1,97,2],[98,1,98,2],[99,1,99,2],[100,1,100,2],[78,1,78,2],[79,1,79,2],[93,1,93,2],[94,1,94,2],[83,1,83,2],[81,1,81,2],[73,1,73,2],[74,1,74,2],[108,1,108,2],[107,1,107,2]]}
["DOCUMENTS ON THE 2013 ISO CD"]
["CRS Publications and Documents"]
[null,"Combined - 2013 Coordinator's Manual and Specialist's Manual "]
[null,"2013 CRS Coordinator's Manual - pdf version"]
[null,"2013 CRS Coordinator's Manual - word version"]
[null,"2013 CRS Specialist's Manual - pdf version"]
[null,"2013 CRS Specialist's Manual - word version"]
["CC-ALL","Combined - CRS Community Certifications (CC and CC-EHP) - Fillable pdf version"]
[null,"CRS Activity Checklists - word or pdf?"]
[null,"2013 Interim Score Sheets and Activity Checklists - Excel file"]
[null,"Transition Model - based on October 2012 data"]
[null,"Random Sample Generator - Excel file"]
[110,"FEMA CRS Handout"]
[210,"2013 Uniform Minimum Credit (UMC) Reports"]
[210,"2012 State Profiles"]
[210,"The Community CRS Coordinator"]
[210,"CRS Quick Check/Application"]
[210,"Joining the CRS"]
[240,"CRS Community Self Assessment "]
[310,"EC Correction Form"]
[310,"EC Tally Sheet"]
[310,"EC Quick Reference Guide"]
[310,"Elevation Certificate checklist"]
[310,"V Zone Certificate"]
[310,"V Zone Certificate checklist"]
[310,"Floodproofing Certificate checklist"]
[310,"Basement Floodproofing Certificate checklist"]
[320,"Using Google Earth to View Flood Maps"]
[330,"330 Scoring Guide"]
[330,"Developing a PPI"]
[350,"Good links for 350 WEB credit "]
[350,"350 Library Scoring Guide"]
[370,"370 Scoring Guide"]
[404,"Grid square overlay"]
[410,"CRS Credit for Mapping"]
[410,"Example CTP Barney agreement"]
[410,"Example CTP Mapping Activity Statement"]
[410,"CTP communities list"]
[420,"Natural Floodplain Functions Form"]
[430,"Coastal A Zone credit"]
[430,"Ductwork Freeboard Guidance "]
[430,"ENL Non Conversion Agreement"]
["430LD","LZ Instructions"]
[440,"CRS Credit for BMM"]
[440,"NGVD → NAVD"]
[502,"Mapping Repetitive Loss Areas"]
[504,"Funding Sources for RL Properties"]
[507,"Matrix of environmental laws"]
[510,"Repetitive Loss data for 2013"]
[510,"Major changes guide"]
[510,"New mitigation guide"]
[510,"FMP Extension request"]
[530,"CRS Credit for Flood Control Projects"]
[530,"Guidance for Environmental Review"]
[530,"530 Scoring Guide"]
[540,"Drainage Maintenance Credit "]
[610,"CRS Credit for Flood Warning Programs "]
[630,"State Dam Safety (SDS) Scores"]
[710,"CGA values by county, updated annually"]
["SH","CRS Coastal Erosion Supplement"]
["SH","CRS Special Hazards Supplement"]
["SH","CRS Tsunami Supplement"]
["ISO Verification Templates"]
[210,"15 day Recertification Template"]
[210,"30 day (no letterhead) Template"]
[210,"Auto Text statements"]
[210,"Class 10 (no letterhead) Template"]
[210,"Cycle Visit Template"]
[210,"CRS Letter of Interest"]
[210,"Modification Report Template"]
[210,"New Community Letter"]
[210,"No Recertification (no letterhead) Template"]
[210,"Preliminary (no letterhead) Template"]
[210,"Recertification Statements "]
[210,"Recertification Template"]
[210,"Reminder Cycle Visit letter"]
[210,"Verification Report Template"]
["Other Publications and Documents"]
["App A","FEMA Regional Offices (old App A) - FEMA.gov"]
["App H","State Coordinators (old App H) - ASFPM"]
[210,"FEMA 496 Joining the NFIP"]
[310,"FEMA Elevation Certificate "]
[310,"FEMA Floodproofing Certificate"]
[310,"Residential Basement Floodproofing Cert"]
[310,"FEMA 467 EC Bulletin"]
[320,"FEMA Mandatory Purchase 2007"]
[330,"ASFPM Building Public Support Guide "]
[350,"All 10 references needed for 350 LIB credit"]
[330,"Pasadena's (and others') PPI"]
[340,"California example REB brochure"]
[410,"FEMA 495 Adopting FIRMs"]
[410,"FEMA 265 The Zone A Manual"]
[410,"MT-1, MT-2, etc."]
[430,"FEMA 268 Protecting Floodplain Resources"]
[430,"FEMA 480 Desk Reference"]
[430,"FEMA Technical bulletins"]
[430,"NFIP regulations"]
[430,"NAI Toolkit  (ASFPM)"]
[430,"Increased Cost of Compliance (link?)"]
[501,"Mitigation grant guidance (link)"]
[510,"Using MOM in Watershed (ASFPM)"]
[510,"FEMA 498 Mitigation planning brochure"]
[510,"FEMA planning guidance documents"]
[520,"Mitigation grant guidance (link)"]
[530,"FEMA retrofitting guidebooks"]
[610,"StormReady/TsunamiReady"]
[610,"South Holland (and others) Flood Response Plan"]
[610,"Examples of flood inundation maps"]
[630,"FEMA 64 Emergency Action Plans"]
[630,"FEMA 145 Dam Owners Manual"]